Workbook

Sheet MainDisplay
C1: =ISNUMBER(AB2) -> TRUE
B2: =RTD("cqg.rtd", ,"SystemInfo", "Linetime") -> 43290.35979 | F2: CQG Globex Grains and USDA Agriculture Reports | AB2: =IF(RTD("cqg.rtd", ,"SystemInfo", "Linetime")=0,NA(),RTD("cqg.rtd", ,"SystemInfo", "Linetime")) -> 43290.35979
B5: Soybeans | L5: Corn | V5: Wheat
B6: ZSE | C6: =" "&RTD("cqg.rtd", ,"ContractData",B6, "LongDescription",, "T")&" " -> Soybeans (Globex), Nov 18 | G6: Last | H6: =RTD("cqg.rtd", ,"ContractData",B6, "LastTradeToday",, "T") -> 877.75 | J6: Net | K6: =IF(RTD("cqg.rtd", ,"ContractData",B6, "NetLastTradeToday",, "T")="","",IF(RTD("cqg.rtd", ,"ContractData",B6, "NetLastTradeToday",, "T")>0,"+"&TEXT(RTD("cqg.rtd", ,"ContractData",B6, "NetLastTradeToday",, "T"),"#.00"),RTD("cqg.rtd", ,"ContractData",B6, "NetLastTradeToday",, "T"))) -> -16.75 | L6: ZCE | M6: =" "&RTD("cqg.rtd", ,"ContractData",L6, "LongDescription",, "T")&" " -> Corn (Globex), Dec 18 | Q6: Last | R6: =RTD("cqg.rtd", ,"ContractData",L6, "LastTradeToday",, "T") -> 366.5 | T6: Net | U6: =IF(RTD("cqg.rtd", ,"ContractData",L6, "NetLastTradeToday",, "T")="","",IF(RTD("cqg.rtd", ,"ContractData",L6, "NetLastTradeToday",, "T")>0,"+"&TEXT(RTD("cqg.rtd", ,"ContractData",L6, "NetLastTradeToday",, "T"),"#.00"),RTD("cqg.rtd", ,"ContractData",L6, "NetLastTradeToday",, "T"))) -> -6.5 | V6: ZWA | W6: =" "&RTD("cqg.rtd", ,"ContractData",V6, "LongDescription",, "T")&" " -> Wheat (Globex), Sep 18 | AA6: Last | AB6: =RTD("cqg.rtd", ,"ContractData",V6, "LastTradeToday",, "T") -> 507.25 | AD6: Net | AE6: =IF(RTD("cqg.rtd", ,"ContractData",V6, "NetLastTradeToday",, "T")="","",IF(RTD("cqg.rtd", ,"ContractData",V6, "NetLastTradeToday",, "T")>0,"+"&TEXT(RTD("cqg.rtd", ,"ContractData",V6, "NetLastTradeToday",, "T"),"#.00"),RTD("cqg.rtd", ,"ContractData",V6, "NetLastTradeToday",, "T"))) -> -8
G7: Trade | J7: Change | Q7: Trade | T7: Change | AA7: Trade | AD7: Change
B8: =RTD("cqg.rtd", ,"ContractData",B6, "MT_LastBidVolume",, "T") -> 8 | D8: =RTD("cqg.rtd", ,"ContractData",B6, "Bid",, "T") -> 877.5 | F8: =RTD("cqg.rtd", ,"ContractData",B6, "Ask",, "T") -> 877.75 | H8: =RTD("cqg.rtd", ,"ContractData",B6, "MT_LastAskVolume",, "T") -> 19 | J8: Contract Volume | L8: =RTD("cqg.rtd", ,"ContractData",L6, "MT_LastBidVolume",, "T") -> 54 | N8: =RTD("cqg.rtd", ,"ContractData",L6, "Bid",, "T") -> 366.25 | P8: =RTD("cqg.rtd", ,"ContractData",L6, "Ask",, "T") -> 366.5 | R8: =RTD("cqg.rtd", ,"ContractData",L6, "MT_LastAskVolume",, "T") -> 631 | T8: Contract Volume | V8: =RTD("cqg.rtd", ,"ContractData",V6, "MT_LastBidVolume",, "T") -> 7 | X8: =RTD("cqg.rtd", ,"ContractData",V6, "Bid",, "T") -> 507.25 | Z8: =RTD("cqg.rtd", ,"ContractData",V6, "Ask",, "T") -> 507.5 | AB8: =RTD("cqg.rtd", ,"ContractData",V6, "MT_LastAskVolume",, "T") -> 13 | AD8: Contract Volume
J9: =RTD("cqg.rtd", ,"ContractData",B6, "T_CVol",, "T") -> 37546 | T9: =RTD("cqg.rtd", ,"ContractData",L6, "T_CVol",, "T") -> 36506 | AD9: =RTD("cqg.rtd", ,"ContractData",V6, "T_CVol",, "T") -> 14152
C10: Total Volume Today: | E10: =RTD("cqg.rtd", ,"ContractData", "ZSE", "T_TVol",, "T") -> 58324 | G10: Total Volume Y'day: | I10: =RTD("cqg.rtd", ,"ContractData", "ZSE", "Y_tVol",, "T") -> 234218 | M10: Total Volume Today: | O10: =RTD("cqg.rtd", ,"ContractData", "ZCE", "T_TVol",, "T") -> 62320 | Q10: Total Volume Y'day: | S10: =RTD("cqg.rtd", ,"ContractData", "ZCE", "Y_tVol",, "T") -> 282345 | W10: Total Volume Today: | Y10: =RTD("cqg.rtd", ,"ContractData", "ZWA", "T_TVol",, "T") -> 23432 | AA10: Total Volume Y'day: | AC10: =RTD("cqg.rtd", ,"ContractData", "ZWA", "Y_tVol",, "T") -> 113565
B11: =RTD("cqg.rtd", ,"ContractData","ZSE?"&$A$12, "contractMonth",, "T")&RIGHT(RTD("cqg.rtd",,"ContractData","ZSE?"&$A$12,"Symbol",,"T"),1) -> JUL8 | C11: =RTD("cqg.rtd", ,"ContractData","ZSE?"&$A$13, "contractMonth",, "T")&RIGHT(RTD("cqg.rtd",,"ContractData","ZSE?"&$A$13,"Symbol",,"T"),1) -> AUG8 | D11: =RTD("cqg.rtd", ,"ContractData","ZSE?"&$A$14, "contractMonth",, "T")&RIGHT(RTD("cqg.rtd",,"ContractData","ZSE?"&$A$14,"Symbol",,"T"),1) -> SEP8 | E11: =RTD("cqg.rtd", ,"ContractData","ZSE?"&$A$15, "contractMonth",, "T")&RIGHT(RTD("cqg.rtd",,"ContractData","ZSE?"&$A$15,"Symbol",,"T"),1) -> NOV8 | F11: =RTD("cqg.rtd", ,"ContractData","ZSE?"&$A$16, "contractMonth",, "T")&RIGHT(RTD("cqg.rtd",,"ContractData","ZSE?"&$A$16,"Symbol",,"T"),1) -> JAN9 | G11: =RTD("cqg.rtd", ,"ContractData","ZSE?"&$A$17, "contractMonth",, "T")&RIGHT(RTD("cqg.rtd",,"ContractData","ZSE?"&$A$17,"Symbol",,"T"),1) -> MAR9 | H11: =RTD("cqg.rtd", ,"ContractData","ZSE?"&$A$18, "contractMonth",, "T")&RIGHT(RTD("cqg.rtd",,"ContractData","ZSE?"&$A$18,"Symbol",,"T"),1) -> MAY9 | I11: =RTD("cqg.rtd", ,"ContractData","ZSE?"&$A$19, "contractMonth",, "T")&RIGHT(RTD("cqg.rtd",,"ContractData","ZSE?"&$A$19,"Symbol",,"T"),1) -> JUL9 | J11: =RTD("cqg.rtd", ,"ContractData","ZSE?"&$A$20, "contractMonth",, "T")&RIGHT(RTD("cqg.rtd",,"ContractData","ZSE?"&$A$20,"Symbol",,"T"),1) -> AUG9 | K11: =RTD("cqg.rtd", ,"ContractData","ZSE?"&$A$21, "contractMonth",, "T")&RIGHT(RTD("cqg.rtd",,"ContractData","ZSE?"&$A$21,"Symbol",,"T"),1) -> SEP9 | L11: =RTD("cqg.rtd",,"ContractData","ZCE?"&$A$12,"contractMonth",,"T")&RIGHT(RTD("cqg.rtd",,"ContractData","ZCE?"&$A$12,"Symbol",,"T"),1) -> JUL8 | M11: =RTD("cqg.rtd", ,"ContractData","ZCE?"&$A$13, "contractMonth",, "T")&RIGHT(RTD("cqg.rtd",,"ContractData","ZCE?"&$A$13,"Symbol",,"T"),1) -> SEP8 | N11: =RTD("cqg.rtd", ,"ContractData","ZCE?"&$A$14, "contractMonth",, "T")&RIGHT(RTD("cqg.rtd",,"ContractData","ZCE?"&$A$14,"Symbol",,"T"),1) -> DEC8 | O11: =RTD("cqg.rtd", ,"ContractData","ZCE?"&$A$15, "contractMonth",, "T")&RIGHT(RTD("cqg.rtd",,"ContractData","ZCE?"&$A$15,"Symbol",,"T"),1) -> MAR9 | P11: =RTD("cqg.rtd", ,"ContractData","ZCE?"&$A$16, "contractMonth",, "T")&RIGHT(RTD("cqg.rtd",,"ContractData","ZCE?"&$A$16,"Symbol",,"T"),1) -> MAY9 | Q11: =RTD("cqg.rtd", ,"ContractData","ZCE?"&$A$17, "contractMonth",, "T")&RIGHT(RTD("cqg.rtd",,"ContractData","ZCE?"&$A$17,"Symbol",,"T"),1) -> JUL9 | R11: =RTD("cqg.rtd", ,"ContractData","ZCE?"&$A$18, "contractMonth",, "T")&RIGHT(RTD("cqg.rtd",,"ContractData","ZCE?"&$A$18,"Symbol",,"T"),1) -> SEP9 | S11: =RTD("cqg.rtd", ,"ContractData","ZCE?"&$A$19, "contractMonth",, "T")&RIGHT(RTD("cqg.rtd",,"ContractData","ZCE?"&$A$19,"Symbol",,"T"),1) -> DEC9 | T11: =RTD("cqg.rtd", ,"ContractData","ZCE?"&$A$20, "contractMonth",, "T")&RIGHT(RTD("cqg.rtd",,"ContractData","ZCE?"&$A$20,"Symbol",,"T"),1) -> MAR0 | U11: =RTD("cqg.rtd", ,"ContractData","ZCE?"&$A$21, "contractMonth",, "T")&RIGHT(RTD("cqg.rtd",,"ContractData","ZCE?"&$A$21,"Symbol",,"T"),1) -> MAY0 | V11: =RTD("cqg.rtd", ,"ContractData","ZWA?"&$A$12, "contractMonth",, "T") -> JUL | W11: =RTD("cqg.rtd", ,"ContractData","ZWA?"&$A$13, "contractMonth",, "T") -> SEP | X11: =RTD("cqg.rtd", ,"ContractData","ZWA?"&$A$14, "contractMonth",, "T") -> DEC | Y11: =RTD("cqg.rtd", ,"ContractData","ZWA?"&$A$15, "contractMonth",, "T") -> MAR | Z11: =RTD("cqg.rtd", ,"ContractData","ZWA?"&$A$16, "contractMonth",, "T") -> MAY | AA11: =RTD("cqg.rtd", ,"ContractData","ZWA?"&$A$17, "contractMonth",, "T") -> JUL | AB11: =RTD("cqg.rtd", ,"ContractData","ZWA?"&$A$18, "contractMonth",, "T") -> SEP | AC11: =RTD("cqg.rtd", ,"ContractData","ZWA?"&$A$19, "contractMonth",, "T") -> DEC | AD11: =RTD("cqg.rtd", ,"ContractData","ZWA?"&$A$20, "contractMonth",, "T") -> MAR | AE11: =RTD("cqg.rtd", ,"ContractData","ZWA?"&$A$21, "contractMonth",, "T") -> MAY
A12: 1 | B12: ="A "&TEXT(RTD("cqg.rtd",,"ContractData","ZSE?"&$A$12,"Ask",,"T"),"#.00") -> A 857.25 | C12: ="A "&TEXT(RTD("cqg.rtd", ,"ContractData","ZSE?"&$A$13, "Ask",, "T"),"#.00") -> A 861.00 | D12: ="A "&TEXT(RTD("cqg.rtd", ,"ContractData","ZSE?"&$A$14, "Ask",, "T"),"#.00") -> A 866.50 | E12: ="A "&TEXT(RTD("cqg.rtd", ,"ContractData","ZSE?"&$A$15, "Ask",, "T"),"#.00") -> A 877.75 | F12: ="A "&TEXT(RTD("cqg.rtd", ,"ContractData","ZSE?"&$A$16, "Ask",, "T"),"#.00") -> A 887.75 | G12: ="A "&TEXT(RTD("cqg.rtd", ,"ContractData","ZSE?"&$A$17, "Ask",, "T"),"#.00") -> A 895.25 | H12: ="A "&TEXT(RTD("cqg.rtd", ,"ContractData","ZSE?"&$A$18, "Ask",, "T"),"#.00") -> A 904.25 | I12: ="A "&TEXT(RTD("cqg.rtd", ,"ContractData","ZSE?"&$A$19, "Ask",, "T"),"#.00") -> A 913.00 | J12: ="A "&TEXT(RTD("cqg.rtd", ,"ContractData","ZSE?"&$A$20, "Ask",, "T"),"#.00") -> A 913.00 | K12: ="A "&TEXT(RTD("cqg.rtd", ,"ContractData","ZSE?"&$A$21, "Ask",, "T"),"#.00") -> A 907.25 | L12: ="A "&TEXT(RTD("cqg.rtd", ,"ContractData","ZCE?"&$A$12, "Ask",, "T"),"#.00") -> A 345.00 | M12: ="A "&TEXT(RTD("cqg.rtd", ,"ContractData","ZCE?"&$A$13, "Ask",, "T"),"#.00") -> A 353.50 | N12: ="A "&TEXT(RTD("cqg.rtd", ,"ContractData","ZCE?"&$A$14, "Ask",, "T"),"#.00") -> A 366.50 | O12: ="A "&TEXT(RTD("cqg.rtd", ,"ContractData","ZCE?"&$A$15, "Ask",, "T"),"#.00") -> A 377.00 | P12: ="A "&TEXT(RTD("cqg.rtd", ,"ContractData","ZCE?"&$A$16, "Ask",, "T"),"#.00") -> A 383.75 | Q12: ="A "&TEXT(RTD("cqg.rtd", ,"ContractData","ZCE?"&$A$17, "Ask",, "T"),"#.00") -> A 390.25 | R12: ="A "&TEXT(RTD("cqg.rtd", ,"ContractData","ZCE?"&$A$18, "Ask",, "T"),"#.00") -> A 388.75 | S12: ="A "&TEXT(RTD("cqg.rtd", ,"ContractData","ZCE?"&$A$19, "Ask",, "T"),"#.00") -> A 394.00 | T12: ="A "&TEXT(RTD("cqg.rtd", ,"ContractData","ZCE?"&$A$20, "Ask",, "T"),"#.00") -> A 403.75 | U12: ="A "&TEXT(RTD("cqg.rtd", ,"ContractData","ZCE?"&$A$21, "Ask",, "T"),"#.00") -> A 410.25 | V12: ="A "&TEXT(RTD("cqg.rtd", ,"ContractData","ZWA?"&$A$12, "Ask",, "T"),"#.00") -> A 507.25 | W12: ="A "&TEXT(RTD("cqg.rtd", ,"ContractData","ZWA?"&$A$13, "Ask",, "T"),"#.00") -> A 507.50 | X12: ="A "&TEXT(RTD("cqg.rtd", ,"ContractData","ZWA?"&$A$14, "Ask",, "T"),"#.00") -> A 523.75 | Y12: ="A "&TEXT(RTD("cqg.rtd", ,"ContractData","ZWA?"&$A$15, "Ask",, "T"),"#.00") -> A 538.50 | Z12: ="A "&TEXT(RTD("cqg.rtd", ,"ContractData","ZWA?"&$A$16, "Ask",, "T"),"#.00") -> A 548.00 | AA12: ="A "&TEXT(RTD("cqg.rtd", ,"ContractData","ZWA?"&$A$17, "Ask",, "T"),"#.00") -> A 552.00 | AB12: ="A "&TEXT(RTD("cqg.rtd", ,"ContractData","ZWA?"&$A$18, "Ask",, "T"),"#.00") -> A 560.75 | AC12: ="A "&TEXT(RTD("cqg.rtd", ,"ContractData","ZWA?"&$A$19, "Ask",, "T"),"#.00") -> A 573.25 | AD12: ="A "&TEXT(RTD("cqg.rtd", ,"ContractData","ZWA?"&$A$20, "Ask",, "T"),"#.00") -> A 582.50 | AE12: ="A "&TEXT(RTD("cqg.rtd", ,"ContractData","ZWA?"&$A$21, "Ask",, "T"),"#.00") -> A 588.75
A13: 2 | B13: ="B "&TEXT(RTD("cqg.rtd", ,"ContractData","ZSE?"&$A$12, "Bid",, "T"),"#.00") -> B 856.50 | C13: ="B "&TEXT(RTD("cqg.rtd", ,"ContractData","ZSE?"&$A$13, "Bid",, "T"),"#.00") -> B 860.75 | D13: ="B "&TEXT(RTD("cqg.rtd", ,"ContractData","ZSE?"&$A$14, "Bid",, "T"),"#.00") -> B 866.25 | E13: ="B "&TEXT(RTD("cqg.rtd", ,"ContractData","ZSE?"&$A$15, "Bid",, "T"),"#.00") -> B 877.50 | F13: ="B "&TEXT(RTD("cqg.rtd", ,"ContractData","ZSE?"&$A$16, "Bid",, "T"),"#.00") -> B 887.50 | G13: ="B "&TEXT(RTD("cqg.rtd", ,"ContractData","ZSE?"&$A$17, "Bid",, "T"),"#.00") -> B 895.00 | H13: ="B "&TEXT(RTD("cqg.rtd", ,"ContractData","ZSE?"&$A$18, "Bid",, "T"),"#.00") -> B 904.00 | I13: ="B "&TEXT(RTD("cqg.rtd", ,"ContractData","ZSE?"&$A$19, "Bid",, "T"),"#.00") -> B 912.75 | J13: ="B "&TEXT(RTD("cqg.rtd", ,"ContractData","ZSE?"&$A$20, "Bid",, "T"),"#.00") -> B 912.25 | K13: ="B "&TEXT(RTD("cqg.rtd", ,"ContractData","ZSE?"&$A$21, "Bid",, "T"),"#.00") -> B 903.25 | L13: ="B "&TEXT(RTD("cqg.rtd", ,"ContractData","ZCE?"&$A$12, "Bid",, "T"),"#.00") -> B 344.50 | M13: ="B "&TEXT(RTD("cqg.rtd", ,"ContractData","ZCE?"&$A$13, "Bid",, "T"),"#.00") -> B 353.25 | N13: ="B "&TEXT(RTD("cqg.rtd", ,"ContractData","ZCE?"&$A$14, "Bid",, "T"),"#.00") -> B 366.25 | O13: ="B "&TEXT(RTD("cqg.rtd", ,"ContractData","ZCE?"&$A$15, "Bid",, "T"),"#.00") -> B 376.75 | P13: ="B "&TEXT(RTD("cqg.rtd", ,"ContractData","ZCE?"&$A$16, "Bid",, "T"),"#.00") -> B 383.50 | Q13: ="B "&TEXT(RTD("cqg.rtd", ,"ContractData","ZCE?"&$A$17, "Bid",, "T"),"#.00") -> B 389.75 | R13: ="B "&TEXT(RTD("cqg.rtd", ,"ContractData","ZCE?"&$A$18, "Bid",, "T"),"#.00") -> B 388.50 | S13: ="B "&TEXT(RTD("cqg.rtd", ,"ContractData","ZCE?"&$A$19, "Bid",, "T"),"#.00") -> B 393.75 | T13: ="B "&TEXT(RTD("cqg.rtd", ,"ContractData","ZCE?"&$A$20, "Bid",, "T"),"#.00") -> B 403.25 | U13: ="B "&TEXT(RTD("cqg.rtd", ,"ContractData","ZCE?"&$A$21, "Bid",, "T"),"#.00") -> B 409.25 | V13: ="B "&TEXT(RTD("cqg.rtd", ,"ContractData","ZWA?"&$A$12, "Bid",, "T"),"#.00") -> B 503.00 | W13: ="B "&TEXT(RTD("cqg.rtd", ,"ContractData","ZWA?"&$A$13, "Bid",, "T"),"#.00") -> B 507.25 | X13: ="B "&TEXT(RTD("cqg.rtd", ,"ContractData","ZWA?"&$A$14, "Bid",, "T"),"#.00") -> B 523.25 | Y13: ="B "&TEXT(RTD("cqg.rtd", ,"ContractData","ZWA?"&$A$15, "Bid",, "T"),"#.00") -> B 538.00 | Z13: ="B "&TEXT(RTD("cqg.rtd", ,"ContractData","ZWA?"&$A$16, "Bid",, "T"),"#.00") -> B 547.50 | AA13: ="B "&TEXT(RTD("cqg.rtd", ,"ContractData","ZWA?"&$A$17, "Bid",, "T"),"#.00") -> B 551.50 | AB13: ="B "&TEXT(RTD("cqg.rtd", ,"ContractData","ZWA?"&$A$18, "Bid",, "T"),"#.00") -> B 560.00 | AC13: ="B "&TEXT(RTD("cqg.rtd", ,"ContractData","ZWA?"&$A$19, "Bid",, "T"),"#.00") -> B 572.50 | AD13: ="B "&TEXT(RTD("cqg.rtd", ,"ContractData","ZWA?"&$A$20, "Bid",, "T"),"#.00") -> B 580.75 | AE13: ="B "&TEXT(RTD("cqg.rtd", ,"ContractData","ZWA?"&$A$21, "Bid",, "T"),"#.00") -> B 581.75
A14: 3 | B14: =IF(RTD("cqg.rtd",,"ContractData","ZSE?"&$A$12,"LastTradeToday",,"T")="","S "&RTD("cqg.rtd",,"ContractData","ZSE?"&$A$12,"Settlement",,"T"),TEXT(RTD("cqg.rtd",,"ContractData","ZSE?"&$A$12,"LastTradeToday",,"T"),"#.00")) -> 861.50 | C14: =IF(RTD("cqg.rtd",,"ContractData","ZSE?"&$A$13,"LastTradeToday",,"T")="","S "&RTD("cqg.rtd",,"ContractData","ZSE?"&$A$13,"Settlement",,"T"),TEXT(RTD("cqg.rtd",,"ContractData","ZSE?"&$A$13,"LastTradeToday",,"T"),"#.00")) -> 861.00 | D14: =IF(RTD("cqg.rtd",,"ContractData","ZSE?"&$A$14,"LastTradeToday",,"T")="","S "&RTD("cqg.rtd",,"ContractData","ZSE?"&$A$14,"Settlement",,"T"),TEXT(RTD("cqg.rtd",,"ContractData","ZSE?"&$A$14,"LastTradeToday",,"T"),"#.00")) -> 866.50 | E14: =IF(RTD("cqg.rtd",,"ContractData","ZSE?"&$A$15,"LastTradeToday",,"T")="","S "&RTD("cqg.rtd",,"ContractData","ZSE?"&$A$15,"Settlement",,"T"),TEXT(RTD("cqg.rtd",,"ContractData","ZSE?"&$A$15,"LastTradeToday",,"T"),"#.00")) -> 877.75 | F14: =IF(RTD("cqg.rtd",,"ContractData","ZSE?"&$A$16,"LastTradeToday",,"T")="","S "&RTD("cqg.rtd",,"ContractData","ZSE?"&$A$16,"Settlement",,"T"),TEXT(RTD("cqg.rtd",,"ContractData","ZSE?"&$A$16,"LastTradeToday",,"T"),"#.00")) -> 887.75 | G14: =IF(RTD("cqg.rtd",,"ContractData","ZSE?"&$A$17,"LastTradeToday",,"T")="","S "&RTD("cqg.rtd",,"ContractData","ZSE?"&$A$17,"Settlement",,"T"),TEXT(RTD("cqg.rtd",,"ContractData","ZSE?"&$A$17,"LastTradeToday",,"T"),"#.00")) -> 895.00 | H14: =IF(RTD("cqg.rtd",,"ContractData","ZSE?"&$A$18,"LastTradeToday",,"T")="","S "&RTD("cqg.rtd",,"ContractData","ZSE?"&$A$18,"Settlement",,"T"),TEXT(RTD("cqg.rtd",,"ContractData","ZSE?"&$A$18,"LastTradeToday",,"T"),"#.00")) -> 904.00 | I14: =IF(RTD("cqg.rtd",,"ContractData","ZSE?"&$A$19,"LastTradeToday",,"T")="","S "&RTD("cqg.rtd",,"ContractData","ZSE?"&$A$19,"Settlement",,"T"),TEXT(RTD("cqg.rtd",,"ContractData","ZSE?"&$A$19,"LastTradeToday",,"T"),"#.00")) -> 912.75 | J14: =IF(RTD("cqg.rtd",,"ContractData","ZSE?"&$A$20,"LastTradeToday",,"T")="","S "&RTD("cqg.rtd",,"ContractData","ZSE?"&$A$20,"Settlement",,"T"),TEXT(RTD("cqg.rtd",,"ContractData","ZSE?"&$A$20,"LastTradeToday",,"T"),"#.00")) -> S 928 | K14: =IF(RTD("cqg.rtd",,"ContractData","ZSE?"&$A$21,"LastTradeToday",,"T")="","S "&RTD("cqg.rtd",,"ContractData","ZSE?"&$A$21,"Settlement",,"T"),TEXT(RTD("cqg.rtd",,"ContractData","ZSE?"&$A$21,"LastTradeToday",,"T"),"#.00")) -> S 920 | L14: =IF(RTD("cqg.rtd",,"ContractData","ZCE?"&$A$12,"LastTradeToday",,"T")="","S "&RTD("cqg.rtd",,"ContractData","ZCE?"&$A$12,"Settlement",,"T"),TEXT(RTD("cqg.rtd",,"ContractData","ZCE?"&$A$12,"LastTradeToday",,"T"),"#.00")) -> 345.00 | M14: =IF(RTD("cqg.rtd",,"ContractData","ZCE?"&$A$13,"LastTradeToday",,"T")="","S "&RTD("cqg.rtd",,"ContractData","ZCE?"&$A$13,"Settlement",,"T"),TEXT(RTD("cqg.rtd",,"ContractData","ZCE?"&$A$13,"LastTradeToday",,"T"),"#.00")) -> 353.50 | N14: =IF(RTD("cqg.rtd",,"ContractData","ZCE?"&$A$14,"LastTradeToday",,"T")="","S "&RTD("cqg.rtd",,"ContractData","ZCE?"&$A$14,"Settlement",,"T"),TEXT(RTD("cqg.rtd",,"ContractData","ZCE?"&$A$14,"LastTradeToday",,"T"),"#.00")) -> 366.50 | O14: =IF(RTD("cqg.rtd",,"ContractData","ZCE?"&$A$15,"LastTradeToday",,"T")="","S "&RTD("cqg.rtd",,"ContractData","ZCE?"&$A$15,"Settlement",,"T"),TEXT(RTD("cqg.rtd",,"ContractData","ZCE?"&$A$15,"LastTradeToday",,"T"),"#.00")) -> 376.75 | P14: =IF(RTD("cqg.rtd",,"ContractData","ZCE?"&$A$16,"LastTradeToday",,"T")="","S "&RTD("cqg.rtd",,"ContractData","ZCE?"&$A$16,"Settlement",,"T"),TEXT(RTD("cqg.rtd",,"ContractData","ZCE?"&$A$16,"LastTradeToday",,"T"),"#.00")) -> 384.00 | Q14: =IF(RTD("cqg.rtd",,"ContractData","ZCE?"&$A$17,"LastTradeToday",,"T")="","S "&RTD("cqg.rtd",,"ContractData","ZCE?"&$A$17,"Settlement",,"T"),TEXT(RTD("cqg.rtd",,"ContractData","ZCE?"&$A$17,"LastTradeToday",,"T"),"#.00")) -> 390.00 | R14: =IF(RTD("cqg.rtd",,"ContractData","ZCE?"&$A$18,"LastTradeToday",,"T")="","S "&RTD("cqg.rtd",,"ContractData","ZCE?"&$A$18,"Settlement",,"T"),TEXT(RTD("cqg.rtd",,"ContractData","ZCE?"&$A$18,"LastTradeToday",,"T"),"#.00")) -> 389.00 | S14: =IF(RTD("cqg.rtd",,"ContractData","ZCE?"&$A$19,"LastTradeToday",,"T")="","S "&RTD("cqg.rtd",,"ContractData","ZCE?"&$A$19,"Settlement",,"T"),TEXT(RTD("cqg.rtd",,"ContractData","ZCE?"&$A$19,"LastTradeToday",,"T"),"#.00")) -> 394.00 | T14: =IF(RTD("cqg.rtd",,"ContractData","ZCE?"&$A$20,"LastTradeToday",,"T")="","S "&RTD("cqg.rtd",,"ContractData","ZCE?"&$A$20,"Settlement",,"T"),TEXT(RTD("cqg.rtd",,"ContractData","ZCE?"&$A$20,"LastTradeToday",,"T"),"#.00")) -> 405.50 | U14: =IF(RTD("cqg.rtd",,"ContractData","ZCE?"&$A$21,"LastTradeToday",,"T")="","S "&RTD("cqg.rtd",,"ContractData","ZCE?"&$A$21,"Settlement",,"T"),TEXT(RTD("cqg.rtd",,"ContractData","ZCE?"&$A$21,"LastTradeToday",,"T"),"#.00")) -> S 414.75 | V14: =IF(RTD("cqg.rtd",,"ContractData","ZWA?"&$A$12,"LastTradeToday",,"T")="","S "&RTD("cqg.rtd",,"ContractData","ZWA?"&$A$12,"Settlement",,"T"),TEXT(RTD("cqg.rtd",,"ContractData","ZWA?"&$A$12,"LastTradeToday",,"T"),"#.00")) -> 509.50 | W14: =IF(RTD("cqg.rtd",,"ContractData","ZWA?"&$A$13,"LastTradeToday",,"T")="","S "&RTD("cqg.rtd",,"ContractData","ZWA?"&$A$13,"Settlement",,"T"),TEXT(RTD("cqg.rtd",,"ContractData","ZWA?"&$A$13,"LastTradeToday",,"T"),"#.00")) -> 507.25 | X14: =IF(RTD("cqg.rtd",,"ContractData","ZWA?"&$A$14,"LastTradeToday",,"T")="","S "&RTD("cqg.rtd",,"ContractData","ZWA?"&$A$14,"Settlement",,"T"),TEXT(RTD("cqg.rtd",,"ContractData","ZWA?"&$A$14,"LastTradeToday",,"T"),"#.00")) -> 523.50 | Y14: =IF(RTD("cqg.rtd",,"ContractData","ZWA?"&$A$15,"LastTradeToday",,"T")="","S "&RTD("cqg.rtd",,"ContractData","ZWA?"&$A$15,"Settlement",,"T"),TEXT(RTD("cqg.rtd",,"ContractData","ZWA?"&$A$15,"LastTradeToday",,"T"),"#.00")) -> 538.25 | Z14: =IF(RTD("cqg.rtd",,"ContractData","ZWA?"&$A$16,"LastTradeToday",,"T")="","S "&RTD("cqg.rtd",,"ContractData","ZWA?"&$A$16,"Settlement",,"T"),TEXT(RTD("cqg.rtd",,"ContractData","ZWA?"&$A$16,"LastTradeToday",,"T"),"#.00")) -> 547.75 | AA14: =IF(RTD("cqg.rtd",,"ContractData","ZWA?"&$A$17,"LastTradeToday",,"T")="","S "&RTD("cqg.rtd",,"ContractData","ZWA?"&$A$17,"Settlement",,"T"),TEXT(RTD("cqg.rtd",,"ContractData","ZWA?"&$A$17,"LastTradeToday",,"T"),"#.00")) -> 552.50 | AB14: =IF(RTD("cqg.rtd",,"ContractData","ZWA?"&$A$18,"LastTradeToday",,"T")="","S "&RTD("cqg.rtd",,"ContractData","ZWA?"&$A$18,"Settlement",,"T"),TEXT(RTD("cqg.rtd",,"ContractData","ZWA?"&$A$18,"LastTradeToday",,"T"),"#.00")) -> 560.25 | AC14: =IF(RTD("cqg.rtd",,"ContractData","ZWA?"&$A$19,"LastTradeToday",,"T")="","S "&RTD("cqg.rtd",,"ContractData","ZWA?"&$A$19,"Settlement",,"T"),TEXT(RTD("cqg.rtd",,"ContractData","ZWA?"&$A$19,"LastTradeToday",,"T"),"#.00")) -> 573.50 | AD14: =IF(RTD("cqg.rtd",,"ContractData","ZWA?"&$A$20,"LastTradeToday",,"T")="","S "&RTD("cqg.rtd",,"ContractData","ZWA?"&$A$20,"Settlement",,"T"),TEXT(RTD("cqg.rtd",,"ContractData","ZWA?"&$A$20,"LastTradeToday",,"T"),"#.00")) -> S 587.75 | AE14: =IF(RTD("cqg.rtd",,"ContractData","ZWA?"&$A$21,"LastTradeToday",,"T")="","S "&RTD("cqg.rtd",,"ContractData","ZWA?"&$A$21,"Settlement",,"T"),TEXT(RTD("cqg.rtd",,"ContractData","ZWA?"&$A$21,"LastTradeToday",,"T"),"#.00")) -> S 592
A15: 4 | B15: =IF(RTD("cqg.rtd", ,"ContractData","ZSE?"&$A$12, "NetLastQuoteToday",, "T")="","NC "&TEXT(RTD("cqg.rtd",,"StudyData","ZSE?"&$A$12,"Bar",,"Close","D","-1",,,,,"T")-RTD("cqg.rtd",,"StudyData","ZSE?"&$A$12,"Bar",,"Close","D","-2",,,,,"T"),"#.00"),"NC "&TEXT(RTD("cqg.rtd", ,"ContractData","ZSE?"&$A$12, "NetLastQuoteToday",, "T"),"#.00")) -> NC -16.75 | C15: =IF(RTD("cqg.rtd", ,"ContractData","ZSE?"&$A$13, "NetLastQuoteToday",, "T")="","NC "&TEXT(RTD("cqg.rtd",,"StudyData","ZSE?"&$A$13,"Bar",,"Close","D","-1",,,,,"T")-RTD("cqg.rtd",,"StudyData","ZSE?"&$A$13,"Bar",,"Close","D","-2",,,,,"T"),"#.00"),"NC "&TEXT(RTD("cqg.rtd", ,"ContractData","ZSE?"&$A$13, "NetLastQuoteToday",, "T"),"#.00")) -> NC -16.50 | D15: =IF(RTD("cqg.rtd", ,"ContractData","ZSE?"&$A$14, "NetLastQuoteToday",, "T")="","NC "&TEXT(RTD("cqg.rtd",,"StudyData","ZSE?"&$A$14,"Bar",,"Close","D","-1",,,,,"T")-RTD("cqg.rtd",,"StudyData","ZSE?"&$A$14,"Bar",,"Close","D","-2",,,,,"T"),"#.00"),"NC "&TEXT(RTD("cqg.rtd", ,"ContractData","ZSE?"&$A$14, "NetLastQuoteToday",, "T"),"#.00")) -> NC -16.75 | E15: =IF(RTD("cqg.rtd", ,"ContractData","ZSE?"&$A$15, "NetLastQuoteToday",, "T")="","NC "&TEXT(RTD("cqg.rtd",,"StudyData","ZSE?"&$A$15,"Bar",,"Close","D","-1",,,,,"T")-RTD("cqg.rtd",,"StudyData","ZSE?"&$A$15,"Bar",,"Close","D","-2",,,,,"T"),"#.00"),"NC "&TEXT(RTD("cqg.rtd", ,"ContractData","ZSE?"&$A$15, "NetLastQuoteToday",, "T"),"#.00")) -> NC -17.00 | F15: =IF(RTD("cqg.rtd", ,"ContractData","ZSE?"&$A$16, "NetLastQuoteToday",, "T")="","NC "&TEXT(RTD("cqg.rtd",,"StudyData","ZSE?"&$A$16,"Bar",,"Close","D","-1",,,,,"T")-RTD("cqg.rtd",,"StudyData","ZSE?"&$A$16,"Bar",,"Close","D","-2",,,,,"T"),"#.00"),"NC "&TEXT(RTD("cqg.rtd", ,"ContractData","ZSE?"&$A$16, "NetLastQuoteToday",, "T"),"#.00")) -> NC -16.25 | G15: =IF(RTD("cqg.rtd", ,"ContractData","ZSE?"&$A$17, "NetLastQuoteToday",, "T")="","NC "&TEXT(RTD("cqg.rtd",,"StudyData","ZSE?"&$A$17,"Bar",,"Close","D","-1",,,,,"T")-RTD("cqg.rtd",,"StudyData","ZSE?"&$A$17,"Bar",,"Close","D","-2",,,,,"T"),"#.00"),"NC "&TEXT(RTD("cqg.rtd", ,"ContractData","ZSE?"&$A$17, "NetLastQuoteToday",, "T"),"#.00")) -> NC -15.75 | H15: =IF(RTD("cqg.rtd", ,"ContractData","ZSE?"&$A$18, "NetLastQuoteToday",, "T")="","NC "&TEXT(RTD("cqg.rtd",,"StudyData","ZSE?"&$A$18,"Bar",,"Close","D","-1",,,,,"T")-RTD("cqg.rtd",,"StudyData","ZSE?"&$A$18,"Bar",,"Close","D","-2",,,,,"T"),"#.00"),"NC "&TEXT(RTD("cqg.rtd", ,"ContractData","ZSE?"&$A$18, "NetLastQuoteToday",, "T"),"#.00")) -> NC -15.50 | I15: =IF(RTD("cqg.rtd", ,"ContractData","ZSE?"&$A$19, "NetLastQuoteToday",, "T")="","NC "&TEXT(RTD("cqg.rtd",,"StudyData","ZSE?"&$A$19,"Bar",,"Close","D","-1",,,,,"T")-RTD("cqg.rtd",,"StudyData","ZSE?"&$A$19,"Bar",,"Close","D","-2",,,,,"T"),"#.00"),"NC "&TEXT(RTD("cqg.rtd", ,"ContractData","ZSE?"&$A$19, "NetLastQuoteToday",, "T"),"#.00")) -> NC -15.50 | J15: =IF(RTD("cqg.rtd", ,"ContractData","ZSE?"&$A$20, "NetLastQuoteToday",, "T")="","NC "&TEXT(RTD("cqg.rtd",,"StudyData","ZSE?"&$A$20,"Bar",,"Close","D","-1",,,,,"T")-RTD("cqg.rtd",,"StudyData","ZSE?"&$A$20,"Bar",,"Close","D","-2",,,,,"T"),"#.00"),"NC "&TEXT(RTD("cqg.rtd", ,"ContractData","ZSE?"&$A$20, "NetLastQuoteToday",, "T"),"#.00")) -> NC -15.00 | K15: =IF(RTD("cqg.rtd", ,"ContractData","ZSE?"&$A$21, "NetLastQuoteToday",, "T")="","NC "&TEXT(RTD("cqg.rtd",,"StudyData","ZSE?"&$A$21,"Bar",,"Close","D","-1",,,,,"T")-RTD("cqg.rtd",,"StudyData","ZSE?"&$A$21,"Bar",,"Close","D","-2",,,,,"T"),"#.00"),"NC "&TEXT(RTD("cqg.rtd", ,"ContractData","ZSE?"&$A$21, "NetLastQuoteToday",, "T"),"#.00")) -> NC -12.75 | L15: =IF(RTD("cqg.rtd", ,"ContractData","ZCE?"&$A$12, "NetLastQuoteToday",, "T")="","NC "&TEXT(RTD("cqg.rtd",,"StudyData","ZCE?"&$A$12,"Bar",,"Close","D","-1",,,,,"T")-RTD("cqg.rtd",,"StudyData","ZCE?"&$A$12,"Bar",,"Close","D","-2",,,,,"T"),"#.00"),"NC "&TEXT(RTD("cqg.rtd", ,"ContractData","ZCE?"&$A$12, "NetLastQuoteToday",, "T"),"#.00")) -> NC -6.75 | M15: =IF(RTD("cqg.rtd", ,"ContractData","ZCE?"&$A$13, "NetLastQuoteToday",, "T")="","NC "&TEXT(RTD("cqg.rtd",,"StudyData","ZCE?"&$A$13,"Bar",,"Close","D","-1",,,,,"T")-RTD("cqg.rtd",,"StudyData","ZCE?"&$A$13,"Bar",,"Close","D","-2",,,,,"T"),"#.00"),"NC "&TEXT(RTD("cqg.rtd", ,"ContractData","ZCE?"&$A$13, "NetLastQuoteToday",, "T"),"#.00")) -> NC -6.75 | N15: =IF(RTD("cqg.rtd", ,"ContractData","ZCE?"&$A$14, "NetLastQuoteToday",, "T")="","NC "&TEXT(RTD("cqg.rtd",,"StudyData","ZCE?"&$A$14,"Bar",,"Close","D","-1",,,,,"T")-RTD("cqg.rtd",,"StudyData","ZCE?"&$A$14,"Bar",,"Close","D","-2",,,,,"T"),"#.00"),"NC "&TEXT(RTD("cqg.rtd", ,"ContractData","ZCE?"&$A$14, "NetLastQuoteToday",, "T"),"#.00")) -> NC -6.75 | O15: =IF(RTD("cqg.rtd", ,"ContractData","ZCE?"&$A$15, "NetLastQuoteToday",, "T")="","NC "&TEXT(RTD("cqg.rtd",,"StudyData","ZCE?"&$A$15,"Bar",,"Close","D","-1",,,,,"T")-RTD("cqg.rtd",,"StudyData","ZCE?"&$A$15,"Bar",,"Close","D","-2",,,,,"T"),"#.00"),"NC "&TEXT(RTD("cqg.rtd", ,"ContractData","ZCE?"&$A$15, "NetLastQuoteToday",, "T"),"#.00")) -> NC -6.50 | P15: =IF(RTD("cqg.rtd", ,"ContractData","ZCE?"&$A$16, "NetLastQuoteToday",, "T")="","NC "&TEXT(RTD("cqg.rtd",,"StudyData","ZCE?"&$A$16,"Bar",,"Close","D","-1",,,,,"T")-RTD("cqg.rtd",,"StudyData","ZCE?"&$A$16,"Bar",,"Close","D","-2",,,,,"T"),"#.00"),"NC "&TEXT(RTD("cqg.rtd", ,"ContractData","ZCE?"&$A$16, "NetLastQuoteToday",, "T"),"#.00")) -> NC -6.25 | Q15: =IF(RTD("cqg.rtd", ,"ContractData","ZCE?"&$A$17, "NetLastQuoteToday",, "T")="","NC "&TEXT(RTD("cqg.rtd",,"StudyData","ZCE?"&$A$17,"Bar",,"Close","D","-1",,,,,"T")-RTD("cqg.rtd",,"StudyData","ZCE?"&$A$17,"Bar",,"Close","D","-2",,,,,"T"),"#.00"),"NC "&TEXT(RTD("cqg.rtd", ,"ContractData","ZCE?"&$A$17, "NetLastQuoteToday",, "T"),"#.00")) -> NC -6.25 | R15: =IF(RTD("cqg.rtd", ,"ContractData","ZCE?"&$A$18, "NetLastQuoteToday",, "T")="","NC "&TEXT(RTD("cqg.rtd",,"StudyData","ZCE?"&$A$18,"Bar",,"Close","D","-1",,,,,"T")-RTD("cqg.rtd",,"StudyData","ZCE?"&$A$18,"Bar",,"Close","D","-2",,,,,"T"),"#.00"),"NC "&TEXT(RTD("cqg.rtd", ,"ContractData","ZCE?"&$A$18, "NetLastQuoteToday",, "T"),"#.00")) -> NC -5.75 | S15: =IF(RTD("cqg.rtd", ,"ContractData","ZCE?"&$A$19, "NetLastQuoteToday",, "T")="","NC "&TEXT(RTD("cqg.rtd",,"StudyData","ZCE?"&$A$19,"Bar",,"Close","D","-1",,,,,"T")-RTD("cqg.rtd",,"StudyData","ZCE?"&$A$19,"Bar",,"Close","D","-2",,,,,"T"),"#.00"),"NC "&TEXT(RTD("cqg.rtd", ,"ContractData","ZCE?"&$A$19, "NetLastQuoteToday",, "T"),"#.00")) -> NC -5.00 | T15: =IF(RTD("cqg.rtd", ,"ContractData","ZCE?"&$A$20, "NetLastQuoteToday",, "T")="","NC "&TEXT(RTD("cqg.rtd",,"StudyData","ZCE?"&$A$20,"Bar",,"Close","D","-1",,,,,"T")-RTD("cqg.rtd",,"StudyData","ZCE?"&$A$20,"Bar",,"Close","D","-2",,,,,"T"),"#.00"),"NC "&TEXT(RTD("cqg.rtd", ,"ContractData","ZCE?"&$A$20, "NetLastQuoteToday",, "T"),"#.00")) -> NC -5.00 | U15: =IF(RTD("cqg.rtd", ,"ContractData","ZCE?"&$A$21, "NetLastQuoteToday",, "T")="","NC "&TEXT(RTD("cqg.rtd",,"StudyData","ZCE?"&$A$21,"Bar",,"Close","D","-1",,,,,"T")-RTD("cqg.rtd",,"StudyData","ZCE?"&$A$21,"Bar",,"Close","D","-2",,,,,"T"),"#.00"),"NC "&TEXT(RTD("cqg.rtd", ,"ContractData","ZCE?"&$A$21, "NetLastQuoteToday",, "T"),"#.00")) -> NC -4.50 | V15: =IF(RTD("cqg.rtd", ,"ContractData","ZWA?"&$A$12, "NetLastQuoteToday",, "T")="","NC "&TEXT(RTD("cqg.rtd",,"StudyData","ZWA?"&$A$12,"Bar",,"Close","D","-1",,,,,"T")-RTD("cqg.rtd",,"StudyData","ZWA?"&$A$12,"Bar",,"Close","D","-2",,,,,"T"),"#.00"),"NC "&TEXT(RTD("cqg.rtd", ,"ContractData","ZWA?"&$A$12, "NetLastQuoteToday",, "T"),"#.00")) -> NC -5.50 | W15: =IF(RTD("cqg.rtd", ,"ContractData","ZWA?"&$A$13, "NetLastQuoteToday",, "T")="","NC "&TEXT(RTD("cqg.rtd",,"StudyData","ZWA?"&$A$13,"Bar",,"Close","D","-1",,,,,"T")-RTD("cqg.rtd",,"StudyData","ZWA?"&$A$13,"Bar",,"Close","D","-2",,,,,"T"),"#.00"),"NC "&TEXT(RTD("cqg.rtd", ,"ContractData","ZWA?"&$A$13, "NetLastQuoteToday",, "T"),"#.00")) -> NC -7.75 | X15: =IF(RTD("cqg.rtd", ,"ContractData","ZWA?"&$A$14, "NetLastQuoteToday",, "T")="","NC "&TEXT(RTD("cqg.rtd",,"StudyData","ZWA?"&$A$14,"Bar",,"Close","D","-1",,,,,"T")-RTD("cqg.rtd",,"StudyData","ZWA?"&$A$14,"Bar",,"Close","D","-2",,,,,"T"),"#.00"),"NC "&TEXT(RTD("cqg.rtd", ,"ContractData","ZWA?"&$A$14, "NetLastQuoteToday",, "T"),"#.00")) -> NC -6.75 | Y15: =IF(RTD("cqg.rtd", ,"ContractData","ZWA?"&$A$15, "NetLastQuoteToday",, "T")="","NC "&TEXT(RTD("cqg.rtd",,"StudyData","ZWA?"&$A$15,"Bar",,"Close","D","-1",,,,,"T")-RTD("cqg.rtd",,"StudyData","ZWA?"&$A$15,"Bar",,"Close","D","-2",,,,,"T"),"#.00"),"NC "&TEXT(RTD("cqg.rtd", ,"ContractData","ZWA?"&$A$15, "NetLastQuoteToday",, "T"),"#.00")) -> NC -5.25 | Z15: =IF(RTD("cqg.rtd", ,"ContractData","ZWA?"&$A$16, "NetLastQuoteToday",, "T")="","NC "&TEXT(RTD("cqg.rtd",,"StudyData","ZWA?"&$A$16,"Bar",,"Close","D","-1",,,,,"T")-RTD("cqg.rtd",,"StudyData","ZWA?"&$A$16,"Bar",,"Close","D","-2",,,,,"T"),"#.00"),"NC "&TEXT(RTD("cqg.rtd", ,"ContractData","ZWA?"&$A$16, "NetLastQuoteToday",, "T"),"#.00")) -> NC -5.50 | AA15: =IF(RTD("cqg.rtd", ,"ContractData","ZWA?"&$A$17, "NetLastQuoteToday",, "T")="","NC "&TEXT(RTD("cqg.rtd",,"StudyData","ZWA?"&$A$17,"Bar",,"Close","D","-1",,,,,"T")-RTD("cqg.rtd",,"StudyData","ZWA?"&$A$17,"Bar",,"Close","D","-2",,,,,"T"),"#.00"),"NC "&TEXT(RTD("cqg.rtd", ,"ContractData","ZWA?"&$A$17, "NetLastQuoteToday",, "T"),"#.00")) -> NC -6.00 | AB15: =IF(RTD("cqg.rtd", ,"ContractData","ZWA?"&$A$18, "NetLastQuoteToday",, "T")="","NC "&TEXT(RTD("cqg.rtd",,"StudyData","ZWA?"&$A$18,"Bar",,"Close","D","-1",,,,,"T")-RTD("cqg.rtd",,"StudyData","ZWA?"&$A$18,"Bar",,"Close","D","-2",,,,,"T"),"#.00"),"NC "&TEXT(RTD("cqg.rtd", ,"ContractData","ZWA?"&$A$18, "NetLastQuoteToday",, "T"),"#.00")) -> NC -6.00 | AC15: =IF(RTD("cqg.rtd", ,"ContractData","ZWA?"&$A$19, "NetLastQuoteToday",, "T")="","NC "&TEXT(RTD("cqg.rtd",,"StudyData","ZWA?"&$A$19,"Bar",,"Close","D","-1",,,,,"T")-RTD("cqg.rtd",,"StudyData","ZWA?"&$A$19,"Bar",,"Close","D","-2",,,,,"T"),"#.00"),"NC "&TEXT(RTD("cqg.rtd", ,"ContractData","ZWA?"&$A$19, "NetLastQuoteToday",, "T"),"#.00")) -> NC -5.75 | AD15: =IF(RTD("cqg.rtd", ,"ContractData","ZWA?"&$A$20, "NetLastQuoteToday",, "T")="","NC "&TEXT(RTD("cqg.rtd",,"StudyData","ZWA?"&$A$20,"Bar",,"Close","D","-1",,,,,"T")-RTD("cqg.rtd",,"StudyData","ZWA?"&$A$20,"Bar",,"Close","D","-2",,,,,"T"),"#.00"),"NC "&TEXT(RTD("cqg.rtd", ,"ContractData","ZWA?"&$A$20, "NetLastQuoteToday",, "T"),"#.00")) -> NC -7.00 | AE15: =IF(RTD("cqg.rtd", ,"ContractData","ZWA?"&$A$21, "NetLastQuoteToday",, "T")="","NC "&TEXT(RTD("cqg.rtd",,"StudyData","ZWA?"&$A$21,"Bar",,"Close","D","-1",,,,,"T")-RTD("cqg.rtd",,"StudyData","ZWA?"&$A$21,"Bar",,"Close","D","-2",,,,,"T"),"#.00"),"NC "&TEXT(RTD("cqg.rtd", ,"ContractData","ZWA?"&$A$21, "NetLastQuoteToday",, "T"),"#.00")) -> NC -10.25
A16: 5
A17: 6
A18: 7
A19: 8
A20: 9
A21: 10
B27: Soybeans | D27: Soybeans Blooming | G27: =IF(LEFT(B27,2)=LEFT(D27,2),"","Mismatch") ->  | I27: Get Data | K27: 7 | L27: 2 | M27: 2018 | N27: =" "&IF(WEEKDAY(DATE(M27,K27,L27))=1,"Sunday",IF(WEEKDAY(DATE(M27,K27,L27))=2,"Monday",IF(WEEKDAY(DATE(M27,K27,L27))=3,"Tuesday",IF(WEEKDAY(DATE(M27,K27,L27))=4,"Wednesday",IF(WEEKDAY(DATE(M27,K27,L27))=5,"Thursday",IF(WEEKDAY(DATE(M27,K27,L27))=6,"Friday",IF(WEEKDAY(DATE(M27,K27,L27))=7,"Saturday"))))))) -> Monday | P27: ="Date: "&D28&" "&D29 -> Date: July 1 2018 | U27: Get Data | W27: 7 | X27: 12 | Y27: 2010 | Z27: =IF(WEEKDAY(DATE(Y27,W27,X27))=1,"Sun",IF(WEEKDAY(DATE(Y27,W27,X27))=2,"Mon",IF(WEEKDAY(DATE(Y27,W27,X27))=3,"Tue",IF(WEEKDAY(DATE(Y27,W27,X27))=4,"Wed",IF(WEEKDAY(DATE(Y27,W27,X27))=5,"Thu",IF(WEEKDAY(DATE(Y27,W27,X27))=6,"Fri",IF(WEEKDAY(DATE(Y27,W27,X27))=7,"Sat"))))))) -> Mon | AA27: =IF(N28="Not","",N28&" Condition Difference") -> Soybeans Condition Difference
B28: =IF(D28="","Not Available",D27) -> Soybeans Blooming | D28: =IF(Sheet3!$M$14=1,IFERROR(Sheet3!F35,""),IFERROR(Sheet3!H35,"")) -> July 1 | E28: =IF(D28="","","Difference") -> Difference | G28: =IFERROR(Sheet3!G35,"") -> June 24 | H28: =IF(Sheet3!$M$14=1,IFERROR(Sheet3!H35,""),IFERROR(Sheet3!F35,"")) -> July 1 | I28: =IF(D28="","","Difference "&D28&" -") -> Difference July 1 - | K28: =IFERROR(Sheet3!I35,"") -> 2013 - 2017 | M28: =IF(D28="","","Difference") -> Difference | N28: =IF(N30="","Not",B27) -> Soybeans | P28: Very Poor | Q28: Poor | R28: Fair | S28: Good | T28: Excellent | U28: =IF(W28="","Not Available",B28) -> Soybeans Blooming | W28: =IF(Sheet6!$M$14=1,IFERROR(Sheet6!F35,""),IFERROR(Sheet6!H35,"")) -> July 11 | X28: =IF(W28="","","Difference") -> Difference | Z28: =D28 -> July 1 | AA28: Very Poor | AB28: Poor | AC28: Fair | AD28: Good | AE28: Excellent
D29: =IF(Sheet3!$M$14=1,IFERROR(Sheet3!F36,""),IFERROR(Sheet3!H36,"")) -> 2018 | E29: =IF(D28="","",IFERROR(D28&" -"&G28,"")) -> July 1 -June 24 | G29: =IFERROR(Sheet3!G36,"") -> 2018 | H29: =IF(Sheet3!$M$14=1,IFERROR(Sheet3!H36,""),IFERROR(Sheet3!F36,"")) -> 2017 | I29: =IF(D28="","",IFERROR(H28&", "&H29,"")) -> July 1, 2017 | K29: =IF(D28="","","Average") -> Average | M29: =IF(D28="","","to Current") -> to Current | N29: =IF(N30="","Available","Condition") -> Condition | W29: =IF(Sheet6!$M$14=1,IFERROR(Sheet6!F36,""),IFERROR(Sheet6!H36,"")) -> 2010 | X29: =IF(X28="","",Z28&" - "&W28) -> July 1 - July 11 | Z29: =D29 -> 2018
B30: =IFERROR(Sheet3!E1,"") -> Arkansas | D30: =IF(Sheet3!$M$14=1,IFERROR(Sheet3!F1,""),IFERROR(Sheet3!H1,"")) -> 69 | E30: =IFERROR(D30-G30,"") -> 12 | F30: =IFERROR(D30-G30,"") -> 12 | G30: =Sheet3!G1 -> 57 | H30: =IF(Sheet3!$M$14=1,IFERROR(Sheet3!H1,""),IFERROR(Sheet3!F1,"")) -> 68 | I30: =IFERROR(D30-H30,"") -> 1 | J30: =IFERROR(D30-H30,"") -> 1 | K30: =Sheet3!I1 -> 46 | L30: =IFERROR(D30-K30,"") -> 23 | M30: =IFERROR(D30-K30,"") -> 23 | N30: =IFERROR(Sheet3!E39,"") -> Arkansas | P30: =IF($N30="","",IFERROR(Sheet3!F71,"")) -> 2 | Q30: =IF($N30="","",IFERROR(Sheet3!G71,"")) -> 8 | R30: =IF($N30="","",IFERROR(Sheet3!H71,"")) -> 27 | S30: =IF($N30="","",IFERROR(Sheet3!I71,"")) -> 46 | T30: =IF($N30="","",IFERROR(Sheet3!J71,"")) -> 17 | U30: =IFERROR(Sheet6!E1,"") -> Arkansas | W30: =IF(Sheet6!$M$14=1,IFERROR(Sheet6!F1,""),IFERROR(Sheet6!H1,"")) -> 55 | X30: =IFERROR(Z30-W30,"") -> 14 | Y30: =IFERROR(Z30-W30,"") -> 14 | Z30: =D30 -> 69 | AA30: =Sheet6!F91 -> -2 | AB30: =Sheet6!G91 -> -7 | AC30: =Sheet6!H91 -> -9 | AD30: =Sheet6!I91 -> 10 | AE30: =Sheet6!J91 -> 8
B31: =IFERROR(Sheet3!E2,"") -> Illinois | D31: =IF(Sheet3!$M$14=1,IFERROR(Sheet3!F2,""),IFERROR(Sheet3!H2,"")) -> 44 | E31: 21 | F31: =IFERROR(D31-G31,"") -> 21 | G31: =Sheet3!G2 -> 23 | H31: =IF(Sheet3!$M$14=1,IFERROR(Sheet3!H2,""),IFERROR(Sheet3!F2,"")) -> 14 | I31: 30 | J31: =IFERROR(D31-H31,"") -> 30 | K31: =Sheet3!I2 -> 11 | L31: =IFERROR(D31-K31,"") -> 33 | M31: =IFERROR(D31-K31,"") -> 33 | N31: =IF(N30="","",IFERROR(Sheet3!E40,"")) -> Illinois | P31: =IF($N31="","",IFERROR(Sheet3!F72,"")) -> 2 | Q31: =IF($N31="","",IFERROR(Sheet3!G72,"")) -> 3 | R31: =IF($N31="","",IFERROR(Sheet3!H72,"")) -> 17 | S31: =IF($N31="","",IFERROR(Sheet3!I72,"")) -> 53 | T31: =IF($N31="","",IFERROR(Sheet3!J72,"")) -> 25 | U31: =IFERROR(Sheet6!E2,"") -> Illinois | W31: =IF(Sheet6!$M$14=1,IFERROR(Sheet6!F2,""),IFERROR(Sheet6!H2,"")) -> 43 | X31: =IFERROR(Z31-W31,"") -> 1 | Y31: =IFERROR(Z31-W31,"") -> 1 | Z31: =D31 -> 44 | AA31: =Sheet6!F92 -> -1 | AB31: =Sheet6!G92 -> -6 | AC31: =Sheet6!H92 -> -9 | AD31: =Sheet6!I92 -> 5 | AE31: =Sheet6!J92 -> 11
B32: =IFERROR(Sheet3!E3,"") -> Indiana | D32: =IF(Sheet3!$M$14=1,IFERROR(Sheet3!F3,""),IFERROR(Sheet3!H3,"")) -> 33 | E32: 25 | F32: 25 | G32: =Sheet3!G3 -> 8 | H32: =IF(Sheet3!$M$14=1,IFERROR(Sheet3!H3,""),IFERROR(Sheet3!F3,"")) -> 12 | I32: 21 | J32: 21 | K32: =Sheet3!I3 -> 11 | L32: 22 | M32: 22 | N32: =IF(N31="","",IFERROR(Sheet3!E41,"")) -> Indiana | P32: =IF($N32="","",IFERROR(Sheet3!F73,"")) -> 2 | Q32: =IF($N32="","",IFERROR(Sheet3!G73,"")) -> 5 | R32: =IF($N32="","",IFERROR(Sheet3!H73,"")) -> 21 | S32: =IF($N32="","",IFERROR(Sheet3!I73,"")) -> 55 | T32: =IF($N32="","",IFERROR(Sheet3!J73,"")) -> 17 | U32: =IFERROR(Sheet6!E3,"") -> Indiana | W32: =IF(Sheet6!$M$14=1,IFERROR(Sheet6!F3,""),IFERROR(Sheet6!H3,"")) -> 48 | X32: -15 | Y32: -15 | Z32: 33 | AA32: =Sheet6!F93 -> -1 | AB32: =Sheet6!G93 -> -3 | AC32: =Sheet6!H93 -> -6 | AD32: =Sheet6!I93 -> 7 | AE32: =Sheet6!J93 -> 3
B33: =IFERROR(Sheet3!E4,"") -> Iowa | D33: =IF(Sheet3!$M$14=1,IFERROR(Sheet3!F4,""),IFERROR(Sheet3!H4,"")) -> 21 | E33: 17 | F33: 17 | G33: =Sheet3!G4 -> 4 | H33: =IF(Sheet3!$M$14=1,IFERROR(Sheet3!H4,""),IFERROR(Sheet3!F4,"")) -> 11 | I33: 10 | J33: 10 | K33: =Sheet3!I4 -> 10 | L33: 11 | M33: 11 | N33: =IF(N32="","",IFERROR(Sheet3!E42,"")) -> Iowa | P33: =IF($N33="","",IFERROR(Sheet3!F74,"")) -> 2 | Q33: =IF($N33="","",IFERROR(Sheet3!G74,"")) -> 4 | R33: =IF($N33="","",IFERROR(Sheet3!H74,"")) -> 18 | S33: =IF($N33="","",IFERROR(Sheet3!I74,"")) -> 55 | T33: =IF($N33="","",IFERROR(Sheet3!J74,"")) -> 21 | U33: =IFERROR(Sheet6!E4,"") -> Iowa | W33: =IF(Sheet6!$M$14=1,IFERROR(Sheet6!F4,""),IFERROR(Sheet6!H4,"")) -> 46 | X33: -25 | Y33: -25 | Z33: 21 | AA33: =Sheet6!F94 -> -1 | AB33: =Sheet6!G94 -> -3 | AC33: =Sheet6!H94 -> -3 | AD33: =Sheet6!I94 -> 3 | AE33: =Sheet6!J94 -> 4
B34: =IFERROR(Sheet3!E5,"") -> Kansas | D34: =IF(Sheet3!$M$14=1,IFERROR(Sheet3!F5,""),IFERROR(Sheet3!H5,"")) -> 20 | E34: 13 | F34: 13 | G34: =Sheet3!G5 -> 7 | H34: =IF(Sheet3!$M$14=1,IFERROR(Sheet3!H5,""),IFERROR(Sheet3!F5,"")) -> 11 | I34: 9 | J34: 9 | K34: =Sheet3!I5 -> 6 | L34: 14 | M34: 14 | N34: =IF(N33="","",IFERROR(Sheet3!E43,"")) -> Kansas | P34: =IF($N34="","",IFERROR(Sheet3!F75,"")) -> 1 | Q34: =IF($N34="","",IFERROR(Sheet3!G75,"")) -> 8 | R34: =IF($N34="","",IFERROR(Sheet3!H75,"")) -> 37 | S34: =IF($N34="","",IFERROR(Sheet3!I75,"")) -> 49 | T34: =IF($N34="","",IFERROR(Sheet3!J75,"")) -> 5 | U34: =IFERROR(Sheet6!E5,"") -> Kansas | W34: =IF(Sheet6!$M$14=1,IFERROR(Sheet6!F5,""),IFERROR(Sheet6!H5,"")) -> 19 | X34: 1 | Y34: 1 | Z34: 20 | AA34: =Sheet6!F95 -> 0 | AB34: =Sheet6!G95 -> 4 | AC34: =Sheet6!H95 -> 12 | AD34: =Sheet6!I95 -> -8 | AE34: =Sheet6!J95 -> -8
B35: =IFERROR(Sheet3!E6,"") -> Kentucky | D35: =IF(Sheet3!$M$14=1,IFERROR(Sheet3!F6,""),IFERROR(Sheet3!H6,"")) -> 12 | E35: 9 | F35: 9 | G35: =Sheet3!G6 -> 3 | H35: =IF(Sheet3!$M$14=1,IFERROR(Sheet3!H6,""),IFERROR(Sheet3!F6,"")) -> 11 | I35: 1 | J35: 1 | K35: =Sheet3!I6 -> 6 | L35: 6 | M35: 6 | N35: =IF(N34="","",IFERROR(Sheet3!E44,"")) -> Kentucky | P35: =IF($N35="","",IFERROR(Sheet3!F76,"")) -> 0 | Q35: =IF($N35="","",IFERROR(Sheet3!G76,"")) -> 2 | R35: =IF($N35="","",IFERROR(Sheet3!H76,"")) -> 12 | S35: =IF($N35="","",IFERROR(Sheet3!I76,"")) -> 69 | T35: =IF($N35="","",IFERROR(Sheet3!J76,"")) -> 17 | U35: =IFERROR(Sheet6!E6,"") -> Kentucky | W35: =IF(Sheet6!$M$14=1,IFERROR(Sheet6!F6,""),IFERROR(Sheet6!H6,"")) -> 49 | X35: -37 | Y35: -37 | Z35: 12 | AA35: =Sheet6!F96 ->  | AB35: =Sheet6!G96 -> -2 | AC35: =Sheet6!H96 -> -15 | AD35: =Sheet6!I96 -> 25 | AE35: =Sheet6!J96 -> -7
B36: =IFERROR(Sheet3!E7,"") -> Louisiana | D36: =IF(Sheet3!$M$14=1,IFERROR(Sheet3!F7,""),IFERROR(Sheet3!H7,"")) -> 82 | E36: 9 | F36: 9 | G36: =Sheet3!G7 -> 73 | H36: =IF(Sheet3!$M$14=1,IFERROR(Sheet3!H7,""),IFERROR(Sheet3!F7,"")) -> 82 | I36: 0 | J36: 0 | K36: =Sheet3!I7 -> 67 | L36: 15 | M36: 15 | N36: =IF(N35="","",IFERROR(Sheet3!E45,"")) -> Louisiana | P36: =IF($N36="","",IFERROR(Sheet3!F77,"")) -> 5 | Q36: =IF($N36="","",IFERROR(Sheet3!G77,"")) -> 11 | R36: =IF($N36="","",IFERROR(Sheet3!H77,"")) -> 36 | S36: =IF($N36="","",IFERROR(Sheet3!I77,"")) -> 37 | T36: =IF($N36="","",IFERROR(Sheet3!J77,"")) -> 11 | U36: =IFERROR(Sheet6!E7,"") -> Louisiana | W36: =IF(Sheet6!$M$14=1,IFERROR(Sheet6!F7,""),IFERROR(Sheet6!H7,"")) -> 79 | X36: 3 | Y36: 3 | Z36: 82 | AA36: =Sheet6!F97 -> 4 | AB36: =Sheet6!G97 -> -1 | AC36: =Sheet6!H97 -> 4 | AD36: =Sheet6!I97 -> -13 | AE36: =Sheet6!J97 -> 6
B37: =IFERROR(Sheet3!E8,"") -> Michigan | D37: =IF(Sheet3!$M$14=1,IFERROR(Sheet3!F8,""),IFERROR(Sheet3!H8,"")) -> 11 | E37: 10 | F37: 10 | G37: =Sheet3!G8 -> 1 | H37: =IF(Sheet3!$M$14=1,IFERROR(Sheet3!H8,""),IFERROR(Sheet3!F8,"")) -> 11 | I37: 0 | J37: 0 | K37: =Sheet3!I8 -> 7 | L37: 4 | M37: 4 | N37: =IF(N36="","",IFERROR(Sheet3!E46,"")) -> Michigan | P37: =IF($N37="","",IFERROR(Sheet3!F78,"")) -> 2 | Q37: =IF($N37="","",IFERROR(Sheet3!G78,"")) -> 4 | R37: =IF($N37="","",IFERROR(Sheet3!H78,"")) -> 22 | S37: =IF($N37="","",IFERROR(Sheet3!I78,"")) -> 59 | T37: =IF($N37="","",IFERROR(Sheet3!J78,"")) -> 13 | U37: =IFERROR(Sheet6!E8,"") -> Michigan | W37: =IF(Sheet6!$M$14=1,IFERROR(Sheet6!F8,""),IFERROR(Sheet6!H8,"")) -> 40 | X37: -29 | Y37: -29 | Z37: 11 | AA37: =Sheet6!F98 -> 1 | AB37: =Sheet6!G98 -> -1 | AC37: =Sheet6!H98 -> 0 | AD37: =Sheet6!I98 -> 10 | AE37: =Sheet6!J98 -> -10
B38: =IFERROR(Sheet3!E9,"") -> Minnesota | D38: =IF(Sheet3!$M$14=1,IFERROR(Sheet3!F9,""),IFERROR(Sheet3!H9,"")) -> 13 | E38: 11 | F38: 11 | G38: =Sheet3!G9 -> 2 | H38: =IF(Sheet3!$M$14=1,IFERROR(Sheet3!H9,""),IFERROR(Sheet3!F9,"")) -> 8 | I38: 5 | J38: 5 | K38: =Sheet3!I9 -> 9 | L38: 4 | M38: 4 | N38: =IF(N37="","",IFERROR(Sheet3!E47,"")) -> Minnesota | P38: =IF($N38="","",IFERROR(Sheet3!F79,"")) -> 0 | Q38: =IF($N38="","",IFERROR(Sheet3!G79,"")) -> 3 | R38: =IF($N38="","",IFERROR(Sheet3!H79,"")) -> 20 | S38: =IF($N38="","",IFERROR(Sheet3!I79,"")) -> 57 | T38: =IF($N38="","",IFERROR(Sheet3!J79,"")) -> 20 | U38: =IFERROR(Sheet6!E9,"") -> Minnesota | W38: =IF(Sheet6!$M$14=1,IFERROR(Sheet6!F9,""),IFERROR(Sheet6!H9,"")) -> 35 | X38: -22 | Y38: -22 | Z38: 13 | AA38: =Sheet6!F99 ->  | AB38: =Sheet6!G99 -> 0 | AC38: =Sheet6!H99 -> 7 | AD38: =Sheet6!I99 -> -5 | AE38: =Sheet6!J99 -> -1
B39: =IFERROR(Sheet3!E10,"") -> Mississippi | D39: =IF(Sheet3!$M$14=1,IFERROR(Sheet3!F10,""),IFERROR(Sheet3!H10,"")) -> 69 | E39: 15 | F39: 15 | G39: =Sheet3!G10 -> 54 | H39: =IF(Sheet3!$M$14=1,IFERROR(Sheet3!H10,""),IFERROR(Sheet3!F10,"")) -> 71 | I39: -2 | J39: -2 | K39: =Sheet3!I10 -> 48 | L39: 21 | M39: 21 | N39: =IF(N38="","",IFERROR(Sheet3!E48,"")) -> Mississippi | P39: =IF($N39="","",IFERROR(Sheet3!F80,"")) -> 0 | Q39: =IF($N39="","",IFERROR(Sheet3!G80,"")) -> 2 | R39: =IF($N39="","",IFERROR(Sheet3!H80,"")) -> 30 | S39: =IF($N39="","",IFERROR(Sheet3!I80,"")) -> 54 | T39: =IF($N39="","",IFERROR(Sheet3!J80,"")) -> 14 | U39: =IFERROR(Sheet6!E10,"") -> Mississippi | W39: =IF(Sheet6!$M$14=1,IFERROR(Sheet6!F10,""),IFERROR(Sheet6!H10,"")) -> 87 | X39: -18 | Y39: -18 | Z39: 69 | AA39: =Sheet6!F100 ->  | AB39: =Sheet6!G100 -> -12 | AC39: =Sheet6!H100 -> 2 | AD39: =Sheet6!I100 -> 17 | AE39: =Sheet6!J100 -> -3
B40: =IFERROR(Sheet3!E11,"") -> Missouri | D40: =IF(Sheet3!$M$14=1,IFERROR(Sheet3!F11,""),IFERROR(Sheet3!H11,"")) -> 27 | E40: 23 | F40: 23 | G40: =Sheet3!G11 -> 4 | H40: =IF(Sheet3!$M$14=1,IFERROR(Sheet3!H11,""),IFERROR(Sheet3!F11,"")) -> 11 | I40: 16 | J40: 16 | K40: =Sheet3!I11 -> 7 | L40: 20 | M40: 20 | N40: =IF(N39="","",IFERROR(Sheet3!E49,"")) -> Missouri | P40: =IF($N40="","",IFERROR(Sheet3!F81,"")) -> 3 | Q40: =IF($N40="","",IFERROR(Sheet3!G81,"")) -> 12 | R40: =IF($N40="","",IFERROR(Sheet3!H81,"")) -> 37 | S40: =IF($N40="","",IFERROR(Sheet3!I81,"")) -> 43 | T40: =IF($N40="","",IFERROR(Sheet3!J81,"")) -> 5 | U40: =IFERROR(Sheet6!E11,"") -> Missouri | W40: =IF(Sheet6!$M$14=1,IFERROR(Sheet6!F11,""),IFERROR(Sheet6!H11,"")) -> 21 | X40: 6 | Y40: 6 | Z40: 27 | AA40: =Sheet6!F101 -> -3 | AB40: =Sheet6!G101 -> -3 | AC40: =Sheet6!H101 -> 2 | AD40: =Sheet6!I101 -> 7 | AE40: =Sheet6!J101 -> -3
B41: =IFERROR(Sheet3!E12,"") -> Nebraska | D41: =IF(Sheet3!$M$14=1,IFERROR(Sheet3!F12,""),IFERROR(Sheet3!H12,"")) -> 35 | E41: 21 | F41: 21 | G41: =Sheet3!G12 -> 14 | H41: =IF(Sheet3!$M$14=1,IFERROR(Sheet3!H12,""),IFERROR(Sheet3!F12,"")) -> 25 | I41: 10 | J41: 10 | K41: =Sheet3!I12 -> 17 | L41: 18 | M41: 18 | N41: =IF(N40="","",IFERROR(Sheet3!E50,"")) -> Nebraska | P41: =IF($N41="","",IFERROR(Sheet3!F82,"")) -> 1 | Q41: =IF($N41="","",IFERROR(Sheet3!G82,"")) -> 2 | R41: =IF($N41="","",IFERROR(Sheet3!H82,"")) -> 11 | S41: =IF($N41="","",IFERROR(Sheet3!I82,"")) -> 70 | T41: =IF($N41="","",IFERROR(Sheet3!J82,"")) -> 16 | U41: =IFERROR(Sheet6!E12,"") -> Nebraska | W41: =IF(Sheet6!$M$14=1,IFERROR(Sheet6!F12,""),IFERROR(Sheet6!H12,"")) -> 38 | X41: -3 | Y41: -3 | Z41: 35 | AA41: =Sheet6!F102 -> -1 | AB41: =Sheet6!G102 -> -1 | AC41: =Sheet6!H102 -> -4 | AD41: =Sheet6!I102 -> 7 | AE41: =Sheet6!J102 -> -1
B42: =IFERROR(Sheet3!E13,"") -> North Carolina | D42: =IF(Sheet3!$M$14=1,IFERROR(Sheet3!F13,""),IFERROR(Sheet3!H13,"")) -> 14 | E42: 9 | F42: 9 | G42: =Sheet3!G13 -> 5 | H42: =IF(Sheet3!$M$14=1,IFERROR(Sheet3!H13,""),IFERROR(Sheet3!F13,"")) -> 11 | I42: 3 | J42: 3 | K42: =Sheet3!I13 -> 8 | L42: 6 | M42: 6 | N42: =IF(N41="","",IFERROR(Sheet3!E51,"")) -> North Carolina | P42: =IF($N42="","",IFERROR(Sheet3!F83,"")) -> 0 | Q42: =IF($N42="","",IFERROR(Sheet3!G83,"")) -> 7 | R42: =IF($N42="","",IFERROR(Sheet3!H83,"")) -> 38 | S42: =IF($N42="","",IFERROR(Sheet3!I83,"")) -> 50 | T42: =IF($N42="","",IFERROR(Sheet3!J83,"")) -> 5 | U42: =IFERROR(Sheet6!E13,"") -> North Carolina | W42: =IF(Sheet6!$M$14=1,IFERROR(Sheet6!F13,""),IFERROR(Sheet6!H13,"")) -> 16 | X42: -2 | Y42: -2 | Z42: 14 | AA42: =Sheet6!F103 ->  | AB42: =Sheet6!G103 -> -9 | AC42: =Sheet6!H103 -> 3 | AD42: =Sheet6!I103 -> 9 | AE42: =Sheet6!J103 -> 2
B43: =IFERROR(Sheet3!E14,"") -> North Dakota | D43: =IF(Sheet3!$M$14=1,IFERROR(Sheet3!F14,""),IFERROR(Sheet3!H14,"")) -> 11 | E43: 10 | F43: 10 | G43: =Sheet3!G14 -> 1 | H43: =IF(Sheet3!$M$14=1,IFERROR(Sheet3!H14,""),IFERROR(Sheet3!F14,"")) -> 7 | I43: 4 | J43: 4 | K43: =Sheet3!I14 -> 12 | L43: -1 | M43: -1 | N43: =IF(N42="","",IFERROR(Sheet3!E52,"")) -> North Dakota | P43: =IF($N43="","",IFERROR(Sheet3!F84,"")) -> 0 | Q43: =IF($N43="","",IFERROR(Sheet3!G84,"")) -> 3 | R43: =IF($N43="","",IFERROR(Sheet3!H84,"")) -> 20 | S43: =IF($N43="","",IFERROR(Sheet3!I84,"")) -> 68 | T43: =IF($N43="","",IFERROR(Sheet3!J84,"")) -> 9 | U43: =IFERROR(Sheet6!E14,"") -> North Dakota | W43: =IF(Sheet6!$M$14=1,IFERROR(Sheet6!F14,""),IFERROR(Sheet6!H14,"")) -> 40 | X43: -29 | Y43: -29 | Z43: 11 | AA43: =Sheet6!F104 ->  | AB43: =Sheet6!G104 -> 1 | AC43: =Sheet6!H104 -> 10 | AD43: =Sheet6!I104 -> -4 | AE43: =Sheet6!J104 -> -6
B44: =IFERROR(Sheet3!E15,"") -> Ohio | D44: =IF(Sheet3!$M$14=1,IFERROR(Sheet3!F15,""),IFERROR(Sheet3!H15,"")) -> 22 | E44: 16 | F44: 16 | G44: =Sheet3!G15 -> 6 | H44: =IF(Sheet3!$M$14=1,IFERROR(Sheet3!H15,""),IFERROR(Sheet3!F15,"")) -> 8 | I44: 14 | J44: 14 | K44: =Sheet3!I15 -> 6 | L44: 16 | M44: 16 | N44: =IF(N43="","",IFERROR(Sheet3!E53,"")) -> Ohio | P44: =IF($N44="","",IFERROR(Sheet3!F85,"")) -> 0 | Q44: =IF($N44="","",IFERROR(Sheet3!G85,"")) -> 4 | R44: =IF($N44="","",IFERROR(Sheet3!H85,"")) -> 20 | S44: =IF($N44="","",IFERROR(Sheet3!I85,"")) -> 57 | T44: =IF($N44="","",IFERROR(Sheet3!J85,"")) -> 19 | U44: =IFERROR(Sheet6!E15,"") -> Ohio | W44: =IF(Sheet6!$M$14=1,IFERROR(Sheet6!F15,""),IFERROR(Sheet6!H15,"")) -> 43 | X44: -21 | Y44: -21 | Z44: 22 | AA44: =Sheet6!F105 ->  | AB44: =Sheet6!G105 -> -5 | AC44: =Sheet6!H105 -> -10 | AD44: =Sheet6!I105 -> 11 | AE44: =Sheet6!J105 -> 7
B45: =IFERROR(Sheet3!E16,"") -> South Dakota | D45: =IF(Sheet3!$M$14=1,IFERROR(Sheet3!F16,""),IFERROR(Sheet3!H16,"")) -> 7 | E45: 5 | F45: 5 | G45: =Sheet3!G16 -> 2 | H45: =IF(Sheet3!$M$14=1,IFERROR(Sheet3!H16,""),IFERROR(Sheet3!F16,"")) -> 14 | I45: -7 | J45: -7 | K45: =Sheet3!I16 -> 13 | L45: -6 | M45: -6 | N45: =IF(N44="","",IFERROR(Sheet3!E54,"")) -> South Dakota | P45: =IF($N45="","",IFERROR(Sheet3!F86,"")) -> 3 | Q45: =IF($N45="","",IFERROR(Sheet3!G86,"")) -> 6 | R45: =IF($N45="","",IFERROR(Sheet3!H86,"")) -> 32 | S45: =IF($N45="","",IFERROR(Sheet3!I86,"")) -> 51 | T45: =IF($N45="","",IFERROR(Sheet3!J86,"")) -> 8 | U45: =IFERROR(Sheet6!E16,"") -> South Dakota | W45: =IF(Sheet6!$M$14=1,IFERROR(Sheet6!F16,""),IFERROR(Sheet6!H16,"")) -> 33 | X45: -26 | Y45: -26 | Z45: 7 | AA45: =Sheet6!F106 -> 1 | AB45: =Sheet6!G106 -> -1 | AC45: =Sheet6!H106 -> 10 | AD45: =Sheet6!I106 -> -2 | AE45: =Sheet6!J106 -> -8
B46: =IFERROR(Sheet3!E17,"") -> Tennessee | D46: =IF(Sheet3!$M$14=1,IFERROR(Sheet3!F17,""),IFERROR(Sheet3!H17,"")) -> 24 | E46: 11 | F46: 11 | G46: =Sheet3!G17 -> 13 | H46: =IF(Sheet3!$M$14=1,IFERROR(Sheet3!H17,""),IFERROR(Sheet3!F17,"")) -> 18 | I46: 6 | J46: 6 | K46: =Sheet3!I17 -> 10 | L46: 14 | M46: 14 | N46: =IF(N45="","",IFERROR(Sheet3!E55,"")) -> Tennessee | P46: =IF($N46="","",IFERROR(Sheet3!F87,"")) -> 0 | Q46: =IF($N46="","",IFERROR(Sheet3!G87,"")) -> 3 | R46: =IF($N46="","",IFERROR(Sheet3!H87,"")) -> 19 | S46: =IF($N46="","",IFERROR(Sheet3!I87,"")) -> 58 | T46: =IF($N46="","",IFERROR(Sheet3!J87,"")) -> 20 | U46: =IFERROR(Sheet6!E17,"") -> Tennessee | W46: =IF(Sheet6!$M$14=1,IFERROR(Sheet6!F17,""),IFERROR(Sheet6!H17,"")) -> 49 | X46: -25 | Y46: -25 | Z46: 24 | AA46: =Sheet6!F107 ->  | AB46: =Sheet6!G107 -> -4 | AC46: =Sheet6!H107 -> -9 | AD46: =Sheet6!I107 -> 5 | AE46: =Sheet6!J107 -> 11
B47: =IFERROR(Sheet3!E18,"") -> Wisconsin | D47: =IF(Sheet3!$M$14=1,IFERROR(Sheet3!F18,""),IFERROR(Sheet3!H18,"")) -> 13 | G47: =Sheet3!G18 -> - | H47: =IF(Sheet3!$M$14=1,IFERROR(Sheet3!H18,""),IFERROR(Sheet3!F18,"")) -> 9 | I47: 4 | J47: 4 | K47: =Sheet3!I18 -> 7 | L47: 6 | M47: 6 | N47: =IF(N46="","",IFERROR(Sheet3!E56,"")) -> Wisconsin | P47: =IF($N47="","",IFERROR(Sheet3!F88,"")) -> 1 | Q47: =IF($N47="","",IFERROR(Sheet3!G88,"")) -> 3 | R47: =IF($N47="","",IFERROR(Sheet3!H88,"")) -> 13 | S47: =IF($N47="","",IFERROR(Sheet3!I88,"")) -> 58 | T47: =IF($N47="","",IFERROR(Sheet3!J88,"")) -> 25 | U47: =IFERROR(Sheet6!E18,"") -> Wisconsin | W47: =IF(Sheet6!$M$14=1,IFERROR(Sheet6!F18,""),IFERROR(Sheet6!H18,"")) -> 21 | X47: -8 | Y47: -8 | Z47: 13 | AA47: =Sheet6!F108 -> 0 | AB47: =Sheet6!G108 -> 1 | AC47: =Sheet6!H108 -> -2 | AD47: =Sheet6!I108 -> 1 | AE47: =Sheet6!J108 -> 0
C48: Copyright © 2018 | F48: Designed by Thom Hartle

Sheet Sheet2 (hidden)
A2: Crop Progress
A4: ISSN: 1948-3007
A6: Released July 2, 2018, by the National Agricultural Statistics Service
A7: (NASS), Agricultural Statistics Board, United States Department of
A8: Agriculture (USDA).
A10: Corn Silking - Selected States
A11: [These 18 States planted 92% of the 2017 corn acreage]
A12: -----------------------------------------------------------------
A13: : Week ending :
A14: :-----------------------------------:
A15: State : July 1, : June 24, : July 1, : 2013-2017
A16: : 2017 : 2018 : 2018 : Average
A17: -----------------------------------------------------------------
A18: : percent
A19: :
A20: Colorado ........: - - - 1
A21: Illinois ........: 11 2 40 11
A22: Indiana .........: 7 2 18 5
A23: Iowa ............: - - 7 1
A24: Kansas ..........: 17 13 30 19
A25: Kentucky ........: 41 16 44 26
A26: Michigan ........: - - 2 1
A27: Minnesota .......: - - 1 -
A28: Missouri ........: 22 11 48 24
A29: Nebraska ........: 7 2 8 4
A30: North Carolina ..: 75 47 68 74
A31: North Dakota ....: 2 - - 4
A32: Ohio ............: 3 - 5 2
A33: Pennsylvania ....: 2 - 1 2
A34: South Dakota ....: - - - 1
A35: Tennessee .......: 58 33 60 43
A36: Texas ...........: 62 57 59 60
A37: Wisconsin .......: - - 1 -
A38: :
A39: 18 States .......: 9 5 17 8
A40: -----------------------------------------------------------------
A41: =- Represents zero. -> 
A43: Corn Condition - Selected States: Week Ending July 1, 2018
A44: [These 18 States planted 92% of the 2017 corn acreage]
A45: ----------------------------------------------------------------------------
A46: State : Very poor : Poor : Fair : Good : Excellent
A47: ----------------------------------------------------------------------------
A48: : percent
A49: :
A50: Colorado .......: 2 3 17 67 11
A51: Illinois .......: 1 2 12 53 32
A52: Indiana ........: 1 4 19 56 20
A53: Iowa ...........: 2 4 16 53 25
A54: Kansas .........: 4 11 32 46 7
A55: Kentucky .......: - 1 12 71 16
A56: Michigan .......: 2 5 22 53 18
A57: Minnesota ......: - 3 14 57 26
A58: Missouri .......: 2 12 34 45 7
A59: Nebraska .......: - 2 12 67 19
A60: North Carolina .: 3 16 30 45 6
A61: North Dakota ...: - 2 16 71 11
A62: Ohio ...........: 1 3 13 56 27
A63: Pennsylvania ...: 1 7 26 56 10
A64: South Dakota ...: 3 4 28 51 14
A65: Tennessee ......: 1 2 17 55 25
A66: Texas ..........: 11 17 42 30 -
A67: Wisconsin ......: 1 3 12 51 33
A68: :
A69: 18 States ......: 2 4 18 55 21
A70: :
A71: Previous week ..: 1 4 18 58 19
A72: Previous year ..: 2 6 24 55 13
A73: ----------------------------------------------------------------------------
A74: =- Represents zero. -> 
A76: Soybeans Blooming - Selected States
A77: [These 18 States planted 96% of the 2017 soybean acreage]
A78: ------------------------------------------------------------------------
A79: : Week ending :
A80: :-----------------------------------------:
A81: State : July 1, : June 24, : July 1, : 2013-2017
A82: : 2017 : 2018 : 2018 : Average
A83: ------------------------------------------------------------------------
A84: : percent
A85: :
A86: Arkansas .......: 68 57 69 46
A87: Illinois .......: 14 23 44 11
A88: Indiana ........: 12 8 33 11
A89: Iowa ...........: 11 4 21 10
A90: Kansas .........: 11 7 20 6
A91: Kentucky .......: 11 3 12 6
A92: Louisiana ......: 82 73 82 67
A93: Michigan .......: 11 1 11 7
A94: Minnesota ......: 8 2 13 9
A95: Mississippi ....: 71 54 69 48
A96: Missouri .......: 11 4 27 7
A97: Nebraska .......: 25 14 35 17
A98: North Carolina .: 11 5 14 8
A99: North Dakota ...: 7 1 11 12
A100: Ohio ...........: 8 6 22 6
A101: South Dakota ...: 14 2 7 13
A102: Tennessee ......: 18 13 24 10
A103: Wisconsin ......: 9 - 13 7
A104: :
A105: 18 States ......: 17 12 27 13
A106: ------------------------------------------------------------------------
A107: =- Represents zero. -> 
A109: Soybean Condition - Selected States: Week Ending July 1, 2018
A110: [These 18 States planted 96% of the 2017 soybean acreage]
A111: ----------------------------------------------------------------------------
A112: State : Very poor : Poor : Fair : Good : Excellent
A113: ----------------------------------------------------------------------------
A114: : percent
A115: :
A116: Arkansas .......: 2 8 27 46 17
A117: Illinois .......: 2 3 17 53 25
A118: Indiana ........: 2 5 21 55 17
A119: Iowa ...........: 2 4 18 55 21
A120: Kansas .........: 1 8 37 49 5
A121: Kentucky .......: - 2 12 69 17
A122: Louisiana ......: 5 11 36 37 11
A123: Michigan .......: 2 4 22 59 13
A124: Minnesota ......: - 3 20 57 20
A125: Mississippi ....: - 2 30 54 14
A126: Missouri .......: 3 12 37 43 5
A127: Nebraska .......: 1 2 11 70 16
A128: North Carolina .: - 7 38 50 5
A129: North Dakota ...: - 3 20 68 9
A130: Ohio ...........: - 4 20 57 19
A131: South Dakota ...: 3 6 32 51 8
A132: Tennessee ......: - 3 19 58 20
A133: Wisconsin ......: 1 3 13 58 25
A134: :
A135: 18 States ......: 1 5 23 55 16
A136: :
A137: Previous week ..: 1 4 22 58 15
A138: Previous year ..: 2 7 27 54 10
A139: ----------------------------------------------------------------------------
A140: =- Represents zero. -> 
A142: Cotton Squaring - Selected States
A143: [These 15 States planted 99% of the 2017 cotton acreage]
A144: -----------------------------------------------------------------
A145: : Week ending :
A146: :-----------------------------------:
A147: State : July 1, : June 24, : July 1, : 2013-2017
A148: : 2017 : 2018 : 2018 : Average
A149: -----------------------------------------------------------------
A150: : percent
A151: :
A152: Alabama .........: 53 31 45 61
A153: Arizona .........: 73 45 70 73
A154: Arkansas ........: 92 75 83 89
A155: California ......: 43 35 45 69
A156: Georgia .........: 55 42 58 56
A157: Kansas ..........: 8 30 38 11
A158: Louisiana .......: 83 83 89 75
A159: Mississippi .....: 50 40 60 54
A160: Missouri ........: 51 57 68 44
A161: North Carolina ..: 51 38 58 48
A162: Oklahoma ........: 37 18 25 25
A163: South Carolina ..: 43 23 35 39
A164: Tennessee .......: 51 54 72 45
A165: Texas ...........: 34 23 31 28
A166: Virginia ........: 56 42 58 51
A167: :
A168: 15 States .......: 43 32 42 40
A169: -----------------------------------------------------------------
A171: Cotton Setting Bolls - Selected States
A172: [These 15 States planted 99% of the 2017 cotton acreage]
A173: ------------------------------------------------------------------------
A174: : Week ending :
A175: :-----------------------------------------:
A176: State : July 1, : June 24, : July 1, : 2013-2017
A177: : 2017 : 2018 : 2018 : Average
A178: ------------------------------------------------------------------------
A179: : percent
A180: :
A181: Alabama ........: 9 1 11 8
A182: Arizona ........: 29 10 22 24
A183: Arkansas .......: 25 7 35 11
A184: California .....: 3 - 2 9
A185: Georgia ........: 7 1 8 9
A186: Kansas .........: - - - -
A187: Louisiana ......: 29 7 36 19
A188: Mississippi ....: 9 - 10 9
A189: Missouri .......: 3 - 5 1
A190: North Carolina .: 2 - 2 3
A191: Oklahoma .......: - - 4 2
A192: South Carolina .: 3 - - 6
A193: Tennessee ......: 8 1 8 4
A194: Texas ..........: 14 10 13 9
A195: Virginia .......: 2 - - -
A196: :
A197: 15 States ......: 12 6 12 9
A198: ------------------------------------------------------------------------
A199: =- Represents zero. -> 
A201: Cotton Condition - Selected States: Week Ending July 1, 2018
A202: [These 15 States planted 99% of the 2017 cotton acreage]
A203: ----------------------------------------------------------------------------
A204: State : Very poor : Poor : Fair : Good : Excellent
A205: ----------------------------------------------------------------------------
A206: : percent
A207: :
A208: Alabama ........: - 1 24 63 12
A209: Arizona ........: - 3 47 43 7
A210: Arkansas .......: - 1 10 43 46
... 713 more rows

Sheet Sheet1 (hidden)
A1: =C9&"s/"&C10&"/CropProg-"&A9&A10&"-"&B9&B10&"-"&C10&".txt" -> 2010s/2018/CropProg-07-02-2018.txt | E1: =G9&"s/"&G10&"/CropProg-"&E9&E10&"-"&F9&F10&"-"&G10&".txt" -> 2010s/2010/CropProg-07-12-2010.txt
A9: =IF(A10<10,0,"") -> 0 | B9: =IF(B10<10,0,"") -> 0 | C9: =IF(C10<2010,2000,IF(AND(C10>2009,C10<2019),2010,2020)) -> 2010 | E9: =IF(E10<10,0,"") -> 0 | F9: =IF(F10<10,0,"") ->  | G9: =IF(G10<2010,2000,IF(AND(G10>2009,G10<2019),2010,2020)) -> 2010
A10: =MainDisplay!K27 -> 7 | B10: =MainDisplay!L27 -> 2 | C10: =MainDisplay!M27 -> 2018 | E10: =MainDisplay!W27 -> 7 | F10: =MainDisplay!X27 -> 12 | G10: =MainDisplay!Y27 -> 2010

Sheet Sheet3 (hidden)
A1: =IFERROR(INDIRECT(O3),"") -> Soybeans Blooming - Selected States | B1: =P1 -> $A$11 | C1: =INDIRECT(B1) -> Arkansas .......: 68 57 69 46 | D1: =TRIM(RIGHT(INDIRECT(B1),LEN(INDIRECT(B1))-FIND(":",INDIRECT(B1)))) -> 68 57 69 46 | E1: =IF($M$14=1,VLOOKUP(LEFT(C1,2),$U$1:$V$50,2,FALSE),IFERROR(LEFT(INDIRECT(B1),FIND(".",INDIRECT(B1))-2),"")) -> Arkansas | F1: =IFERROR(LEFT(D1,FIND(" ",D1)),"") -> 68 | G1: =IFERROR(RIGHT(LEFT(D1,FIND("~",SUBSTITUTE(D1," ","~",2))),FIND("~",SUBSTITUTE(D1," ","~",2))-FIND("~",SUBSTITUTE(D1," ","~",1))),"") -> 57 | H1: =IFERROR(RIGHT(LEFT(D1,FIND("~",SUBSTITUTE(D1," ","~",3))),FIND("~",SUBSTITUTE(D1," ","~",3))-FIND("~",SUBSTITUTE(D1," ","~",2))),"") -> 69 | I1: =IFERROR(RIGHT(D1,LEN(D1)-FIND("~",SUBSTITUTE(D1," ","~",3))),"") -> 46 | J1: Corn | K1: =IF(MainDisplay!B27="Corn","Corn Planted",IF(MainDisplay!B27="Soybeans","Soybeans Planted",IF(MainDisplay!B27="Spring Wheat","Spring Wheat Planted","Winter Wheat Planted"))) -> Soybeans Planted | M1: =IF($J$8="Corn"," Corn: Percent Planted,",IF($J$8="Soybeans"," Soybeans: Percent Planted,",IF($J$8="Spring Wheat"," Spring Wheat: Percent Planted,",IF($J$8="Winter Wheat"," Winter Wheat: Percent Planted,")))) -> Soybeans: Percent Planted, | O1: =IF($M$14=1,IF(LEFT(TRIM(O2),3)="Cor","CO",IF(LEFT(TRIM(O2),3)="Soy","AR",IF(LEFT(TRIM(O2),3)="Win","AR",IF(LEFT(TRIM(O2),3)="Spr","ID")))),IF(LEFT(TRIM(O2),3)="Cor","Colorado",IF(LEFT(TRIM(O2),3)="Soy","Arkansa",IF(LEFT(TRIM(O2),3)="Win","Arkansa",IF(LEFT(TRIM(O2),3)="Spr","Idaho"))))) -> Arkansa | P1: =CELL("address",INDEX(A1:A38,MATCH(O1&"*",A1:A38,0),1)) -> $A$11 | U1: AL | V1: Alabama
A2: =IFERROR(INDIRECT(O4),"") -> [These 18 States planted 96% of the 2017 soybean acreage] | B2: =(IF(TRIM(A2)=":","",IF(LEN(B1)=4,LEFT(B1,3)&RIGHT(B1,1)+1,LEFT(B1,3)&RIGHT(B1,3)+1))) -> $A$12 | C2: =INDIRECT(B2) -> Illinois .......: 14 23 44 11 | D2: =TRIM(RIGHT(INDIRECT(B2),LEN(INDIRECT(B2))-FIND(":",INDIRECT(B2)))) -> 14 23 44 11 | E2: =IF($M$14=1,VLOOKUP(LEFT(C2,2),$U$1:$V$50,2,FALSE),IFERROR(LEFT(INDIRECT(B2),FIND(".",INDIRECT(B2))-2),"")) -> Illinois | F2: =IFERROR(LEFT(D2,FIND(" ",D2)),"") -> 14 | G2: =IFERROR(RIGHT(LEFT(D2,FIND("~",SUBSTITUTE(D2," ","~",2))),FIND("~",SUBSTITUTE(D2," ","~",2))-FIND("~",SUBSTITUTE(D2," ","~",1))),"") -> 23 | H2: =IFERROR(RIGHT(LEFT(D2,FIND("~",SUBSTITUTE(D2," ","~",3))),FIND("~",SUBSTITUTE(D2," ","~",3))-FIND("~",SUBSTITUTE(D2," ","~",2))),"") -> 44 | I2: =IFERROR(RIGHT(D2,LEN(D2)-FIND("~",SUBSTITUTE(D2," ","~",3))),"") -> 11 | J2: Soybeans | K2: =IF(MainDisplay!B27="Corn","Corn Emerged",IF(MainDisplay!B27="Soybeans","Soybeans Emerged",IF(MainDisplay!B27="Spring Wheat","Spring Wheat Emerged","Winter Wheat Emerged"))) -> Soybeans Emerged | M2: =IF($J$8="Corn"," Corn: Percent Emerged,",IF($J$8="Soybeans"," Soybeans: Percent Emerged,",IF($J$8="Spring Wheat"," Spring Wheat: Percent Emerged,",IF($J$8="Winter Wheat"," Winter Wheat: Percent Emerged,")))) -> Soybeans: Percent Emerged, | O2: =IF(M14=0,MainDisplay!D27,Sheet3!M16) -> Soybeans Blooming | U2: AK | V2: Alaska
A3: ------------------------------------------------------------------------ | B3: =(IF(TRIM(A3)=":","",IF(LEN(B2)=4,LEFT(B2,3)&RIGHT(B2,1)+1,LEFT(B2,3)&RIGHT(B2,3)+1))) -> $A$13 | C3: Indiana ........: 12 8 33 11 | D3: 12 8 33 11 | E3: Indiana | F3: 12 | G3: 8 | H3: 33 | I3: 11 | J3: Spring Wheat | K3: =IF(MainDisplay!B27="Corn","Corn Silking",IF(MainDisplay!B27="Soybeans","Soybeans Blooming",IF(MainDisplay!B27="Spring Wheat","Spring Wheat Headed","Winter Wheat Headed"))) -> Soybeans Blooming | M3: =IF($J$8="Corn"," Corn: Percent Silking,",IF($J$8="Soybeans"," Soybeans: Percent Blooming,",IF($J$8="Spring Wheat"," Spring Wheat: Percent Headed,",IF($J$8="Winter Wheat"," Winter Wheat: Percent Headed,")))) -> Soybeans: Percent Blooming, | O3: =CELL("address",INDEX(Sheet2!A1:A1000,MATCH(O2&"*",Sheet2!A1:A1000,0),1)) -> [CQGGlobexGrainsUSDAV3.xlsm]Sheet2!$A$76 | P3: =RIGHT(O3,$Q$3-$R$3) -> $A$76 | Q3: =LEN(O3) -> 40 | R3: =FIND("!",O3) -> 35 | U3: AZ | V3: Arizona
A4: : Week ending : | B4: =(IF(TRIM(B3)=":","",LEFT(B3,3)&RIGHT(B3,3)+1)) -> $A$14 | C4: Iowa ...........: 11 4 21 10 | D4: 11 4 21 10 | E4: Iowa | F4: 11 | G4: 4 | H4: 21 | I4: 10 | J4: Winter Wheat | K4: =IF(MainDisplay!B27="Corn","Corn Dough",IF(MainDisplay!B27="Soybeans","Soybeans Setting Pods",IF(MainDisplay!B27="Spring Wheat","Spring Wheat Harvested","Winter Wheat Harvested"))) -> Soybeans Setting Pods | M4: =IF($J$8="Corn"," Corn: Percent Dough,",IF($J$8="Soybeans"," Soybeans: Percent Setting Pods,",IF($J$8="Spring Wheat"," Spring Wheat: Percent Harvested,",IF($J$8="Winter Wheat"," Winter Wheat: Percent Harvested,")))) -> Soybeans: Percent Setting Pods, | O4: =LEFT($O$3,$R$3)&P4 -> [CQGGlobexGrainsUSDAV3.xlsm]Sheet2!$A$77 | P4: =LEFT(P3,FIND("~",SUBSTITUTE(P3,"$","~",2)))&RIGHT(P3,3)+1 -> $A$77 | U4: AR | V4: Arkansas
A5: =IFERROR(INDIRECT(O7),"") -> :-----------------------------------------: | B5: $A$15 | C5: Kansas .........: 11 7 20 6 | D5: 11 7 20 6 | E5: Kansas | F5: 11 | G5: 7 | H5: 20 | I5: 6 | K5: =IF(MainDisplay!B27="Corn","Corn Dented",IF(MainDisplay!B27="Soybeans","Soybeans Dropping Leaves",IF(MainDisplay!B27="Spring Wheat","",""))) -> Soybeans Dropping Leaves | M5: =IF($J$8="Corn"," Corn: Percent Dented,",IF($J$8="Soybeans"," Soybeans: Percent Dropping Leaves, ",IF($J$8="Spring Wheat","",IF($J$8="Winter Wheat","")))) -> Soybeans: Percent Dropping Leaves, | O5: =LEFT($O$3,$R$3)&P5 -> [CQGGlobexGrainsUSDAV3.xlsm]Sheet2!$A$78 | P5: =LEFT(P4,FIND("~",SUBSTITUTE(P4,"$","~",2)))&RIGHT(P4,3)+1 -> $A$78 | U5: CA | V5: California
A6: State : July 1, : June 24, : July 1, : 2013-2017 | B6: $A$16 | C6: Kentucky .......: 11 3 12 6 | D6: 11 3 12 6 | E6: Kentucky | F6: 11 | G6: 3 | H6: 12 | I6: 6 | K6: =IF(MainDisplay!B27="Corn","Corn Mature",IF(MainDisplay!B27="Soybeans","Soybeans Harvested",IF(MainDisplay!B27="Spring Wheat","",""))) -> Soybeans Harvested | M6: =IF($J$8="Corn"," Corn: Percent Mature,",IF($J$8="Soybeans"," Soybeans: Percent Harvested,",IF($J$8="Spring Wheat","",IF($J$8="Winter Wheat","")))) -> Soybeans: Percent Harvested, | O6: [CQGGlobexGrainsUSDAV3.xlsm]Sheet2!$A$79 | P6: $A$79 | U6: CO | V6: Colorado
A7: : 2017 : 2018 : 2018 : Average | B7: $A$17 | C7: Louisiana ......: 82 73 82 67 | D7: 82 73 82 67 | E7: =IF(D7="","",IF($M$14=1,VLOOKUP(LEFT(C7,2),$U$1:$V$50,2,FALSE),IFERROR(LEFT(INDIRECT(B7),FIND(".",INDIRECT(B7))-2),""))) -> Louisiana | F7: =IFERROR(LEFT(D7,FIND(" ",D7)),"") -> 82 | G7: =IFERROR(RIGHT(LEFT(D7,FIND("~",SUBSTITUTE(D7," ","~",2))),FIND("~",SUBSTITUTE(D7," ","~",2))-FIND("~",SUBSTITUTE(D7," ","~",1))),"") -> 73 | H7: =IFERROR(RIGHT(LEFT(D7,FIND("~",SUBSTITUTE(D7," ","~",3))),FIND("~",SUBSTITUTE(D7," ","~",3))-FIND("~",SUBSTITUTE(D7," ","~",2))),"") -> 82 | I7: =IFERROR(RIGHT(D7,LEN(D7)-FIND("~",SUBSTITUTE(D7," ","~",3))),"") -> 67 | K7: =IF(MainDisplay!B27="Corn","Corn Harvested",IF(MainDisplay!B27="Soybean","",IF(MainDisplay!B27="Spring Wheat","",""))) ->  | M7: =IF($J$8="Corn"," Corn: Percent Harvested,",IF($J$8="Soybeans","",IF($J$8="Spring Wheat","",IF($J$8="Winter Wheat","")))) ->  | O7: [CQGGlobexGrainsUSDAV3.xlsm]Sheet2!$A$80 | P7: $A$80 | U7: CT | V7: Connecticut
A8: ------------------------------------------------------------------------ | B8: $A$18 | C8: Michigan .......: 11 1 11 7 | D8: 11 1 11 7 | E8: =IF(E7="","",IF($M$14=1,VLOOKUP(LEFT(C8,2),$U$1:$V$50,2,FALSE),IFERROR(LEFT(INDIRECT(B8),FIND(".",INDIRECT(B8))-2),""))) -> Michigan | F8: =IF(F7="","",IFERROR(LEFT(D8,FIND(" ",D8)),"")) -> 11 | G8: =IF(G7="","",IFERROR(RIGHT(LEFT(D8,FIND("~",SUBSTITUTE(D8," ","~",2))),FIND("~",SUBSTITUTE(D8," ","~",2))-FIND("~",SUBSTITUTE(D8," ","~",1))),"")) -> 1 | H8: =IF(H7="","",IFERROR(RIGHT(LEFT(D8,FIND("~",SUBSTITUTE(D8," ","~",3))),FIND("~",SUBSTITUTE(D8," ","~",3))-FIND("~",SUBSTITUTE(D8," ","~",2))),"")) -> 11 | I8: =IF(I7="","",IFERROR(RIGHT(D8,LEN(D8)-FIND("~",SUBSTITUTE(D8," ","~",3))),"")) -> 7 | J8: =MainDisplay!B27 -> Soybeans | O8: [CQGGlobexGrainsUSDAV3.xlsm]Sheet2!$A$81 | P8: $A$81 | U8: DE | V8: Delaware
A9: : percent | B9: $A$19 | C9: Minnesota ......: 8 2 13 9 | D9: 8 2 13 9 | E9: =IF(E8="","",IF($M$14=1,VLOOKUP(LEFT(C9,2),$U$1:$V$50,2,FALSE),IFERROR(LEFT(INDIRECT(B9),FIND(".",INDIRECT(B9))-2),""))) -> Minnesota | F9: =IF(F8="","",IFERROR(LEFT(D9,FIND(" ",D9)),"")) -> 8 | G9: =IF(G8="","",IFERROR(RIGHT(LEFT(D9,FIND("~",SUBSTITUTE(D9," ","~",2))),FIND("~",SUBSTITUTE(D9," ","~",2))-FIND("~",SUBSTITUTE(D9," ","~",1))),"")) -> 2 | H9: =IF(H8="","",IFERROR(RIGHT(LEFT(D9,FIND("~",SUBSTITUTE(D9," ","~",3))),FIND("~",SUBSTITUTE(D9," ","~",3))-FIND("~",SUBSTITUTE(D9," ","~",2))),"")) -> 13 | I9: =IF(I8="","",IFERROR(RIGHT(D9,LEN(D9)-FIND("~",SUBSTITUTE(D9," ","~",3))),"")) -> 9 | O9: [CQGGlobexGrainsUSDAV3.xlsm]Sheet2!$A$82 | P9: $A$82 | U9: FL | V9: Florida
A10: : | B10: $A$20 | C10: Mississippi ....: 71 54 69 48 | D10: 71 54 69 48 | E10: Mississippi | F10: 71 | G10: 54 | H10: 69 | I10: 48 | O10: [CQGGlobexGrainsUSDAV3.xlsm]Sheet2!$A$83 | P10: $A$83 | U10: GA | V10: Georgia
A11: Arkansas .......: 68 57 69 46 | B11: $A$21 | C11: Missouri .......: 11 4 27 7 | D11: 11 4 27 7 | E11: Missouri | F11: 11 | G11: 4 | H11: 27 | I11: 7 | M11: =DATE(MainDisplay!M27,MainDisplay!K27,MainDisplay!L27) -> 2018-07-02 | O11: [CQGGlobexGrainsUSDAV3.xlsm]Sheet2!$A$84 | P11: $A$84 | U11: HI | V11: Hawaii
A12: Illinois .......: 14 23 44 11 | B12: $A$22 | C12: Nebraska .......: 25 14 35 17 | D12: 25 14 35 17 | E12: Nebraska | F12: 25 | G12: 14 | H12: 35 | I12: 17 | M12: 40336 | O12: [CQGGlobexGrainsUSDAV3.xlsm]Sheet2!$A$85 | P12: $A$85 | U12: ID | V12: Idaho
A13: Indiana ........: 12 8 33 11 | B13: $A$23 | C13: North Carolina .: 11 5 14 8 | D13: 11 5 14 8 | E13: North Carolina | F13: 11 | G13: 5 | H13: 14 | I13: 8 | O13: [CQGGlobexGrainsUSDAV3.xlsm]Sheet2!$A$86 | P13: $A$86 | U13: IL | V13: Illinois
A14: Iowa ...........: 11 4 21 10 | B14: $A$24 | C14: North Dakota ...: 7 1 11 12 | D14: 7 1 11 12 | E14: North Dakota | F14: 7 | G14: 1 | H14: 11 | I14: 12 | M14: =IF(M11<M12,1,) -> 0 | O14: [CQGGlobexGrainsUSDAV3.xlsm]Sheet2!$A$87 | P14: $A$87 | U14: IN | V14: Indiana
A15: Kansas .........: 11 7 20 6 | B15: $A$25 | C15: Ohio ...........: 8 6 22 6 | D15: 8 6 22 6 | E15: Ohio | F15: 8 | G15: 6 | H15: 22 | I15: 6 | M15: =MainDisplay!D27 -> Soybeans Blooming | O15: [CQGGlobexGrainsUSDAV3.xlsm]Sheet2!$A$88 | P15: $A$88 | U15: IA | V15: Iowa
A16: Kentucky .......: 11 3 12 6 | B16: $A$26 | C16: South Dakota ...: 14 2 7 13 | D16: 14 2 7 13 | E16: South Dakota | F16: 14 | G16: 2 | H16: 7 | I16: 13 | M16: =VLOOKUP(M15,K1:M7,3,FALSE) -> Soybeans: Percent Blooming, | O16: [CQGGlobexGrainsUSDAV3.xlsm]Sheet2!$A$89 | P16: $A$89 | U16: KS | V16: Kansas
A17: Louisiana ......: 82 73 82 67 | B17: $A$27 | C17: Tennessee ......: 18 13 24 10 | D17: 18 13 24 10 | E17: Tennessee | F17: 18 | G17: 13 | H17: 24 | I17: 10 | M17: Corn: Crop Condition by Percent, | O17: [CQGGlobexGrainsUSDAV3.xlsm]Sheet2!$A$90 | P17: $A$90 | R17: Soybeans: Crop Condition | U17: KY | V17: Kentucky
A18: Michigan .......: 11 1 11 7 | B18: $A$28 | C18: Wisconsin ......: 9 - 13 7 | D18: 9 - 13 7 | E18: Wisconsin | F18: 9 | G18: - | H18: 13 | I18: 7 | M18: Soybeans: Crop Condition | O18: [CQGGlobexGrainsUSDAV3.xlsm]Sheet2!$A$91 | P18: $A$91 | R18: Soybeans: Crop Condition by Percent, | U18: LA | V18: Louisiana
A19: Minnesota ......: 8 2 13 9 | B19: $A$29 | C19: : | E19: =IF(E18="","",IFERROR(LEFT(INDIRECT(B19),FIND(".",INDIRECT(B19))-2),"")) ->  | F19: =IFERROR(LEFT(D19,FIND(" ",D19)),"") ->  | G19: =IFERROR(RIGHT(LEFT(D19,FIND("~",SUBSTITUTE(D19," ","~",2))),FIND("~",SUBSTITUTE(D19," ","~",2))-FIND("~",SUBSTITUTE(D19," ","~",1))),"") ->  | H19: =IFERROR(RIGHT(LEFT(D19,FIND("~",SUBSTITUTE(D19," ","~",3))),FIND("~",SUBSTITUTE(D19," ","~",3))-FIND("~",SUBSTITUTE(D19," ","~",2))),"") ->  | I19: =IFERROR(RIGHT(D19,LEN(D19)-FIND("~",SUBSTITUTE(D19," ","~",3))),"") ->  | O19: [CQGGlobexGrainsUSDAV3.xlsm]Sheet2!$A$92 | P19: $A$92 | R19: =IF(R9=1,IF($J$8="Corn",R12,IF($J$8="Soybeans",R13)),IF($J$8="Soybeans","Soybean Condition",MainDisplay!$B$27&" Condition")) -> Soybean Condition | U19: ME | V19: Maine
A20: Mississippi ....: 71 54 69 48 | B20: $A$30 | C20: 18 States ......: 17 12 27 13 | D20: =TRIM(RIGHT(INDIRECT(B20),43)) -> 12 27 13 | F20: =IF(E19="","",IFERROR(LEFT(D20,FIND(" ",D20)),"")) ->  | G20: =IF(E19="","",IFERROR(RIGHT(LEFT(D20,FIND("~",SUBSTITUTE(D20," ","~",2))),FIND("~",SUBSTITUTE(D20," ","~",2))-FIND("~",SUBSTITUTE(D20," ","~",1))),"")) ->  | H20: =IF(E19="","",IFERROR(RIGHT(LEFT(D20,FIND("~",SUBSTITUTE(D20," ","~",3))),FIND("~",SUBSTITUTE(D20," ","~",3))-FIND("~",SUBSTITUTE(D20," ","~",2))),"")) ->  | I20: =IF(E19="","",IFERROR(RIGHT(D20,LEN(D20)-FIND("~",SUBSTITUTE(D20," ","~",3))),"")) ->  | M20: =IF($J$8="Corn","Corn Condition",IF($J$8="Soybeans","Soybean Condition",IF($J$8="Spring Wheat","Spring Wheat Condition",IF($J$8="Winter Wheat","Winter Wheat Condition")))) -> Soybean Condition | O20: [CQGGlobexGrainsUSDAV3.xlsm]Sheet2!$A$93 | P20: $A$93 | R20: Spring Wheat: Crop Condition | U20: MD | V20: Maryland
A21: Missouri .......: 11 4 27 7 | B21: $A$31 | C21: ------------------------------------------------------------------------ | D21: ------------------------------------------- | M21: =IF($J$8="Corn"," Corn: Crop Condition",IF($J$8="Soybeans"," Soybeans: Crop Condition",IF($J$8="Spring Wheat"," Spring Wheat: Crop Condition",IF($J$8="Winter Wheat"," Winter Wheat: Crop Condition")))) -> Soybeans: Crop Condition | O21: [CQGGlobexGrainsUSDAV3.xlsm]Sheet2!$A$94 | P21: $A$94 | R21: Corn: Crop Condition | U21: MA | V21: Massachusetts
A22: Nebraska .......: 25 14 35 17 | B22: $A$32 | O22: [CQGGlobexGrainsUSDAV3.xlsm]Sheet2!$A$95 | P22: $A$95 | U22: MI | V22: Michigan
A23: North Carolina .: 11 5 14 8 | B23: $A$33 | C23: 0 | D23: =RIGHT(INDIRECT(B23),43) -> 0 | M23: =IF($J$8="Corn"," Corn: Crop Condition by Percent,",IF($J$8="Soybeans"," Soybeans: Crop Condition by Percent,",IF($J$8="Spring Wheat"," Spring Wheat: Crop Condition",IF($J$8="Winter Wheat"," Winter Wheat: Crop Condition")))) -> Soybeans: Crop Condition by Percent, | O23: [CQGGlobexGrainsUSDAV3.xlsm]Sheet2!$A$96 | P23: $A$96 | U23: MN | V23: Minnesota
A24: North Dakota ...: 7 1 11 12 | B24: $A$34 | C24: Soybean Condition - Selected States: Week Ending July 1, 2018 | D24: - Selected States: Week Ending July 1, 2018 | M24: =IF(M14=0,M20,M21) -> Soybean Condition | O24: [CQGGlobexGrainsUSDAV3.xlsm]Sheet2!$A$97 | P24: $A$97 | U24: MS | V24: Mississippi
A25: Ohio ...........: 8 6 22 6 | B25: $A$35 | C25: [These 18 States planted 96% of the 2017 soybean acreage] | D25: es planted 96% of the 2017 soybean acreage] | M25: =IFERROR(CELL("address",INDEX(Sheet2!A1:A1000,MATCH(M24&"*",Sheet2!A1:A1000,0),1)),"2") -> [CQGGlobexGrainsUSDAV3.xlsm]Sheet2!$A$109 | O25: [CQGGlobexGrainsUSDAV3.xlsm]Sheet2!$A$98 | P25: $A$98 | U25: MO | V25: Missouri
A26: South Dakota ...: 14 2 7 13 | B26: $A$36 | E26: =IFERROR(LEFT(INDIRECT(B26),FIND(".",INDIRECT(B26))-2),"") ->  | O26: [CQGGlobexGrainsUSDAV3.xlsm]Sheet2!$A$99 | P26: $A$99 | U26: MT | V26: Montana
A27: Tennessee ......: 18 13 24 10 | B27: $A$37 | O27: [CQGGlobexGrainsUSDAV3.xlsm]Sheet2!$A$100 | P27: $A$100 | U27: NE | V27: Nebraska
A28: Wisconsin ......: 9 - 13 7 | B28: $A$38 | C28: 0 | O28: [CQGGlobexGrainsUSDAV3.xlsm]Sheet2!$A$101 | P28: $A$101 | U28: NV | V28: Nevada
A29: : | B29: $A$39 | C29: Soybean Condition - Selected States: Week Ending July 1, 2018 | D29: - Selected States: Week Ending July 1, 2018 | F29: - | G29: Selected | H29: States: | I29: Week Ending July 1, 2018 | O29: [CQGGlobexGrainsUSDAV3.xlsm]Sheet2!$A$102 | P29: $A$102 | U29: NH | V29: New Hampshire
A30: 18 States ......: 17 12 27 13 | B30: $A$40 | C30: [These 18 States planted 96% of the 2017 soybean acreage] | D30: es planted 96% of the 2017 soybean acreage] | F30: es | G30: planted | H30: 96% | I30: of the 2017 soybean acreage] | O30: [CQGGlobexGrainsUSDAV3.xlsm]Sheet2!$A$103 | P30: $A$103 | U30: NJ | V30: New Jersey
A31: ------------------------------------------------------------------------ | O31: [CQGGlobexGrainsUSDAV3.xlsm]Sheet2!$A$104 | P31: $A$104 | U31: NM | V31: New Mexico
E32: =FIND("~",SUBSTITUTE(D34,",","~",1))-FIND("~",SUBSTITUTE(D34,":","~",1)) -> 8 | G32: =RIGHT(LEFT(D34,FIND("~",SUBSTITUTE(D34,",","~",1))-1),FIND("~",SUBSTITUTE(D34,",","~",1))-FIND("~",SUBSTITUTE(D34,":","~",1))-1) -> July 1 | O32: [CQGGlobexGrainsUSDAV3.xlsm]Sheet2!$A$105 | P32: $A$105 | U32: NY | V32: New York
A33: 0 | I33: =RIGHT(A5,6) ->  | O33: [CQGGlobexGrainsUSDAV3.xlsm]Sheet2!$A$106 | P33: $A$106 | U33: NC | V33: North Carolina
A34: Soybean Condition - Selected States: Week Ending July 1, 2018 | D34: =TRIM(A6) -> State : July 1, : June 24, : July 1, : 2013-2017 | O34: [CQGGlobexGrainsUSDAV3.xlsm]Sheet2!$A$107 | P34: $A$107 | U34: ND | V34: North Dakota
A35: =IFERROR(INDIRECT(O37),"") -> [These 18 States planted 96% of the 2017 soybean acreage] | C35: =TRIM(C19) -> : | F35: =RIGHT(LEFT(D34,FIND("~",SUBSTITUTE(D34,",","~",1))-1),FIND("~",SUBSTITUTE(D34,",","~",1))-FIND("~",SUBSTITUTE(D34,":","~",1))-1) -> July 1 | G35: =RIGHT(LEFT(D34,FIND("~",SUBSTITUTE(D34,",","~",2))-1),FIND("~",SUBSTITUTE(D34,",","~",1))-FIND("~",SUBSTITUTE(D34,":","~",1))-1) -> June 24 | H35: =RIGHT(LEFT(D34,FIND("~",SUBSTITUTE(D34,",","~",3))-1),FIND("~",SUBSTITUTE(D34,",","~",1))-FIND("~",SUBSTITUTE(D34,":","~",1))-1) -> July 1 | I35: =IF(M14=1,RIGHT(A5,6)&RIGHT(D34,4),(LEFT(TRIM(RIGHT(D34,LEN(D34)-FIND("~",SUBSTITUTE(D34,":","~",4)))),4)&" - "&RIGHT(D34,4))) -> 2013 - 2017 | O35: [CQGGlobexGrainsUSDAV3.xlsm]Sheet2!$A$108 | P35: $A$108 | U35: OH | V35: Ohio
F36: =RIGHT(LEFT(D37,6),4) -> 2017 | G36: =RIGHT(LEFT(D37,13),4) -> 2018 | H36: =RIGHT(LEFT(D37,20),4) -> 2018 | I36: Average | O36: [CQGGlobexGrainsUSDAV3.xlsm]Sheet2!$A$109 | P36: $A$109 | U36: OK | V36: Oklahoma
D37: =TRIM(A7) -> : 2017 : 2018 : 2018 : Average | O37: [CQGGlobexGrainsUSDAV3.xlsm]Sheet2!$A$110 | P37: $A$110 | U37: OR | V37: Oregon
F38: Very Poor | G38: Poor | H38: Fair | I38: Good | J38: Excellent | U38: PA | V38: Pennsylvania
A39: =IFERROR(INDIRECT(O41),"") -> Soybean Condition - Selected States: Week Ending July 1, 2018 | B39: =P39 -> $A$46 | C39: =INDIRECT(B39) -> Arkansas .......: 2 8 27 46 17 | D39: =TRIM(RIGHT(C39,LEN(C39)-FIND("~",SUBSTITUTE(C39,":","~",1)))) -> 2 8 27 46 17 | E39: =IF($M$14=1,VLOOKUP(LEFT(C39,2),$U$1:$V$50,2,FALSE),IFERROR(LEFT(INDIRECT(B39),FIND(".",INDIRECT(B39))-2),"")) -> Arkansas | F39: =IFERROR(LEFT(D39,FIND(" ",D39)),"") -> 2 | G39: =IFERROR(RIGHT(LEFT(D39,FIND("~",SUBSTITUTE(D39," ","~",2))),FIND("~",SUBSTITUTE(D39," ","~",2))-FIND("~",SUBSTITUTE(D39," ","~",1))),"") -> 8 | H39: =IFERROR(RIGHT(LEFT(D39,FIND("~",SUBSTITUTE(D39," ","~",3))),FIND("~",SUBSTITUTE(D39," ","~",3))-FIND("~",SUBSTITUTE(D39," ","~",2))),"") -> 27 | I39: =IFERROR(RIGHT(LEFT(D39,FIND("~",SUBSTITUTE(D39," ","~",4))),FIND("~",SUBSTITUTE(D39," ","~",4))-FIND("~",SUBSTITUTE(D39," ","~",3))),"") -> 46 | J39: =IFERROR(RIGHT(D39,LEN(D39)-FIND("~",SUBSTITUTE(D39," ","~",4))),"") -> 17 | O39: =IF($M$14=1,IF(LEFT(TRIM(O40),3)="Cor","CO",IF(LEFT(TRIM(O40),3)="Soy","AR",IF(LEFT(TRIM(O40),3)="Win","AR",IF(LEFT(TRIM(O40),3)="Spr","ID")))),IF(LEFT(TRIM(O40),3)="Cor","Colorado",IF(LEFT(TRIM(O40),3)="Soy","Arkansa",IF(LEFT(TRIM(O40),3)="Win","Arkansa",IF(LEFT(TRIM(O40),3)="Spr","Idaho"))))) -> Arkansa | P39: =CELL("address",INDEX(A39:A69,MATCH(O39&"*",A39:A69,0),1)) -> $A$46 | U39: RI | V39: Rhode Island
A40: =IFERROR(INDIRECT(O42),"") -> [These 18 States planted 96% of the 2017 soybean acreage] | B40: =(IF(TRIM(A40)=":","",IF(LEN(B39)=4,LEFT(B39,3)&RIGHT(B39,1)+1,LEFT(B39,3)&RIGHT(B39,3)+1))) -> $A$47 | C40: =INDIRECT(B40) -> Illinois .......: 2 3 17 53 25 | D40: =TRIM(RIGHT(C40,LEN(C40)-FIND("~",SUBSTITUTE(C40,":","~",1)))) -> 2 3 17 53 25 | E40: =IF($M$14=1,VLOOKUP(LEFT(C40,2),$U$1:$V$50,2,FALSE),IFERROR(LEFT(INDIRECT(B40),FIND(".",INDIRECT(B40))-2),"")) -> Illinois | F40: =IFERROR(LEFT(D40,FIND(" ",D40)),"") -> 2 | G40: =IFERROR(RIGHT(LEFT(D40,FIND("~",SUBSTITUTE(D40," ","~",2))),FIND("~",SUBSTITUTE(D40," ","~",2))-FIND("~",SUBSTITUTE(D40," ","~",1))),"") -> 3 | H40: =IFERROR(RIGHT(LEFT(D40,FIND("~",SUBSTITUTE(D40," ","~",3))),FIND("~",SUBSTITUTE(D40," ","~",3))-FIND("~",SUBSTITUTE(D40," ","~",2))),"") -> 17 | I40: =IFERROR(RIGHT(LEFT(D40,FIND("~",SUBSTITUTE(D40," ","~",4))),FIND("~",SUBSTITUTE(D40," ","~",4))-FIND("~",SUBSTITUTE(D40," ","~",3))),"") -> 53 | J40: =IFERROR(RIGHT(D40,LEN(D40)-FIND("~",SUBSTITUTE(D40," ","~",4))),"") -> 25 | O40: =IF(M14=0,M20,IF(M25="2",M23,M21)) -> Soybean Condition | U40: SC | V40: South Carolina
A41: ---------------------------------------------------------------------------- | B41: =(IF(TRIM(A41)=":","",IF(LEN(B40)=4,LEFT(B40,3)&RIGHT(B40,1)+1,LEFT(B40,3)&RIGHT(B40,3)+1))) -> $A$48 | C41: Indiana ........: 2 5 21 55 17 | D41: 2 5 21 55 17 | E41: Indiana | F41: 2 | G41: 5 | H41: 21 | I41: 55 | J41: 17 | O41: =CELL("address",INDEX(Sheet2!A1:A1000,MATCH(O40&"*",Sheet2!A1:A1000,0),1)) -> [CQGGlobexGrainsUSDAV3.xlsm]Sheet2!$A$109 | P41: =RIGHT(O41,$Q$41-$R$41) -> $A$109 | Q41: =LEN(O41) -> 41 | R41: =FIND("!",O41) -> 35 | U41: SD | V41: South Dakota
A42: State : Very poor : Poor : Fair : Good : Excellent | B42: =(IF(TRIM(B41)=":","",LEFT(B41,3)&RIGHT(B41,3)+1)) -> $A$49 | C42: Iowa ...........: 2 4 18 55 21 | D42: 2 4 18 55 21 | E42: Iowa | F42: 2 | G42: 4 | H42: 18 | I42: 55 | J42: 21 | O42: =LEFT($O$41,$R$41)&P42 -> [CQGGlobexGrainsUSDAV3.xlsm]Sheet2!$A$110 | P42: =LEFT(P41,FIND("~",SUBSTITUTE(P41,"$","~",2)))&RIGHT(P41,3)+1 -> $A$110 | U42: TN | V42: Tennessee
A43: ---------------------------------------------------------------------------- | B43: $A$50 | C43: Kansas .........: 1 8 37 49 5 | D43: 1 8 37 49 5 | E43: Kansas | F43: 1 | G43: 8 | H43: 37 | I43: 49 | J43: 5 | O43: =LEFT($O$41,$R$41)&P43 -> [CQGGlobexGrainsUSDAV3.xlsm]Sheet2!$A$111 | P43: =LEFT(P42,FIND("~",SUBSTITUTE(P42,"$","~",2)))&RIGHT(P42,3)+1 -> $A$111 | U43: TX | V43: Texas
A44: : percent | B44: $A$51 | C44: Kentucky .......: - 2 12 69 17 | D44: - 2 12 69 17 | E44: Kentucky | F44: - | G44: 2 | H44: 12 | I44: 69 | J44: 17 | O44: [CQGGlobexGrainsUSDAV3.xlsm]Sheet2!$A$112 | P44: $A$112 | U44: UT | V44: Utah
A45: : | B45: $A$52 | C45: Louisiana ......: 5 11 36 37 11 | D45: 5 11 36 37 11 | E45: Louisiana | F45: 5 | G45: 11 | H45: 36 | I45: 37 | J45: 11 | O45: [CQGGlobexGrainsUSDAV3.xlsm]Sheet2!$A$113 | P45: $A$113 | U45: VT | V45: Vermont
A46: Arkansas .......: 2 8 27 46 17 | B46: $A$53 | C46: Michigan .......: 2 4 22 59 13 | D46: 2 4 22 59 13 | E46: Michigan | F46: =IF(F45="","",IFERROR(LEFT(D46,FIND(" ",D46)),"")) -> 2 | G46: =IF(G45="","",IFERROR(RIGHT(LEFT(D46,FIND("~",SUBSTITUTE(D46," ","~",2))),FIND("~",SUBSTITUTE(D46," ","~",2))-FIND("~",SUBSTITUTE(D46," ","~",1))),"")) -> 4 | H46: =IF(H45="","",IFERROR(RIGHT(LEFT(D46,FIND("~",SUBSTITUTE(D46," ","~",3))),FIND("~",SUBSTITUTE(D46," ","~",3))-FIND("~",SUBSTITUTE(D46," ","~",2))),"")) -> 22 | I46: =IF(I45="","",IFERROR(RIGHT(LEFT(D46,FIND("~",SUBSTITUTE(D46," ","~",4))),FIND("~",SUBSTITUTE(D46," ","~",4))-FIND("~",SUBSTITUTE(D46," ","~",3))),"")) -> 59 | J46: =IF(J45="","",IFERROR(RIGHT(D46,LEN(D46)-FIND("~",SUBSTITUTE(D46," ","~",4))),"")) -> 13 | O46: [CQGGlobexGrainsUSDAV3.xlsm]Sheet2!$A$114 | P46: $A$114 | U46: VA | V46: Virginia
A47: Illinois .......: 2 3 17 53 25 | B47: $A$54 | C47: Minnesota ......: - 3 20 57 20 | D47: - 3 20 57 20 | E47: Minnesota | F47: =IF(F46="","",IFERROR(LEFT(D47,FIND(" ",D47)),"")) -> - | G47: =IF(G46="","",IFERROR(RIGHT(LEFT(D47,FIND("~",SUBSTITUTE(D47," ","~",2))),FIND("~",SUBSTITUTE(D47," ","~",2))-FIND("~",SUBSTITUTE(D47," ","~",1))),"")) -> 3 | H47: =IF(H46="","",IFERROR(RIGHT(LEFT(D47,FIND("~",SUBSTITUTE(D47," ","~",3))),FIND("~",SUBSTITUTE(D47," ","~",3))-FIND("~",SUBSTITUTE(D47," ","~",2))),"")) -> 20 | I47: =IF(I46="","",IFERROR(RIGHT(LEFT(D47,FIND("~",SUBSTITUTE(D47," ","~",4))),FIND("~",SUBSTITUTE(D47," ","~",4))-FIND("~",SUBSTITUTE(D47," ","~",3))),"")) -> 57 | J47: =IF(J46="","",IFERROR(RIGHT(D47,LEN(D47)-FIND("~",SUBSTITUTE(D47," ","~",4))),"")) -> 20 | O47: [CQGGlobexGrainsUSDAV3.xlsm]Sheet2!$A$115 | P47: $A$115 | U47: WA | V47: Washington
A48: Indiana ........: 2 5 21 55 17 | B48: $A$55 | C48: Mississippi ....: - 2 30 54 14 | D48: - 2 30 54 14 | E48: Mississippi | F48: - | G48: 2 | H48: 30 | I48: 54 | J48: 14 | O48: [CQGGlobexGrainsUSDAV3.xlsm]Sheet2!$A$116 | P48: $A$116 | U48: WV | V48: West Virginia
A49: Iowa ...........: 2 4 18 55 21 | B49: $A$56 | C49: Missouri .......: 3 12 37 43 5 | D49: 3 12 37 43 5 | E49: Missouri | F49: 3 | G49: 12 | H49: 37 | I49: 43 | J49: 5 | O49: [CQGGlobexGrainsUSDAV3.xlsm]Sheet2!$A$117 | P49: $A$117 | U49: WI | V49: Wisconsin
A50: Kansas .........: 1 8 37 49 5 | B50: $A$57 | C50: Nebraska .......: 1 2 11 70 16 | D50: 1 2 11 70 16 | E50: Nebraska | F50: 1 | G50: 2 | H50: 11 | I50: 70 | J50: 16 | O50: [CQGGlobexGrainsUSDAV3.xlsm]Sheet2!$A$118 | P50: $A$118 | U50: WY | V50: Wyoming
A51: Kentucky .......: - 2 12 69 17 | B51: $A$58 | C51: North Carolina .: - 7 38 50 5 | D51: - 7 38 50 5 | E51: North Carolina | F51: - | G51: 7 | H51: 38 | I51: 50 | J51: 5 | O51: [CQGGlobexGrainsUSDAV3.xlsm]Sheet2!$A$119 | P51: $A$119
A52: Louisiana ......: 5 11 36 37 11 | B52: $A$59 | C52: North Dakota ...: - 3 20 68 9 | D52: - 3 20 68 9 | E52: North Dakota | F52: - | G52: 3 | H52: 20 | I52: 68 | J52: 9 | O52: [CQGGlobexGrainsUSDAV3.xlsm]Sheet2!$A$120 | P52: $A$120
A53: Michigan .......: 2 4 22 59 13 | B53: $A$60 | C53: Ohio ...........: - 4 20 57 19 | D53: - 4 20 57 19 | E53: Ohio | F53: - | G53: 4 | H53: 20 | I53: 57 | J53: 19 | O53: [CQGGlobexGrainsUSDAV3.xlsm]Sheet2!$A$121 | P53: $A$121
A54: Minnesota ......: - 3 20 57 20 | B54: $A$61 | C54: South Dakota ...: 3 6 32 51 8 | D54: 3 6 32 51 8 | E54: South Dakota | F54: 3 | G54: 6 | H54: 32 | I54: 51 | J54: 8 | O54: [CQGGlobexGrainsUSDAV3.xlsm]Sheet2!$A$122 | P54: $A$122
A55: Mississippi ....: - 2 30 54 14 | B55: $A$62 | C55: Tennessee ......: - 3 19 58 20 | D55: - 3 19 58 20 | E55: Tennessee | F55: - | G55: 3 | H55: 19 | I55: 58 | J55: 20 | O55: [CQGGlobexGrainsUSDAV3.xlsm]Sheet2!$A$123 | P55: $A$123
A56: Missouri .......: 3 12 37 43 5 | B56: $A$63 | C56: Wisconsin ......: 1 3 13 58 25 | D56: 1 3 13 58 25 | E56: Wisconsin | F56: =IF(F55="","",IFERROR(LEFT(D56,FIND(" ",D56)),"")) -> 1 | G56: =IF(G55="","",IFERROR(RIGHT(LEFT(D56,FIND("~",SUBSTITUTE(D56," ","~",2))),FIND("~",SUBSTITUTE(D56," ","~",2))-FIND("~",SUBSTITUTE(D56," ","~",1))),"")) -> 3 | H56: =IF(H55="","",IFERROR(RIGHT(LEFT(D56,FIND("~",SUBSTITUTE(D56," ","~",3))),FIND("~",SUBSTITUTE(D56," ","~",3))-FIND("~",SUBSTITUTE(D56," ","~",2))),"")) -> 13 | I56: =IF(I55="","",IFERROR(RIGHT(LEFT(D56,FIND("~",SUBSTITUTE(D56," ","~",4))),FIND("~",SUBSTITUTE(D56," ","~",4))-FIND("~",SUBSTITUTE(D56," ","~",3))),"")) -> 58 | J56: =IF(J55="","",IFERROR(RIGHT(D56,LEN(D56)-FIND("~",SUBSTITUTE(D56," ","~",4))),"")) -> 25 | O56: [CQGGlobexGrainsUSDAV3.xlsm]Sheet2!$A$124 | P56: $A$124
A57: Nebraska .......: 1 2 11 70 16 | B57: $A$64 | C57: : | D57: =TRIM(RIGHT(INDIRECT(B57),43)) ->  | E57: =IF(E56="","",IFERROR(LEFT(INDIRECT(B57),FIND(".",INDIRECT(B57))-2),"")) ->  | F57: =IFERROR(LEFT(D57,FIND(" ",D57)),"") ->  | G57: =IF(E56="","",IFERROR(RIGHT(LEFT(D57,FIND("~",SUBSTITUTE(D57," ","~",2))),FIND("~",SUBSTITUTE(D57," ","~",2))-FIND("~",SUBSTITUTE(D57," ","~",1))),"")) ->  | H57: =IF(E56="","",IFERROR(RIGHT(LEFT(D57,FIND("~",SUBSTITUTE(D57," ","~",3))),FIND("~",SUBSTITUTE(D57," ","~",3))-FIND("~",SUBSTITUTE(D57," ","~",2))),"")) ->  | I57: =IF(E56="","",IFERROR(RIGHT(D57,LEN(D57)-FIND("~",SUBSTITUTE(D57," ","~",3))),"")) ->  | O57: [CQGGlobexGrainsUSDAV3.xlsm]Sheet2!$A$125 | P57: $A$125
A58: North Carolina .: - 7 38 50 5 | B58: $A$65 | C58: 18 States ......: 1 5 23 55 16 | D58: 5 23 55 16 | F58: 5 | O58: [CQGGlobexGrainsUSDAV3.xlsm]Sheet2!$A$126 | P58: $A$126
A59: North Dakota ...: - 3 20 68 9 | B59: $A$66 | C59: : | O59: [CQGGlobexGrainsUSDAV3.xlsm]Sheet2!$A$127 | P59: $A$127
A60: Ohio ...........: - 4 20 57 19 | B60: $A$67 | C60: Previous week ..: 1 4 22 58 15 | D60: 4 22 58 15 | F60: 4 | O60: [CQGGlobexGrainsUSDAV3.xlsm]Sheet2!$A$128 | P60: $A$128
A61: South Dakota ...: 3 6 32 51 8 | B61: $A$68 | C61: Previous year ..: 2 7 27 54 10 | D61: =RIGHT(INDIRECT(B61),43) -> 7 27 54 10 | O61: [CQGGlobexGrainsUSDAV3.xlsm]Sheet2!$A$129 | P61: $A$129
A62: Tennessee ......: - 3 19 58 20 | B62: $A$69 | C62: ---------------------------------------------------------------------------- | D62: ------------------------------------------- | O62: [CQGGlobexGrainsUSDAV3.xlsm]Sheet2!$A$130 | P62: $A$130
A63: Wisconsin ......: 1 3 13 58 25 | B63: $A$70 | F63: =IF(E62="","",IFERROR(LEFT(D63,FIND(" ",D63)),"")) ->  | O63: [CQGGlobexGrainsUSDAV3.xlsm]Sheet2!$A$131 | P63: $A$131
A64: : | B64: $A$71 | C64: 0 | D64: 0 | E64: =IFERROR(LEFT(INDIRECT(B64),FIND(".",INDIRECT(B64))-2),"") ->  | F64: =IFERROR(LEFT(D64,FIND(" ",D64)),"") ->  | G64: =IFERROR(RIGHT(LEFT(D64,FIND("~",SUBSTITUTE(D64," ","~",2))),FIND("~",SUBSTITUTE(D64," ","~",2))-FIND("~",SUBSTITUTE(D64," ","~",1))),"") ->  | H64: =IFERROR(RIGHT(LEFT(D64,FIND("~",SUBSTITUTE(D64," ","~",3))),FIND("~",SUBSTITUTE(D64," ","~",3))-FIND("~",SUBSTITUTE(D64," ","~",2))),"") ->  | I64: =IFERROR(RIGHT(D64,LEN(D64)-FIND("~",SUBSTITUTE(D64," ","~",3))),"") ->  | O64: [CQGGlobexGrainsUSDAV3.xlsm]Sheet2!$A$132 | P64: $A$132
A65: 18 States ......: 1 5 23 55 16 | B65: $A$72 | C65: Cotton Squaring - Selected States | D65: Cotton Squaring - Selected States | F65: Cotton | G65: Squaring | H65: - | I65: Selected States | O65: [CQGGlobexGrainsUSDAV3.xlsm]Sheet2!$A$133 | P65: $A$133
A66: : | B66: $A$73 | C66: [These 15 States planted 99% of the 2017 cotton acreage] | D66: tes planted 99% of the 2017 cotton acreage] | F66: tes | G66: planted | H66: 99% | I66: of the 2017 cotton acreage] | O66: [CQGGlobexGrainsUSDAV3.xlsm]Sheet2!$A$134 | P66: $A$134
A67: Previous week ..: 1 4 22 58 15 | B67: $A$74 | O67: [CQGGlobexGrainsUSDAV3.xlsm]Sheet2!$A$135 | P67: $A$135
A68: Previous year ..: 2 7 27 54 10 | B68: $A$75 | O68: [CQGGlobexGrainsUSDAV3.xlsm]Sheet2!$A$136 | P68: $A$136
A69: ---------------------------------------------------------------------------- | O69: [CQGGlobexGrainsUSDAV3.xlsm]Sheet2!$A$137 | P69: $A$137
O70: [CQGGlobexGrainsUSDAV3.xlsm]Sheet2!$A$138 | P70: $A$138
A71: 0 | E71: - | F71: =IFERROR(IF(F39=$E$71,0,1*F39),"") -> 2 | G71: =IFERROR(IF(G39=$E$71,0,1*G39),"") -> 8 | H71: 27 | I71: 46 | J71: 17 | O71: [CQGGlobexGrainsUSDAV3.xlsm]Sheet2!$A$139 | P71: $A$139
A72: Cotton Squaring - Selected States | F72: =IFERROR(IF(F40=$E$71,0,1*F40),"") -> 2 | G72: 3 | H72: 17 | I72: 53 | J72: 25 | O72: [CQGGlobexGrainsUSDAV3.xlsm]Sheet2!$A$140 | P72: $A$140
A73: [These 15 States planted 99% of the 2017 cotton acreage] | F73: =IFERROR(IF(F41=$E$71,0,1*F41),"") -> 2 | G73: 5 | H73: 21 | I73: 55 | J73: 17 | O73: [CQGGlobexGrainsUSDAV3.xlsm]Sheet2!$A$141 | P73: $A$141
F74: =IFERROR(IF(F42=$E$71,0,1*F42),"") -> 2 | G74: 4 | H74: 18 | I74: 55 | J74: 21 | O74: [CQGGlobexGrainsUSDAV3.xlsm]Sheet2!$A$142 | P74: $A$142
F75: =IFERROR(IF(F43=$E$71,0,1*F43),"") -> 1 | G75: 8 | H75: 37 | I75: 49 | J75: 5 | O75: [CQGGlobexGrainsUSDAV3.xlsm]Sheet2!$A$143 | P75: $A$143
F76: =IFERROR(IF(F44=$E$71,0,1*F44),"") -> 0 | G76: 2 | H76: 12 | I76: 69 | J76: 17
F77: =IFERROR(IF(F45=$E$71,0,1*F45),"") -> 5 | G77: 11 | H77: 36 | I77: 37 | J77: 11
F78: =IFERROR(IF(F46=$E$71,0,1*F46),"") -> 2 | G78: 4 | H78: 22 | I78: 59 | J78: 13
F79: =IFERROR(IF(F47=$E$71,0,1*F47),"") -> 0 | G79: 3 | H79: 20 | I79: 57 | J79: 20
F80: =IFERROR(IF(F48=$E$71,0,1*F48),"") -> 0 | G80: 2 | H80: 30 | I80: 54 | J80: 14
F81: =IFERROR(IF(F49=$E$71,0,1*F49),"") -> 3 | G81: 12 | H81: 37 | I81: 43 | J81: 5
F82: =IFERROR(IF(F50=$E$71,0,1*F50),"") -> 1 | G82: 2 | H82: 11 | I82: 70 | J82: 16
F83: =IFERROR(IF(F51=$E$71,0,1*F51),"") -> 0 | G83: 7 | H83: 38 | I83: 50 | J83: 5
F84: =IFERROR(IF(F52=$E$71,0,1*F52),"") -> 0 | G84: 3 | H84: 20 | I84: 68 | J84: 9
F85: =IFERROR(IF(F53=$E$71,0,1*F53),"") -> 0 | G85: 4 | H85: 20 | I85: 57 | J85: 19
F86: =IFERROR(IF(F54=$E$71,0,1*F54),"") -> 3 | G86: 6 | H86: 32 | I86: 51 | J86: 8
F87: =IFERROR(IF(F55=$E$71,0,1*F55),"") -> 0 | G87: 3 | H87: 19 | I87: 58 | J87: 20
F88: =IFERROR(IF(F56=$E$71,0,1*F56),"") -> 1 | G88: 3 | H88: 13 | I88: 58 | J88: 25

Sheet Sheet4 (hidden)
B2: ZSE | F2: =IF(RTD("cqg.rtd", ,"ContractData","ZSE", "LastTradeToday",, "T")="",-1,0) -> 0
B3: 1 | C3: =$B$2&"?"&B3 -> ZSE?1 | D3: =RTD("cqg.rtd",,"StudyData",C3,"Bar",,"Close","D",$F$2,,,,,"T") -> 861.5 | E3: =RTD("cqg.rtd", ,"ContractData",C3, "contractMonth",, "T") -> JUL | F3: =IF(RTD("cqg.rtd", ,"ContractData",C3, "NetLastTradeToday",, "T")="",RTD("cqg.rtd",,"StudyData",C3,"Bar",,"Close","D","-1",,,,,"T")-RTD("cqg.rtd",,"StudyData",C3,"Bar",,"Close","D","-2",,,,,"T"),RTD("cqg.rtd", ,"ContractData",C3, "NetLastTradeToday",, "T")) -> -12.5 | H3: =RTD("cqg.rtd", ,"ContractData",C3, "Bid",, "T") -> 856.5 | I3: =RTD("cqg.rtd", ,"ContractData",C3, "Ask",, "T") -> 857.25 | K3: =IFERROR(IF(OR(D3>I3,D3<H3),MEDIAN(I3,H3),D3),NA()) -> 856.875 | M3: =IF(RTD("cqg.rtd", ,"ContractData",C3, "NetLastTradeToday",, "T")="",RTD("cqg.rtd",,"StudyData",C3,"Bar",,"Close","D","-1",,,,,"T")-RTD("cqg.rtd",,"StudyData",C3,"Bar",,"Close","D","-2",,,,,"T"),RTD("cqg.rtd", ,"ContractData",C3, "NetLastTradeToday",, "T")) -> -12.5 | O3: =IFERROR(IF(RTD("cqg.rtd", ,"ContractData",C3, "NetLastTradeToday",, "T")="",K3-RTD("cqg.rtd",,"ContractData",C3,"Y_Settlement",,"T"),IF(OR(D3>I3,D3<H3),MEDIAN(I3,H3),D3)-RTD("cqg.rtd",,"ContractData",C3,"Y_Settlement",,"T")),NA()) -> -17.125 | Q3: =RTD("cqg.rtd",,"ContractData",C3,"Y_Settlement",,"T") -> 874
B4: 2 | C4: ZSE?2 | D4: =RTD("cqg.rtd",,"StudyData",C4,"Bar",,"Close","D",$F$2,,,,,"T") -> 861 | E4: =RTD("cqg.rtd", ,"ContractData",C4, "contractMonth",, "T") -> AUG | F4: =IF(RTD("cqg.rtd", ,"ContractData",C4, "NetLastTradeToday",, "T")="",RTD("cqg.rtd",,"StudyData",C4,"Bar",,"Close","D","-1",,,,,"T")-RTD("cqg.rtd",,"StudyData",C4,"Bar",,"Close","D","-2",,,,,"T"),RTD("cqg.rtd", ,"ContractData",C4, "NetLastTradeToday",, "T")) -> -16.5 | H4: =RTD("cqg.rtd", ,"ContractData",C4, "Bid",, "T") -> 860.75 | I4: =RTD("cqg.rtd", ,"ContractData",C4, "Ask",, "T") -> 861 | K4: =IFERROR(IF(OR(D4>I4,D4<H4),MEDIAN(I4,H4),D4),NA()) -> 861 | M4: =IF(RTD("cqg.rtd", ,"ContractData",C4, "NetLastTradeToday",, "T")="",RTD("cqg.rtd",,"StudyData",C4,"Bar",,"Close","D","-1",,,,,"T")-RTD("cqg.rtd",,"StudyData",C4,"Bar",,"Close","D","-2",,,,,"T"),RTD("cqg.rtd", ,"ContractData",C4, "NetLastTradeToday",, "T")) -> -16.5
B5: 3 | C5: ZSE?3 | D5: =RTD("cqg.rtd",,"StudyData",C5,"Bar",,"Close","D",$F$2,,,,,"T") -> 866.5 | E5: =RTD("cqg.rtd", ,"ContractData",C5, "contractMonth",, "T") -> SEP | F5: =IF(RTD("cqg.rtd", ,"ContractData",C5, "NetLastTradeToday",, "T")="",RTD("cqg.rtd",,"StudyData",C5,"Bar",,"Close","D","-1",,,,,"T")-RTD("cqg.rtd",,"StudyData",C5,"Bar",,"Close","D","-2",,,,,"T"),RTD("cqg.rtd", ,"ContractData",C5, "NetLastTradeToday",, "T")) -> -16.75 | H5: =RTD("cqg.rtd", ,"ContractData",C5, "Bid",, "T") -> 866.25 | I5: =RTD("cqg.rtd", ,"ContractData",C5, "Ask",, "T") -> 866.5 | K5: 866.5 | M5: =IF(RTD("cqg.rtd", ,"ContractData",C5, "NetLastTradeToday",, "T")="",RTD("cqg.rtd",,"StudyData",C5,"Bar",,"Close","D","-1",,,,,"T")-RTD("cqg.rtd",,"StudyData",C5,"Bar",,"Close","D","-2",,,,,"T"),RTD("cqg.rtd", ,"ContractData",C5, "NetLastTradeToday",, "T")) -> -16.75
B6: 4 | C6: ZSE?4 | D6: =RTD("cqg.rtd",,"StudyData",C6,"Bar",,"Close","D",$F$2,,,,,"T") -> 877.75 | E6: =RTD("cqg.rtd", ,"ContractData",C6, "contractMonth",, "T") -> NOV | F6: =IF(RTD("cqg.rtd", ,"ContractData",C6, "NetLastTradeToday",, "T")="",RTD("cqg.rtd",,"StudyData",C6,"Bar",,"Close","D","-1",,,,,"T")-RTD("cqg.rtd",,"StudyData",C6,"Bar",,"Close","D","-2",,,,,"T"),RTD("cqg.rtd", ,"ContractData",C6, "NetLastTradeToday",, "T")) -> -16.75 | H6: =RTD("cqg.rtd", ,"ContractData",C6, "Bid",, "T") -> 877.5 | I6: =RTD("cqg.rtd", ,"ContractData",C6, "Ask",, "T") -> 877.75 | K6: 877.75 | M6: =IF(RTD("cqg.rtd", ,"ContractData",C6, "NetLastTradeToday",, "T")="",RTD("cqg.rtd",,"StudyData",C6,"Bar",,"Close","D","-1",,,,,"T")-RTD("cqg.rtd",,"StudyData",C6,"Bar",,"Close","D","-2",,,,,"T"),RTD("cqg.rtd", ,"ContractData",C6, "NetLastTradeToday",, "T")) -> -16.75
B7: 5 | C7: ZSE?5 | D7: =RTD("cqg.rtd",,"StudyData",C7,"Bar",,"Close","D",$F$2,,,,,"T") -> 887.75 | E7: =RTD("cqg.rtd", ,"ContractData",C7, "contractMonth",, "T") -> JAN | F7: =IF(RTD("cqg.rtd", ,"ContractData",C7, "NetLastTradeToday",, "T")="",RTD("cqg.rtd",,"StudyData",C7,"Bar",,"Close","D","-1",,,,,"T")-RTD("cqg.rtd",,"StudyData",C7,"Bar",,"Close","D","-2",,,,,"T"),RTD("cqg.rtd", ,"ContractData",C7, "NetLastTradeToday",, "T")) -> -16.25 | H7: =RTD("cqg.rtd", ,"ContractData",C7, "Bid",, "T") -> 887.5 | I7: =RTD("cqg.rtd", ,"ContractData",C7, "Ask",, "T") -> 887.75 | K7: 887.75 | M7: =IF(RTD("cqg.rtd", ,"ContractData",C7, "NetLastTradeToday",, "T")="",RTD("cqg.rtd",,"StudyData",C7,"Bar",,"Close","D","-1",,,,,"T")-RTD("cqg.rtd",,"StudyData",C7,"Bar",,"Close","D","-2",,,,,"T"),RTD("cqg.rtd", ,"ContractData",C7, "NetLastTradeToday",, "T")) -> -16.25
B8: 6 | C8: ZSE?6 | D8: =RTD("cqg.rtd",,"StudyData",C8,"Bar",,"Close","D",$F$2,,,,,"T") -> 895 | E8: =RTD("cqg.rtd", ,"ContractData",C8, "contractMonth",, "T") -> MAR | F8: =IF(RTD("cqg.rtd", ,"ContractData",C8, "NetLastTradeToday",, "T")="",RTD("cqg.rtd",,"StudyData",C8,"Bar",,"Close","D","-1",,,,,"T")-RTD("cqg.rtd",,"StudyData",C8,"Bar",,"Close","D","-2",,,,,"T"),RTD("cqg.rtd", ,"ContractData",C8, "NetLastTradeToday",, "T")) -> -16 | H8: =RTD("cqg.rtd", ,"ContractData",C8, "Bid",, "T") -> 895 | I8: =RTD("cqg.rtd", ,"ContractData",C8, "Ask",, "T") -> 895.25 | K8: 895 | M8: =IF(RTD("cqg.rtd", ,"ContractData",C8, "NetLastTradeToday",, "T")="",RTD("cqg.rtd",,"StudyData",C8,"Bar",,"Close","D","-1",,,,,"T")-RTD("cqg.rtd",,"StudyData",C8,"Bar",,"Close","D","-2",,,,,"T"),RTD("cqg.rtd", ,"ContractData",C8, "NetLastTradeToday",, "T")) -> -16
B9: 7 | C9: ZSE?7 | D9: =RTD("cqg.rtd",,"StudyData",C9,"Bar",,"Close","D",$F$2,,,,,"T") -> 904 | E9: =RTD("cqg.rtd", ,"ContractData",C9, "contractMonth",, "T") -> MAY | F9: =IF(RTD("cqg.rtd", ,"ContractData",C9, "NetLastTradeToday",, "T")="",RTD("cqg.rtd",,"StudyData",C9,"Bar",,"Close","D","-1",,,,,"T")-RTD("cqg.rtd",,"StudyData",C9,"Bar",,"Close","D","-2",,,,,"T"),RTD("cqg.rtd", ,"ContractData",C9, "NetLastTradeToday",, "T")) -> -15.75 | H9: =RTD("cqg.rtd", ,"ContractData",C9, "Bid",, "T") -> 904 | I9: =RTD("cqg.rtd", ,"ContractData",C9, "Ask",, "T") -> 904.25 | K9: 904 | M9: =IF(RTD("cqg.rtd", ,"ContractData",C9, "NetLastTradeToday",, "T")="",RTD("cqg.rtd",,"StudyData",C9,"Bar",,"Close","D","-1",,,,,"T")-RTD("cqg.rtd",,"StudyData",C9,"Bar",,"Close","D","-2",,,,,"T"),RTD("cqg.rtd", ,"ContractData",C9, "NetLastTradeToday",, "T")) -> -15.75
B10: 8 | C10: ZSE?8 | D10: =RTD("cqg.rtd",,"StudyData",C10,"Bar",,"Close","D",$F$2,,,,,"T") -> 912.75 | E10: =RTD("cqg.rtd", ,"ContractData",C10, "contractMonth",, "T") -> JUL | F10: =IF(RTD("cqg.rtd", ,"ContractData",C10, "NetLastTradeToday",, "T")="",RTD("cqg.rtd",,"StudyData",C10,"Bar",,"Close","D","-1",,,,,"T")-RTD("cqg.rtd",,"StudyData",C10,"Bar",,"Close","D","-2",,,,,"T"),RTD("cqg.rtd", ,"ContractData",C10, "NetLastTradeToday",, "T")) -> -15.5 | H10: =RTD("cqg.rtd", ,"ContractData",C10, "Bid",, "T") -> 912.75 | I10: =RTD("cqg.rtd", ,"ContractData",C10, "Ask",, "T") -> 913 | K10: 912.75 | M10: =IF(RTD("cqg.rtd", ,"ContractData",C10, "NetLastTradeToday",, "T")="",RTD("cqg.rtd",,"StudyData",C10,"Bar",,"Close","D","-1",,,,,"T")-RTD("cqg.rtd",,"StudyData",C10,"Bar",,"Close","D","-2",,,,,"T"),RTD("cqg.rtd", ,"ContractData",C10, "NetLastTradeToday",, "T")) -> -15.5
B11: 9 | C11: ZSE?9 | D11: =RTD("cqg.rtd",,"StudyData",C11,"Bar",,"Close","D",$F$2,,,,,"T") ->  | E11: =RTD("cqg.rtd", ,"ContractData",C11, "contractMonth",, "T") -> AUG | F11: =IF(RTD("cqg.rtd", ,"ContractData",C11, "NetLastTradeToday",, "T")="",RTD("cqg.rtd",,"StudyData",C11,"Bar",,"Close","D","-1",,,,,"T")-RTD("cqg.rtd",,"StudyData",C11,"Bar",,"Close","D","-2",,,,,"T"),RTD("cqg.rtd", ,"ContractData",C11, "NetLastTradeToday",, "T")) -> 37.5 | H11: =RTD("cqg.rtd", ,"ContractData",C11, "Bid",, "T") -> 912.25 | I11: =RTD("cqg.rtd", ,"ContractData",C11, "Ask",, "T") -> 913 | K11: 912.625 | M11: =IF(RTD("cqg.rtd", ,"ContractData",C11, "NetLastTradeToday",, "T")="",RTD("cqg.rtd",,"StudyData",C11,"Bar",,"Close","D","-1",,,,,"T")-RTD("cqg.rtd",,"StudyData",C11,"Bar",,"Close","D","-2",,,,,"T"),RTD("cqg.rtd", ,"ContractData",C11, "NetLastTradeToday",, "T")) -> 37.5
B12: 10 | C12: ZSE?10 | D12: =RTD("cqg.rtd",,"StudyData",C12,"Bar",,"Close","D",$F$2,,,,,"T") ->  | E12: =RTD("cqg.rtd", ,"ContractData",C12, "contractMonth",, "T") -> SEP | F12: =IF(RTD("cqg.rtd", ,"ContractData",C12, "NetLastTradeToday",, "T")="",RTD("cqg.rtd",,"StudyData",C12,"Bar",,"Close","D","-1",,,,,"T")-RTD("cqg.rtd",,"StudyData",C12,"Bar",,"Close","D","-2",,,,,"T"),RTD("cqg.rtd", ,"ContractData",C12, "NetLastTradeToday",, "T")) -> 33.75 | H12: =RTD("cqg.rtd", ,"ContractData",C12, "Bid",, "T") -> 903.25 | I12: =RTD("cqg.rtd", ,"ContractData",C12, "Ask",, "T") -> 907.25 | K12: 905.25 | M12: =IF(RTD("cqg.rtd", ,"ContractData",C12, "NetLastTradeToday",, "T")="",RTD("cqg.rtd",,"StudyData",C12,"Bar",,"Close","D","-1",,,,,"T")-RTD("cqg.rtd",,"StudyData",C12,"Bar",,"Close","D","-2",,,,,"T"),RTD("cqg.rtd", ,"ContractData",C12, "NetLastTradeToday",, "T")) -> 33.75
B14: ZCE
B15: 1 | C15: =$B$14&"?"&B15 -> ZCE?1 | D15: =RTD("cqg.rtd",,"StudyData",C15,"Bar",,"Close","D",$F$2,,,,,"T") -> 345 | E15: =RTD("cqg.rtd", ,"ContractData",C15, "contractMonth",, "T") -> JUL | F15: =IF(RTD("cqg.rtd", ,"ContractData",C15, "NetLastTradeToday",, "T")="",RTD("cqg.rtd",,"StudyData",C15,"Bar",,"Close","D","-1",,,,,"T")-RTD("cqg.rtd",,"StudyData",C15,"Bar",,"Close","D","-2",,,,,"T"),RTD("cqg.rtd", ,"ContractData",C15, "NetLastTradeToday",, "T")) -> -6.75 | H15: =RTD("cqg.rtd", ,"ContractData",C15, "Bid",, "T") -> 344.5 | I15: =RTD("cqg.rtd", ,"ContractData",C15, "Ask",, "T") -> 345 | K15: =IFERROR(IF(OR(D15>I15,D15<H15),MEDIAN(I15,H15),D15),NA()) -> 345 | M15: =IF(RTD("cqg.rtd", ,"ContractData",C15, "NetLastTradeToday",, "T")="",RTD("cqg.rtd",,"StudyData",C15,"Bar",,"Close","D","-1",,,,,"T")-RTD("cqg.rtd",,"StudyData",C15,"Bar",,"Close","D","-2",,,,,"T"),RTD("cqg.rtd", ,"ContractData",C15, "NetLastTradeToday",, "T")) -> -6.75
B16: 2 | C16: =$B$14&"?"&B16 -> ZCE?2 | D16: =RTD("cqg.rtd",,"StudyData",C16,"Bar",,"Close","D",$F$2,,,,,"T") -> 353.5 | E16: =RTD("cqg.rtd", ,"ContractData",C16, "contractMonth",, "T") -> SEP | F16: =IF(RTD("cqg.rtd", ,"ContractData",C16, "NetLastTradeToday",, "T")="",RTD("cqg.rtd",,"StudyData",C16,"Bar",,"Close","D","-1",,,,,"T")-RTD("cqg.rtd",,"StudyData",C16,"Bar",,"Close","D","-2",,,,,"T"),RTD("cqg.rtd", ,"ContractData",C16, "NetLastTradeToday",, "T")) -> -6.75 | H16: =RTD("cqg.rtd", ,"ContractData",C16, "Bid",, "T") -> 353.25 | I16: =RTD("cqg.rtd", ,"ContractData",C16, "Ask",, "T") -> 353.5 | K16: 353.5 | M16: =IF(RTD("cqg.rtd", ,"ContractData",C16, "NetLastTradeToday",, "T")="",RTD("cqg.rtd",,"StudyData",C16,"Bar",,"Close","D","-1",,,,,"T")-RTD("cqg.rtd",,"StudyData",C16,"Bar",,"Close","D","-2",,,,,"T"),RTD("cqg.rtd", ,"ContractData",C16, "NetLastTradeToday",, "T")) -> -6.75
B17: 3 | C17: ZCE?3 | D17: =RTD("cqg.rtd",,"StudyData",C17,"Bar",,"Close","D",$F$2,,,,,"T") -> 366.5 | E17: =RTD("cqg.rtd", ,"ContractData",C17, "contractMonth",, "T") -> DEC | F17: =IF(RTD("cqg.rtd", ,"ContractData",C17, "NetLastTradeToday",, "T")="",RTD("cqg.rtd",,"StudyData",C17,"Bar",,"Close","D","-1",,,,,"T")-RTD("cqg.rtd",,"StudyData",C17,"Bar",,"Close","D","-2",,,,,"T"),RTD("cqg.rtd", ,"ContractData",C17, "NetLastTradeToday",, "T")) -> -6.5 | H17: =RTD("cqg.rtd", ,"ContractData",C17, "Bid",, "T") -> 366.25 | I17: =RTD("cqg.rtd", ,"ContractData",C17, "Ask",, "T") -> 366.5 | K17: 366.5 | M17: =IF(RTD("cqg.rtd", ,"ContractData",C17, "NetLastTradeToday",, "T")="",RTD("cqg.rtd",,"StudyData",C17,"Bar",,"Close","D","-1",,,,,"T")-RTD("cqg.rtd",,"StudyData",C17,"Bar",,"Close","D","-2",,,,,"T"),RTD("cqg.rtd", ,"ContractData",C17, "NetLastTradeToday",, "T")) -> -6.5
B18: 4 | C18: ZCE?4 | D18: =RTD("cqg.rtd",,"StudyData",C18,"Bar",,"Close","D",$F$2,,,,,"T") -> 376.75 | E18: =RTD("cqg.rtd", ,"ContractData",C18, "contractMonth",, "T") -> MAR | F18: =IF(RTD("cqg.rtd", ,"ContractData",C18, "NetLastTradeToday",, "T")="",RTD("cqg.rtd",,"StudyData",C18,"Bar",,"Close","D","-1",,,,,"T")-RTD("cqg.rtd",,"StudyData",C18,"Bar",,"Close","D","-2",,,,,"T"),RTD("cqg.rtd", ,"ContractData",C18, "NetLastTradeToday",, "T")) -> -6.5 | H18: =RTD("cqg.rtd", ,"ContractData",C18, "Bid",, "T") -> 376.75 | I18: =RTD("cqg.rtd", ,"ContractData",C18, "Ask",, "T") -> 377 | K18: 376.75 | M18: =IF(RTD("cqg.rtd", ,"ContractData",C18, "NetLastTradeToday",, "T")="",RTD("cqg.rtd",,"StudyData",C18,"Bar",,"Close","D","-1",,,,,"T")-RTD("cqg.rtd",,"StudyData",C18,"Bar",,"Close","D","-2",,,,,"T"),RTD("cqg.rtd", ,"ContractData",C18, "NetLastTradeToday",, "T")) -> -6.5
B19: 5 | C19: ZCE?5 | D19: =RTD("cqg.rtd",,"StudyData",C19,"Bar",,"Close","D",$F$2,,,,,"T") -> 384 | E19: =RTD("cqg.rtd", ,"ContractData",C19, "contractMonth",, "T") -> MAY | F19: =IF(RTD("cqg.rtd", ,"ContractData",C19, "NetLastTradeToday",, "T")="",RTD("cqg.rtd",,"StudyData",C19,"Bar",,"Close","D","-1",,,,,"T")-RTD("cqg.rtd",,"StudyData",C19,"Bar",,"Close","D","-2",,,,,"T"),RTD("cqg.rtd", ,"ContractData",C19, "NetLastTradeToday",, "T")) -> -6 | H19: =RTD("cqg.rtd", ,"ContractData",C19, "Bid",, "T") -> 383.5 | I19: =RTD("cqg.rtd", ,"ContractData",C19, "Ask",, "T") -> 383.75 | K19: 383.625 | M19: =IF(RTD("cqg.rtd", ,"ContractData",C19, "NetLastTradeToday",, "T")="",RTD("cqg.rtd",,"StudyData",C19,"Bar",,"Close","D","-1",,,,,"T")-RTD("cqg.rtd",,"StudyData",C19,"Bar",,"Close","D","-2",,,,,"T"),RTD("cqg.rtd", ,"ContractData",C19, "NetLastTradeToday",, "T")) -> -6
B20: 6 | C20: ZCE?6 | D20: =RTD("cqg.rtd",,"StudyData",C20,"Bar",,"Close","D",$F$2,,,,,"T") -> 390 | E20: =RTD("cqg.rtd", ,"ContractData",C20, "contractMonth",, "T") -> JUL | F20: =IF(RTD("cqg.rtd", ,"ContractData",C20, "NetLastTradeToday",, "T")="",RTD("cqg.rtd",,"StudyData",C20,"Bar",,"Close","D","-1",,,,,"T")-RTD("cqg.rtd",,"StudyData",C20,"Bar",,"Close","D","-2",,,,,"T"),RTD("cqg.rtd", ,"ContractData",C20, "NetLastTradeToday",, "T")) -> -6.5 | H20: =RTD("cqg.rtd", ,"ContractData",C20, "Bid",, "T") -> 389.75 | I20: =RTD("cqg.rtd", ,"ContractData",C20, "Ask",, "T") -> 390.25 | K20: 390 | M20: =IF(RTD("cqg.rtd", ,"ContractData",C20, "NetLastTradeToday",, "T")="",RTD("cqg.rtd",,"StudyData",C20,"Bar",,"Close","D","-1",,,,,"T")-RTD("cqg.rtd",,"StudyData",C20,"Bar",,"Close","D","-2",,,,,"T"),RTD("cqg.rtd", ,"ContractData",C20, "NetLastTradeToday",, "T")) -> -6.5
B21: 7 | C21: ZCE?7 | D21: =RTD("cqg.rtd",,"StudyData",C21,"Bar",,"Close","D",$F$2,,,,,"T") -> 389 | E21: =RTD("cqg.rtd", ,"ContractData",C21, "contractMonth",, "T") -> SEP | F21: =IF(RTD("cqg.rtd", ,"ContractData",C21, "NetLastTradeToday",, "T")="",RTD("cqg.rtd",,"StudyData",C21,"Bar",,"Close","D","-1",,,,,"T")-RTD("cqg.rtd",,"StudyData",C21,"Bar",,"Close","D","-2",,,,,"T"),RTD("cqg.rtd", ,"ContractData",C21, "NetLastTradeToday",, "T")) -> -5.25 | H21: =RTD("cqg.rtd", ,"ContractData",C21, "Bid",, "T") -> 388.5 | I21: =RTD("cqg.rtd", ,"ContractData",C21, "Ask",, "T") -> 388.75 | K21: 388.625 | M21: =IF(RTD("cqg.rtd", ,"ContractData",C21, "NetLastTradeToday",, "T")="",RTD("cqg.rtd",,"StudyData",C21,"Bar",,"Close","D","-1",,,,,"T")-RTD("cqg.rtd",,"StudyData",C21,"Bar",,"Close","D","-2",,,,,"T"),RTD("cqg.rtd", ,"ContractData",C21, "NetLastTradeToday",, "T")) -> -5.25
B22: 8 | C22: ZCE?8 | D22: =RTD("cqg.rtd",,"StudyData",C22,"Bar",,"Close","D",$F$2,,,,,"T") -> 394 | E22: =RTD("cqg.rtd", ,"ContractData",C22, "contractMonth",, "T") -> DEC | F22: =IF(RTD("cqg.rtd", ,"ContractData",C22, "NetLastTradeToday",, "T")="",RTD("cqg.rtd",,"StudyData",C22,"Bar",,"Close","D","-1",,,,,"T")-RTD("cqg.rtd",,"StudyData",C22,"Bar",,"Close","D","-2",,,,,"T"),RTD("cqg.rtd", ,"ContractData",C22, "NetLastTradeToday",, "T")) -> -5 | H22: =RTD("cqg.rtd", ,"ContractData",C22, "Bid",, "T") -> 393.75 | I22: =RTD("cqg.rtd", ,"ContractData",C22, "Ask",, "T") -> 394 | K22: 394 | M22: =IF(RTD("cqg.rtd", ,"ContractData",C22, "NetLastTradeToday",, "T")="",RTD("cqg.rtd",,"StudyData",C22,"Bar",,"Close","D","-1",,,,,"T")-RTD("cqg.rtd",,"StudyData",C22,"Bar",,"Close","D","-2",,,,,"T"),RTD("cqg.rtd", ,"ContractData",C22, "NetLastTradeToday",, "T")) -> -5
B23: 9 | C23: ZCE?9 | D23: =RTD("cqg.rtd",,"StudyData",C23,"Bar",,"Close","D",$F$2,,,,,"T") -> 405.5 | E23: =RTD("cqg.rtd", ,"ContractData",C23, "contractMonth",, "T") -> MAR | F23: =IF(RTD("cqg.rtd", ,"ContractData",C23, "NetLastTradeToday",, "T")="",RTD("cqg.rtd",,"StudyData",C23,"Bar",,"Close","D","-1",,,,,"T")-RTD("cqg.rtd",,"StudyData",C23,"Bar",,"Close","D","-2",,,,,"T"),RTD("cqg.rtd", ,"ContractData",C23, "NetLastTradeToday",, "T")) -> -3.25 | H23: =RTD("cqg.rtd", ,"ContractData",C23, "Bid",, "T") -> 403.25 | I23: =RTD("cqg.rtd", ,"ContractData",C23, "Ask",, "T") -> 403.75 | K23: 403.5 | M23: =IF(RTD("cqg.rtd", ,"ContractData",C23, "NetLastTradeToday",, "T")="",RTD("cqg.rtd",,"StudyData",C23,"Bar",,"Close","D","-1",,,,,"T")-RTD("cqg.rtd",,"StudyData",C23,"Bar",,"Close","D","-2",,,,,"T"),RTD("cqg.rtd", ,"ContractData",C23, "NetLastTradeToday",, "T")) -> -3.25
B24: 10 | C24: ZCE?10 | D24: =RTD("cqg.rtd",,"StudyData",C24,"Bar",,"Close","D",$F$2,,,,,"T") ->  | E24: =RTD("cqg.rtd", ,"ContractData",C24, "contractMonth",, "T") -> MAY | F24: =IF(RTD("cqg.rtd", ,"ContractData",C24, "NetLastTradeToday",, "T")="",RTD("cqg.rtd",,"StudyData",C24,"Bar",,"Close","D","-1",,,,,"T")-RTD("cqg.rtd",,"StudyData",C24,"Bar",,"Close","D","-2",,,,,"T"),RTD("cqg.rtd", ,"ContractData",C24, "NetLastTradeToday",, "T")) -> 6.25 | H24: =RTD("cqg.rtd", ,"ContractData",C24, "Bid",, "T") -> 409.25 | I24: =RTD("cqg.rtd", ,"ContractData",C24, "Ask",, "T") -> 410.25 | K24: 409.75 | M24: =IF(RTD("cqg.rtd", ,"ContractData",C24, "NetLastTradeToday",, "T")="",RTD("cqg.rtd",,"StudyData",C24,"Bar",,"Close","D","-1",,,,,"T")-RTD("cqg.rtd",,"StudyData",C24,"Bar",,"Close","D","-2",,,,,"T"),RTD("cqg.rtd", ,"ContractData",C24, "NetLastTradeToday",, "T")) -> 6.25
B26: ZWA
B27: 1 | C27: =$B$26&"?"&B27 -> ZWA?1 | D27: =RTD("cqg.rtd",,"StudyData",C27,"Bar",,"Close","D",$F$2,,,,,"T") -> 509.5 | E27: =RTD("cqg.rtd", ,"ContractData",C27, "contractMonth",, "T") -> JUL | F27: =IF(RTD("cqg.rtd", ,"ContractData",C27, "NetLastTradeToday",, "T")="",RTD("cqg.rtd",,"StudyData",C27,"Bar",,"Close","D","-1",,,,,"T")-RTD("cqg.rtd",,"StudyData",C27,"Bar",,"Close","D","-2",,,,,"T"),RTD("cqg.rtd", ,"ContractData",C27, "NetLastTradeToday",, "T")) -> -3.25 | H27: =RTD("cqg.rtd", ,"ContractData",C27, "Bid",, "T") -> 503 | I27: =RTD("cqg.rtd", ,"ContractData",C27, "Ask",, "T") -> 507.25 | K27: =IFERROR(IF(OR(D27>I27,D27<H27),MEDIAN(I27,H27),D27),NA()) -> 505.125 | M27: =IF(RTD("cqg.rtd", ,"ContractData",C27, "NetLastTradeToday",, "T")="",RTD("cqg.rtd",,"StudyData",C27,"Bar",,"Close","D","-1",,,,,"T")-RTD("cqg.rtd",,"StudyData",C27,"Bar",,"Close","D","-2",,,,,"T"),RTD("cqg.rtd", ,"ContractData",C27, "NetLastTradeToday",, "T")) -> -3.25
B28: 2 | C28: =$B$26&"?"&B28 -> ZWA?2 | D28: =RTD("cqg.rtd",,"StudyData",C28,"Bar",,"Close","D",$F$2,,,,,"T") -> 507.25 | E28: =RTD("cqg.rtd", ,"ContractData",C28, "contractMonth",, "T") -> SEP | F28: =IF(RTD("cqg.rtd", ,"ContractData",C28, "NetLastTradeToday",, "T")="",RTD("cqg.rtd",,"StudyData",C28,"Bar",,"Close","D","-1",,,,,"T")-RTD("cqg.rtd",,"StudyData",C28,"Bar",,"Close","D","-2",,,,,"T"),RTD("cqg.rtd", ,"ContractData",C28, "NetLastTradeToday",, "T")) -> -8 | H28: =RTD("cqg.rtd", ,"ContractData",C28, "Bid",, "T") -> 507.25 | I28: =RTD("cqg.rtd", ,"ContractData",C28, "Ask",, "T") -> 507.5 | K28: 507.25 | M28: =IF(RTD("cqg.rtd", ,"ContractData",C28, "NetLastTradeToday",, "T")="",RTD("cqg.rtd",,"StudyData",C28,"Bar",,"Close","D","-1",,,,,"T")-RTD("cqg.rtd",,"StudyData",C28,"Bar",,"Close","D","-2",,,,,"T"),RTD("cqg.rtd", ,"ContractData",C28, "NetLastTradeToday",, "T")) -> -8
B29: 3 | C29: ZWA?3 | D29: =RTD("cqg.rtd",,"StudyData",C29,"Bar",,"Close","D",$F$2,,,,,"T") -> 523.5 | E29: =RTD("cqg.rtd", ,"ContractData",C29, "contractMonth",, "T") -> DEC | F29: =IF(RTD("cqg.rtd", ,"ContractData",C29, "NetLastTradeToday",, "T")="",RTD("cqg.rtd",,"StudyData",C29,"Bar",,"Close","D","-1",,,,,"T")-RTD("cqg.rtd",,"StudyData",C29,"Bar",,"Close","D","-2",,,,,"T"),RTD("cqg.rtd", ,"ContractData",C29, "NetLastTradeToday",, "T")) -> -6.5 | H29: =RTD("cqg.rtd", ,"ContractData",C29, "Bid",, "T") -> 523.25 | I29: =RTD("cqg.rtd", ,"ContractData",C29, "Ask",, "T") -> 523.75 | K29: 523.5 | M29: =IF(RTD("cqg.rtd", ,"ContractData",C29, "NetLastTradeToday",, "T")="",RTD("cqg.rtd",,"StudyData",C29,"Bar",,"Close","D","-1",,,,,"T")-RTD("cqg.rtd",,"StudyData",C29,"Bar",,"Close","D","-2",,,,,"T"),RTD("cqg.rtd", ,"ContractData",C29, "NetLastTradeToday",, "T")) -> -6.5
B30: 4 | C30: ZWA?4 | D30: =RTD("cqg.rtd",,"StudyData",C30,"Bar",,"Close","D",$F$2,,,,,"T") -> 538.25 | E30: =RTD("cqg.rtd", ,"ContractData",C30, "contractMonth",, "T") -> MAR | F30: =IF(RTD("cqg.rtd", ,"ContractData",C30, "NetLastTradeToday",, "T")="",RTD("cqg.rtd",,"StudyData",C30,"Bar",,"Close","D","-1",,,,,"T")-RTD("cqg.rtd",,"StudyData",C30,"Bar",,"Close","D","-2",,,,,"T"),RTD("cqg.rtd", ,"ContractData",C30, "NetLastTradeToday",, "T")) -> -5.5 | H30: =RTD("cqg.rtd", ,"ContractData",C30, "Bid",, "T") -> 538 | I30: =RTD("cqg.rtd", ,"ContractData",C30, "Ask",, "T") -> 538.5 | K30: 538.25 | M30: =IF(RTD("cqg.rtd", ,"ContractData",C30, "NetLastTradeToday",, "T")="",RTD("cqg.rtd",,"StudyData",C30,"Bar",,"Close","D","-1",,,,,"T")-RTD("cqg.rtd",,"StudyData",C30,"Bar",,"Close","D","-2",,,,,"T"),RTD("cqg.rtd", ,"ContractData",C30, "NetLastTradeToday",, "T")) -> -5.5
B31: 5 | C31: ZWA?5 | D31: =RTD("cqg.rtd",,"StudyData",C31,"Bar",,"Close","D",$F$2,,,,,"T") -> 547.75 | E31: =RTD("cqg.rtd", ,"ContractData",C31, "contractMonth",, "T") -> MAY | F31: =IF(RTD("cqg.rtd", ,"ContractData",C31, "NetLastTradeToday",, "T")="",RTD("cqg.rtd",,"StudyData",C31,"Bar",,"Close","D","-1",,,,,"T")-RTD("cqg.rtd",,"StudyData",C31,"Bar",,"Close","D","-2",,,,,"T"),RTD("cqg.rtd", ,"ContractData",C31, "NetLastTradeToday",, "T")) -> -5.25 | H31: =RTD("cqg.rtd", ,"ContractData",C31, "Bid",, "T") -> 547.5 | I31: =RTD("cqg.rtd", ,"ContractData",C31, "Ask",, "T") -> 548 | K31: 547.75 | M31: =IF(RTD("cqg.rtd", ,"ContractData",C31, "NetLastTradeToday",, "T")="",RTD("cqg.rtd",,"StudyData",C31,"Bar",,"Close","D","-1",,,,,"T")-RTD("cqg.rtd",,"StudyData",C31,"Bar",,"Close","D","-2",,,,,"T"),RTD("cqg.rtd", ,"ContractData",C31, "NetLastTradeToday",, "T")) -> -5.25
B32: 6 | C32: ZWA?6 | D32: =RTD("cqg.rtd",,"StudyData",C32,"Bar",,"Close","D",$F$2,,,,,"T") -> 552.5 | E32: =RTD("cqg.rtd", ,"ContractData",C32, "contractMonth",, "T") -> JUL | F32: =IF(RTD("cqg.rtd", ,"ContractData",C32, "NetLastTradeToday",, "T")="",RTD("cqg.rtd",,"StudyData",C32,"Bar",,"Close","D","-1",,,,,"T")-RTD("cqg.rtd",,"StudyData",C32,"Bar",,"Close","D","-2",,,,,"T"),RTD("cqg.rtd", ,"ContractData",C32, "NetLastTradeToday",, "T")) -> -5 | H32: =RTD("cqg.rtd", ,"ContractData",C32, "Bid",, "T") -> 551.5 | I32: =RTD("cqg.rtd", ,"ContractData",C32, "Ask",, "T") -> 552 | K32: 551.75 | M32: =IF(RTD("cqg.rtd", ,"ContractData",C32, "NetLastTradeToday",, "T")="",RTD("cqg.rtd",,"StudyData",C32,"Bar",,"Close","D","-1",,,,,"T")-RTD("cqg.rtd",,"StudyData",C32,"Bar",,"Close","D","-2",,,,,"T"),RTD("cqg.rtd", ,"ContractData",C32, "NetLastTradeToday",, "T")) -> -5
B33: 7 | C33: ZWA?7 | D33: =RTD("cqg.rtd",,"StudyData",C33,"Bar",,"Close","D",$F$2,,,,,"T") -> 560.25 | E33: =RTD("cqg.rtd", ,"ContractData",C33, "contractMonth",, "T") -> SEP | F33: =IF(RTD("cqg.rtd", ,"ContractData",C33, "NetLastTradeToday",, "T")="",RTD("cqg.rtd",,"StudyData",C33,"Bar",,"Close","D","-1",,,,,"T")-RTD("cqg.rtd",,"StudyData",C33,"Bar",,"Close","D","-2",,,,,"T"),RTD("cqg.rtd", ,"ContractData",C33, "NetLastTradeToday",, "T")) -> -5.75 | H33: =RTD("cqg.rtd", ,"ContractData",C33, "Bid",, "T") -> 560 | I33: =RTD("cqg.rtd", ,"ContractData",C33, "Ask",, "T") -> 560.75 | K33: 560.25 | M33: =IF(RTD("cqg.rtd", ,"ContractData",C33, "NetLastTradeToday",, "T")="",RTD("cqg.rtd",,"StudyData",C33,"Bar",,"Close","D","-1",,,,,"T")-RTD("cqg.rtd",,"StudyData",C33,"Bar",,"Close","D","-2",,,,,"T"),RTD("cqg.rtd", ,"ContractData",C33, "NetLastTradeToday",, "T")) -> -5.75
B34: 8 | C34: ZWA?8 | D34: =RTD("cqg.rtd",,"StudyData",C34,"Bar",,"Close","D",$F$2,,,,,"T") -> 573.5 | E34: =RTD("cqg.rtd", ,"ContractData",C34, "contractMonth",, "T") -> DEC | F34: =IF(RTD("cqg.rtd", ,"ContractData",C34, "NetLastTradeToday",, "T")="",RTD("cqg.rtd",,"StudyData",C34,"Bar",,"Close","D","-1",,,,,"T")-RTD("cqg.rtd",,"StudyData",C34,"Bar",,"Close","D","-2",,,,,"T"),RTD("cqg.rtd", ,"ContractData",C34, "NetLastTradeToday",, "T")) -> -5.5 | H34: =RTD("cqg.rtd", ,"ContractData",C34, "Bid",, "T") -> 572.5 | I34: =RTD("cqg.rtd", ,"ContractData",C34, "Ask",, "T") -> 573.25 | K34: 572.875 | M34: =IF(RTD("cqg.rtd", ,"ContractData",C34, "NetLastTradeToday",, "T")="",RTD("cqg.rtd",,"StudyData",C34,"Bar",,"Close","D","-1",,,,,"T")-RTD("cqg.rtd",,"StudyData",C34,"Bar",,"Close","D","-2",,,,,"T"),RTD("cqg.rtd", ,"ContractData",C34, "NetLastTradeToday",, "T")) -> -5.5
B35: 9 | C35: ZWA?9 | D35: =RTD("cqg.rtd",,"StudyData",C35,"Bar",,"Close","D",$F$2,,,,,"T") ->  | E35: =RTD("cqg.rtd", ,"ContractData",C35, "contractMonth",, "T") -> MAR | F35: =IF(RTD("cqg.rtd", ,"ContractData",C35, "NetLastTradeToday",, "T")="",RTD("cqg.rtd",,"StudyData",C35,"Bar",,"Close","D","-1",,,,,"T")-RTD("cqg.rtd",,"StudyData",C35,"Bar",,"Close","D","-2",,,,,"T"),RTD("cqg.rtd", ,"ContractData",C35, "NetLastTradeToday",, "T")) -> 13 | H35: =RTD("cqg.rtd", ,"ContractData",C35, "Bid",, "T") -> 580.75 | I35: =RTD("cqg.rtd", ,"ContractData",C35, "Ask",, "T") -> 582.5 | K35: 581.625 | M35: =IF(RTD("cqg.rtd", ,"ContractData",C35, "NetLastTradeToday",, "T")="",RTD("cqg.rtd",,"StudyData",C35,"Bar",,"Close","D","-1",,,,,"T")-RTD("cqg.rtd",,"StudyData",C35,"Bar",,"Close","D","-2",,,,,"T"),RTD("cqg.rtd", ,"ContractData",C35, "NetLastTradeToday",, "T")) -> 13
B36: 10 | C36: ZWA?10 | D36: =RTD("cqg.rtd",,"StudyData",C36,"Bar",,"Close","D",$F$2,,,,,"T") ->  | E36: =RTD("cqg.rtd", ,"ContractData",C36, "contractMonth",, "T") -> MAY | F36: =IF(RTD("cqg.rtd", ,"ContractData",C36, "NetLastTradeToday",, "T")="",RTD("cqg.rtd",,"StudyData",C36,"Bar",,"Close","D","-1",,,,,"T")-RTD("cqg.rtd",,"StudyData",C36,"Bar",,"Close","D","-2",,,,,"T"),RTD("cqg.rtd", ,"ContractData",C36, "NetLastTradeToday",, "T")) -> 13 | H36: =RTD("cqg.rtd", ,"ContractData",C36, "Bid",, "T") -> 581.75 | I36: =RTD("cqg.rtd", ,"ContractData",C36, "Ask",, "T") -> 588.75 | K36: =IFERROR(IF(OR(D36>I36,D36<H36),MEDIAN(I36,H36),D36),RTD("cqg.rtd", ,"ContractData",C36, "Y_Settlement",, "T")) -> 585.25 | M36: =IF(RTD("cqg.rtd", ,"ContractData",C36, "NetLastTradeToday",, "T")="",RTD("cqg.rtd",,"StudyData",C36,"Bar",,"Close","D","-1",,,,,"T")-RTD("cqg.rtd",,"StudyData",C36,"Bar",,"Close","D","-2",,,,,"T"),RTD("cqg.rtd", ,"ContractData",C36, "NetLastTradeToday",, "T")) -> 13

Sheet Sheet5 (hidden)
A2: Crop Progress
A4: ISSN: 1948-3007
A6: Released July 12, 2010, by the National Agricultural Statistics Service
A7: (NASS), Agricultural Statistics Board, United States Department of
A8: Agriculture (USDA).
A10: Cotton Squaring - Selected States
A11: [These 15 States planted 99% of the 2009 cotton acreage]
A12: -----------------------------------------------------------------
A13: : Week ending :
A14: :-----------------------------------:
A15: State : July 11, : July 4, : July 11, : 2005-2009
A16: : 2009 : 2010 : 2010 : Average
A17: -----------------------------------------------------------------
A18: : percent
A19: :
A20: Alabama .........: 73 56 73 69
A21: Arizona .........: 76 55 70 84
A22: Arkansas ........: 85 97 99 96
A23: California ......: 73 60 75 77
A24: Georgia .........: 68 70 84 75
A25: Kansas ..........: 43 38 49 52
A26: Louisiana .......: 98 91 93 95
A27: Mississippi .....: 89 93 96 92
A28: Missouri ........: 66 66 78 81
A29: North Carolina ..: 84 85 87 90
A30: Oklahoma ........: 61 35 74 51
A31: South Carolina ..: 67 55 69 63
A32: Tennessee .......: 81 77 86 89
A33: Texas ...........: 72 56 75 58
A34: Virginia ........: 61 36 62 67
A35: :
A36: 15 States .......: 74 64 79 68
A37: -----------------------------------------------------------------
A39: Cotton Setting Bolls - Selected States
A40: [These 15 States planted 99% of the 2009 cotton acreage]
A41: -----------------------------------------------------------------
A42: : Week ending :
A43: :-----------------------------------:
A44: State : July 11, : July 4, : July 11, : 2005-2009
A45: : 2009 : 2010 : 2010 : Average
A46: -----------------------------------------------------------------
A47: : percent
A48: :
A49: Alabama .........: 14 14 35 20
A50: Arizona .........: 43 16 25 47
A51: Arkansas ........: 19 31 68 43
A52: California ......: 27 7 16 28
A53: Georgia .........: 19 21 40 29
A54: Kansas ..........: 1 - 1 1
A55: Louisiana .......: 57 53 60 59
A56: Mississippi .....: 35 45 67 42
A57: Missouri ........: 8 16 32 26
A58: North Carolina ..: 27 10 35 15
A59: Oklahoma ........: 2 - 18 5
A60: South Carolina ..: 8 7 18 10
A61: Tennessee .......: 5 10 18 19
A62: Texas ...........: 20 11 14 18
A63: Virginia ........: 12 16 42 11
A64: :
A65: 15 States .......: 20 15 26 23
A66: -----------------------------------------------------------------
A67: =- Represents zero. -> 
A69: Cotton Condition - Selected States: Week Ending July 11, 2010
A70: [National crop conditions for selected States are weighted based on 2009
A71: planted acreage]
A72: -----------------------------------------------------------------------------
A73: State : Very poor : Poor : Fair : Good : Excellent
A74: -----------------------------------------------------------------------------
A75: : percent
A76: :
A77: Alabama .........: 2 4 30 59 5
A78: Arizona .........: - 1 25 65 9
A79: Arkansas ........: 1 3 28 37 31
A80: California ......: - - 35 55 10
A81: Georgia .........: 2 7 34 46 11
A82: Kansas ..........: - 2 27 59 12
A83: Louisiana .......: 1 13 26 54 6
A84: Mississippi .....: 2 8 31 41 18
A85: Missouri ........: 3 14 27 53 3
A86: North Carolina ..: 7 17 30 41 5
A87: Oklahoma ........: - 1 17 71 11
A88: South Carolina ..: - 9 34 48 9
A89: Tennessee .......: - 2 25 62 11
A90: Texas ...........: 2 4 23 51 20
A91: Virginia ........: - - 50 50 -
A92: :
A93: 15 States .......: 2 5 26 51 16
A94: :
A95: Previous week ...: 2 7 26 52 13
A96: Previous year ...: 7 16 34 35 8
A97: -----------------------------------------------------------------------------
A98: =- Represents zero. -> 
A100: Corn Silking - Selected States
A101: [These 18 States planted 92% of the 2009 corn acreage]
A102: -----------------------------------------------------------------
A103: : Week ending :
A104: :-----------------------------------:
A105: State : July 11, : July 4, : July 11, : 2005-2009
A106: : 2009 : 2010 : 2010 : Average
A107: -----------------------------------------------------------------
A108: : percent
A109: :
A110: Colorado ........: 9 2 6 11
A111: Illinois ........: 10 46 72 41
A112: Indiana .........: 10 31 62 24
A113: Iowa ............: 5 2 24 13
A114: Kansas ..........: 47 32 52 52
A115: Kentucky ........: 35 51 68 57
A116: Michigan ........: 1 3 30 8
A117: Minnesota .......: 1 2 14 12
A118: Missouri ........: 45 45 60 59
A119: Nebraska ........: 22 7 26 28
A120: North Carolina ..: 91 95 100 87
A121: North Dakota ....: 1 2 9 7
A122: Ohio ............: 10 14 44 12
A123: Pennsylvania ....: 19 14 21 16
A124: South Dakota ....: - - 1 2
A125: Tennessee .......: 78 81 91 82
A126: Texas ...........: 77 55 74 72
A127: Wisconsin .......: 1 - 13 4
A128: :
A129: 18 States .......: 15 19 38 26
A130: -----------------------------------------------------------------
A131: =- Represents zero. -> 
A133: Corn Condition - Selected States: Week Ending July 11, 2010
A134: [National crop conditions for selected States are weighted based on 2009
A135: planted acreage]
A136: -----------------------------------------------------------------------------
A137: State : Very poor : Poor : Fair : Good : Excellent
A138: -----------------------------------------------------------------------------
A139: : percent
A140: :
A141: Colorado ........: - 1 10 67 22
A142: Illinois ........: 3 9 23 47 18
A143: Indiana .........: 3 9 26 46 16
A144: Iowa ............: 3 7 19 51 20
A145: Kansas ..........: 1 5 20 60 14
A146: Kentucky ........: 2 7 26 50 15
A147: Michigan ........: 1 5 16 47 31
A148: Minnesota .......: - 3 9 57 31
A149: Missouri ........: 6 16 28 36 14
A150: Nebraska ........: 1 3 10 64 22
A151: North Carolina ..: 11 24 30 29 6
A152: North Dakota ....: 1 1 9 70 19
A153: Ohio ............: 2 9 25 47 17
A154: Pennsylvania ....: 8 20 31 32 9
A155: South Dakota ....: 1 5 19 53 22
A156: Tennessee .......: 7 14 30 38 11
A157: Texas ...........: 3 6 17 56 18
A158: Wisconsin .......: 1 4 11 46 38
A159: :
A160: 18 States .......: 2 7 18 52 21
A161: :
A162: Previous week ...: 3 7 19 51 20
A163: Previous year ...: 2 6 21 52 19
A164: -----------------------------------------------------------------------------
A165: =- Represents zero. -> 
A167: Soybeans Blooming - Selected States
A168: [These 18 States planted 95% of the 2009 soybean acreage]
A169: -----------------------------------------------------------------
A170: : Week ending :
A171: :-----------------------------------:
A172: State : July 11, : July 4, : July 11, : 2005-2009
A173: : 2009 : 2010 : 2010 : Average
A174: -----------------------------------------------------------------
A175: : percent
A176: :
A177: Arkansas ........: 35 46 55 42
A178: Illinois ........: 10 20 43 38
A179: Indiana .........: 11 23 48 27
A180: Iowa ............: 37 27 46 47
A181: Kansas ..........: 24 10 19 30
A182: Kentucky ........: 16 35 49 28
A183: Louisiana .......: 76 65 79 79
A184: Michigan ........: 15 26 40 23
A185: Minnesota .......: 10 19 35 34
A186: Mississippi .....: 83 74 87 90
A187: Missouri ........: 15 8 21 23
A188: Nebraska ........: 28 17 38 40
A189: North Carolina ..: - 5 16 4
A190: North Dakota ....: 12 25 40 35
A191: Ohio ............: 23 18 43 35
A192: South Dakota ....: 27 13 33 32
A193: Tennessee .......: 27 34 49 44
A194: Wisconsin .......: 8 10 21 24
A195: :
A196: 18 States .......: 22 23 40 37
A197: -----------------------------------------------------------------
A198: =- Represents zero. -> 
A200: Soybeans Setting Pods - Selected States
A201: [These 18 States planted 95% of the 2009 soybean acreage]
A202: -----------------------------------------------------------------
A203: : Week ending :
A204: :-----------------------------------:
A205: State : July 11, : July 4, : July 11, : 2005-2009
A206: : 2009 : 2010 : 2010 : Average
A207: -----------------------------------------------------------------
A208: : percent
A209: :
A210: Arkansas ........: 10 (NA) 29 18
... 560 more rows

Sheet Sheet6 (hidden)
A1: =IFERROR(INDIRECT(O3),"") -> Soybeans Blooming - Selected States | B1: =P1 -> $A$11 | C1: =INDIRECT(B1) -> Arkansas ........: 35 46 55 42 | D1: =TRIM(RIGHT(INDIRECT(B1),LEN(INDIRECT(B1))-FIND(":",INDIRECT(B1)))) -> 35 46 55 42 | E1: =IF($M$14=1,VLOOKUP(LEFT(C1,2),$U$1:$V$50,2,FALSE),IFERROR(LEFT(INDIRECT(B1),FIND(".",INDIRECT(B1))-2),"")) -> Arkansas | F1: =IFERROR(LEFT(D1,FIND(" ",D1)),"") -> 35 | G1: =IFERROR(RIGHT(LEFT(D1,FIND("~",SUBSTITUTE(D1," ","~",2))),FIND("~",SUBSTITUTE(D1," ","~",2))-FIND("~",SUBSTITUTE(D1," ","~",1))),"") -> 46 | H1: =IFERROR(RIGHT(LEFT(D1,FIND("~",SUBSTITUTE(D1," ","~",3))),FIND("~",SUBSTITUTE(D1," ","~",3))-FIND("~",SUBSTITUTE(D1," ","~",2))),"") -> 55 | I1: =IFERROR(RIGHT(D1,LEN(D1)-FIND("~",SUBSTITUTE(D1," ","~",3))),"") -> 42 | J1: Corn | K1: =IF(MainDisplay!B27="Corn","Corn Planted",IF(MainDisplay!B27="Soybeans","Soybeans Planted",IF(MainDisplay!B27="Spring Wheat","Spring Wheat Planted","Winter Wheat Planted"))) -> Soybeans Planted | M1: =IF($J$8="Corn"," Corn: Percent Planted,",IF($J$8="Soybeans"," Soybeans: Percent Planted,",IF($J$8="Spring Wheat"," Spring Wheat: Percent Planted,",IF($J$8="Winter Wheat"," Winter Wheat: Percent Planted,")))) -> Soybeans: Percent Planted, | O1: =IF($M$14=1,IF(LEFT(TRIM(O2),3)="Cor","CO",IF(LEFT(TRIM(O2),3)="Soy","AR",IF(LEFT(TRIM(O2),3)="Win","AR",IF(LEFT(TRIM(O2),3)="Spr","ID")))),IF(LEFT(TRIM(O2),3)="Cor","Colorado",IF(LEFT(TRIM(O2),3)="Soy","Arkansa",IF(LEFT(TRIM(O2),3)="Win","Arkansa",IF(LEFT(TRIM(O2),3)="Spr","Idaho"))))) -> Arkansa | P1: =CELL("address",INDEX(A1:A38,MATCH(O1&"*",A1:A38,0),1)) -> $A$11 | U1: AL | V1: Alabama
A2: =IFERROR(INDIRECT(O4),"") -> [These 18 States planted 95% of the 2009 soybean acreage] | B2: =(IF(TRIM(A2)=":","",IF(LEN(B1)=4,LEFT(B1,3)&RIGHT(B1,1)+1,LEFT(B1,3)&RIGHT(B1,3)+1))) -> $A$12 | C2: =INDIRECT(B2) -> Illinois ........: 10 20 43 38 | D2: =TRIM(RIGHT(INDIRECT(B2),LEN(INDIRECT(B2))-FIND(":",INDIRECT(B2)))) -> 10 20 43 38 | E2: =IF($M$14=1,VLOOKUP(LEFT(C2,2),$U$1:$V$50,2,FALSE),IFERROR(LEFT(INDIRECT(B2),FIND(".",INDIRECT(B2))-2),"")) -> Illinois | F2: =IFERROR(LEFT(D2,FIND(" ",D2)),"") -> 10 | G2: =IFERROR(RIGHT(LEFT(D2,FIND("~",SUBSTITUTE(D2," ","~",2))),FIND("~",SUBSTITUTE(D2," ","~",2))-FIND("~",SUBSTITUTE(D2," ","~",1))),"") -> 20 | H2: =IFERROR(RIGHT(LEFT(D2,FIND("~",SUBSTITUTE(D2," ","~",3))),FIND("~",SUBSTITUTE(D2," ","~",3))-FIND("~",SUBSTITUTE(D2," ","~",2))),"") -> 43 | I2: =IFERROR(RIGHT(D2,LEN(D2)-FIND("~",SUBSTITUTE(D2," ","~",3))),"") -> 38 | J2: Soybeans | K2: =IF(MainDisplay!B27="Corn","Corn Emerged",IF(MainDisplay!B27="Soybeans","Soybeans Emerged",IF(MainDisplay!B27="Spring Wheat","Spring Wheat Emerged","Winter Wheat Emerged"))) -> Soybeans Emerged | M2: =IF($J$8="Corn"," Corn: Percent Emerged,",IF($J$8="Soybeans"," Soybeans: Percent Emerged,",IF($J$8="Spring Wheat"," Spring Wheat: Percent Emerged,",IF($J$8="Winter Wheat"," Winter Wheat: Percent Emerged,")))) -> Soybeans: Percent Emerged, | O2: =IF(M14=1,M16,Sheet3!O2) -> Soybeans Blooming | U2: AK | V2: Alaska
A3: ----------------------------------------------------------------- | B3: =(IF(TRIM(A3)=":","",IF(LEN(B2)=4,LEFT(B2,3)&RIGHT(B2,1)+1,LEFT(B2,3)&RIGHT(B2,3)+1))) -> $A$13 | C3: Indiana .........: 11 23 48 27 | D3: 11 23 48 27 | E3: Indiana | F3: 11 | G3: 23 | H3: 48 | I3: 27 | J3: Spring Wheat | K3: =IF(MainDisplay!B27="Corn","Corn Silking",IF(MainDisplay!B27="Soybeans","Soybeans Blooming",IF(MainDisplay!B27="Spring Wheat","Spring Wheat Headed","Winter Wheat Headed"))) -> Soybeans Blooming | M3: =IF($J$8="Corn"," Corn: Percent Silking,",IF($J$8="Soybeans"," Soybeans: Percent Blooming,",IF($J$8="Spring Wheat"," Spring Wheat: Percent Headed,",IF($J$8="Winter Wheat"," Winter Wheat: Percent Headed,")))) -> Soybeans: Percent Blooming, | O3: =CELL("address",INDEX(Sheet5!A1:A1000,MATCH("*"&O2&"*",Sheet5!A1:A1000,0),1)) -> [CQGGlobexGrainsUSDAV3.xlsm]Sheet5!$A$167 | P3: =RIGHT(O3,$Q$3-$R$3) -> $A$167 | Q3: =LEN(O3) -> 41 | R3: =FIND("!",O3) -> 35 | U3: AZ | V3: Arizona
A4: : Week ending : | B4: =(IF(TRIM(B3)=":","",LEFT(B3,3)&RIGHT(B3,3)+1)) -> $A$14 | C4: Iowa ............: 37 27 46 47 | D4: 37 27 46 47 | E4: Iowa | F4: 37 | G4: 27 | H4: 46 | I4: 47 | J4: Winter Wheat | K4: =IF(MainDisplay!B27="Corn","Corn Dough",IF(MainDisplay!B27="Soybeans","Soybeans Setting Pods",IF(MainDisplay!B27="Spring Wheat","Spring Wheat Harvested","Winter Wheat Harvested"))) -> Soybeans Setting Pods | M4: =IF($J$8="Corn"," Corn: Percent Dough,",IF($J$8="Soybeans"," Soybeans: Percent Setting Pods,",IF($J$8="Spring Wheat"," Spring Wheat: Percent Harvested,",IF($J$8="Winter Wheat"," Winter Wheat: Percent Harvested,")))) -> Soybeans: Percent Setting Pods, | O4: =LEFT($O$3,$R$3)&P4 -> [CQGGlobexGrainsUSDAV3.xlsm]Sheet5!$A$168 | P4: =LEFT(P3,FIND("~",SUBSTITUTE(P3,"$","~",2)))&RIGHT(P3,3)+1 -> $A$168 | U4: AR | V4: Arkansas
A5: =IFERROR(INDIRECT(O7),"") -> :-----------------------------------: | B5: $A$15 | C5: Kansas ..........: 24 10 19 30 | D5: 24 10 19 30 | E5: Kansas | F5: 24 | G5: 10 | H5: 19 | I5: 30 | K5: =IF(MainDisplay!B27="Corn","Corn Dented",IF(MainDisplay!B27="Soybeans","Soybeans Dropping Leaves",IF(MainDisplay!B27="Spring Wheat","",""))) -> Soybeans Dropping Leaves | M5: =IF($J$8="Corn"," Corn: Percent Dented,",IF($J$8="Soybeans"," Soybeans: Percent Dropping Leaves, ",IF($J$8="Spring Wheat","",IF($J$8="Winter Wheat","")))) -> Soybeans: Percent Dropping Leaves, | O5: =LEFT($O$3,$R$3)&P5 -> [CQGGlobexGrainsUSDAV3.xlsm]Sheet5!$A$169 | P5: =LEFT(P4,FIND("~",SUBSTITUTE(P4,"$","~",2)))&RIGHT(P4,3)+1 -> $A$169 | U5: CA | V5: California
A6: State : July 11, : July 4, : July 11, : 2005-2009 | B6: $A$16 | C6: Kentucky ........: 16 35 49 28 | D6: 16 35 49 28 | E6: Kentucky | F6: 16 | G6: 35 | H6: 49 | I6: 28 | K6: =IF(MainDisplay!B27="Corn","Corn Mature",IF(MainDisplay!B27="Soybeans","Soybeans Harvested",IF(MainDisplay!B27="Spring Wheat","",""))) -> Soybeans Harvested | M6: =IF($J$8="Corn"," Corn: Percent Mature,",IF($J$8="Soybeans"," Soybeans: Percent Harvested,",IF($J$8="Spring Wheat","",IF($J$8="Winter Wheat","")))) -> Soybeans: Percent Harvested, | O6: [CQGGlobexGrainsUSDAV3.xlsm]Sheet5!$A$170 | P6: $A$170 | U6: CO | V6: Colorado
A7: : 2009 : 2010 : 2010 : Average | B7: $A$17 | C7: Louisiana .......: 76 65 79 79 | D7: 76 65 79 79 | E7: =IF(D7="","",IF($M$14=1,VLOOKUP(LEFT(C7,2),$U$1:$V$50,2,FALSE),IFERROR(LEFT(INDIRECT(B7),FIND(".",INDIRECT(B7))-2),""))) -> Louisiana | F7: =IFERROR(LEFT(D7,FIND(" ",D7)),"") -> 76 | G7: =IFERROR(RIGHT(LEFT(D7,FIND("~",SUBSTITUTE(D7," ","~",2))),FIND("~",SUBSTITUTE(D7," ","~",2))-FIND("~",SUBSTITUTE(D7," ","~",1))),"") -> 65 | H7: =IFERROR(RIGHT(LEFT(D7,FIND("~",SUBSTITUTE(D7," ","~",3))),FIND("~",SUBSTITUTE(D7," ","~",3))-FIND("~",SUBSTITUTE(D7," ","~",2))),"") -> 79 | I7: =IFERROR(RIGHT(D7,LEN(D7)-FIND("~",SUBSTITUTE(D7," ","~",3))),"") -> 79 | K7: =IF(MainDisplay!B27="Corn","Corn Harvested",IF(MainDisplay!B27="Soybean","",IF(MainDisplay!B27="Spring Wheat","",""))) ->  | M7: =IF($J$8="Corn"," Corn: Percent Harvested,",IF($J$8="Soybeans","",IF($J$8="Spring Wheat","",IF($J$8="Winter Wheat","")))) ->  | O7: [CQGGlobexGrainsUSDAV3.xlsm]Sheet5!$A$171 | P7: $A$171 | U7: CT | V7: Connecticut
A8: ----------------------------------------------------------------- | B8: $A$18 | C8: Michigan ........: 15 26 40 23 | D8: 15 26 40 23 | E8: =IF(E7="","",IF($M$14=1,VLOOKUP(LEFT(C8,2),$U$1:$V$50,2,FALSE),IFERROR(LEFT(INDIRECT(B8),FIND(".",INDIRECT(B8))-2),""))) -> Michigan | F8: =IF(F7="","",IFERROR(LEFT(D8,FIND(" ",D8)),"")) -> 15 | G8: =IF(G7="","",IFERROR(RIGHT(LEFT(D8,FIND("~",SUBSTITUTE(D8," ","~",2))),FIND("~",SUBSTITUTE(D8," ","~",2))-FIND("~",SUBSTITUTE(D8," ","~",1))),"")) -> 26 | H8: =IF(H7="","",IFERROR(RIGHT(LEFT(D8,FIND("~",SUBSTITUTE(D8," ","~",3))),FIND("~",SUBSTITUTE(D8," ","~",3))-FIND("~",SUBSTITUTE(D8," ","~",2))),"")) -> 40 | I8: =IF(I7="","",IFERROR(RIGHT(D8,LEN(D8)-FIND("~",SUBSTITUTE(D8," ","~",3))),"")) -> 23 | J8: =MainDisplay!B27 -> Soybeans | O8: [CQGGlobexGrainsUSDAV3.xlsm]Sheet5!$A$172 | P8: $A$172 | U8: DE | V8: Delaware
A9: : percent | B9: $A$19 | C9: Minnesota .......: 10 19 35 34 | D9: 10 19 35 34 | E9: =IF(E8="","",IF($M$14=1,VLOOKUP(LEFT(C9,2),$U$1:$V$50,2,FALSE),IFERROR(LEFT(INDIRECT(B9),FIND(".",INDIRECT(B9))-2),""))) -> Minnesota | F9: =IF(F8="","",IFERROR(LEFT(D9,FIND(" ",D9)),"")) -> 10 | G9: =IF(G8="","",IFERROR(RIGHT(LEFT(D9,FIND("~",SUBSTITUTE(D9," ","~",2))),FIND("~",SUBSTITUTE(D9," ","~",2))-FIND("~",SUBSTITUTE(D9," ","~",1))),"")) -> 19 | H9: =IF(H8="","",IFERROR(RIGHT(LEFT(D9,FIND("~",SUBSTITUTE(D9," ","~",3))),FIND("~",SUBSTITUTE(D9," ","~",3))-FIND("~",SUBSTITUTE(D9," ","~",2))),"")) -> 35 | I9: =IF(I8="","",IFERROR(RIGHT(D9,LEN(D9)-FIND("~",SUBSTITUTE(D9," ","~",3))),"")) -> 34 | O9: [CQGGlobexGrainsUSDAV3.xlsm]Sheet5!$A$173 | P9: $A$173 | U9: FL | V9: Florida
A10: : | B10: $A$20 | C10: Mississippi .....: 83 74 87 90 | D10: 83 74 87 90 | E10: Mississippi | F10: 83 | G10: 74 | H10: 87 | I10: 90 | O10: [CQGGlobexGrainsUSDAV3.xlsm]Sheet5!$A$174 | P10: $A$174 | U10: GA | V10: Georgia
A11: Arkansas ........: 35 46 55 42 | B11: $A$21 | C11: Missouri ........: 15 8 21 23 | D11: 15 8 21 23 | E11: Missouri | F11: 15 | G11: 8 | H11: 21 | I11: 23 | M11: =DATE(MainDisplay!Y27,MainDisplay!W27,MainDisplay!X27) -> 2010-07-12 | O11: [CQGGlobexGrainsUSDAV3.xlsm]Sheet5!$A$175 | P11: $A$175 | U11: HI | V11: Hawaii
A12: Illinois ........: 10 20 43 38 | B12: $A$22 | C12: Nebraska ........: 28 17 38 40 | D12: 28 17 38 40 | E12: Nebraska | F12: 28 | G12: 17 | H12: 38 | I12: 40 | M12: 40336 | O12: [CQGGlobexGrainsUSDAV3.xlsm]Sheet5!$A$176 | P12: $A$176 | U12: ID | V12: Idaho
A13: Indiana .........: 11 23 48 27 | B13: $A$23 | C13: North Carolina ..: - 5 16 4 | D13: - 5 16 4 | E13: North Carolina | F13: - | G13: 5 | H13: 16 | I13: 4 | O13: [CQGGlobexGrainsUSDAV3.xlsm]Sheet5!$A$177 | P13: $A$177 | U13: IL | V13: Illinois
A14: Iowa ............: 37 27 46 47 | B14: $A$24 | C14: North Dakota ....: 12 25 40 35 | D14: 12 25 40 35 | E14: North Dakota | F14: 12 | G14: 25 | H14: 40 | I14: 35 | M14: =IF(M11<M12,1,) -> 0 | O14: [CQGGlobexGrainsUSDAV3.xlsm]Sheet5!$A$178 | P14: $A$178 | U14: IN | V14: Indiana
A15: Kansas ..........: 24 10 19 30 | B15: $A$25 | C15: Ohio ............: 23 18 43 35 | D15: 23 18 43 35 | E15: Ohio | F15: 23 | G15: 18 | H15: 43 | I15: 35 | M15: =MainDisplay!D27 -> Soybeans Blooming | O15: [CQGGlobexGrainsUSDAV3.xlsm]Sheet5!$A$179 | P15: $A$179 | U15: IA | V15: Iowa
A16: Kentucky ........: 16 35 49 28 | B16: $A$26 | C16: South Dakota ....: 27 13 33 32 | D16: 27 13 33 32 | E16: South Dakota | F16: 27 | G16: 13 | H16: 33 | I16: 32 | M16: =VLOOKUP(M15,K1:M7,3,FALSE) -> Soybeans: Percent Blooming, | O16: [CQGGlobexGrainsUSDAV3.xlsm]Sheet5!$A$180 | P16: $A$180 | U16: KS | V16: Kansas
A17: Louisiana .......: 76 65 79 79 | B17: $A$27 | C17: Tennessee .......: 27 34 49 44 | D17: 27 34 49 44 | E17: Tennessee | F17: 27 | G17: 34 | H17: 49 | I17: 44 | M17: Corn: Crop Condition by Percent, | O17: [CQGGlobexGrainsUSDAV3.xlsm]Sheet5!$A$181 | P17: $A$181 | U17: KY | V17: Kentucky
A18: Michigan ........: 15 26 40 23 | B18: $A$28 | C18: Wisconsin .......: 8 10 21 24 | D18: 8 10 21 24 | E18: Wisconsin | F18: 8 | G18: 10 | H18: 21 | I18: 24 | M18: Soybeans: Crop Condition | O18: [CQGGlobexGrainsUSDAV3.xlsm]Sheet5!$A$182 | P18: $A$182 | U18: LA | V18: Louisiana
A19: Minnesota .......: 10 19 35 34 | B19: $A$29 | C19: : | E19: =IF(E18="","",IFERROR(LEFT(INDIRECT(B19),FIND(".",INDIRECT(B19))-2),"")) ->  | F19: =IFERROR(LEFT(D19,FIND(" ",D19)),"") ->  | G19: =IFERROR(RIGHT(LEFT(D19,FIND("~",SUBSTITUTE(D19," ","~",2))),FIND("~",SUBSTITUTE(D19," ","~",2))-FIND("~",SUBSTITUTE(D19," ","~",1))),"") ->  | H19: =IFERROR(RIGHT(LEFT(D19,FIND("~",SUBSTITUTE(D19," ","~",3))),FIND("~",SUBSTITUTE(D19," ","~",3))-FIND("~",SUBSTITUTE(D19," ","~",2))),"") ->  | I19: =IFERROR(RIGHT(D19,LEN(D19)-FIND("~",SUBSTITUTE(D19," ","~",3))),"") ->  | O19: [CQGGlobexGrainsUSDAV3.xlsm]Sheet5!$A$183 | P19: $A$183 | U19: ME | V19: Maine
A20: Mississippi .....: 83 74 87 90 | B20: $A$30 | C20: 18 States .......: 22 23 40 37 | D20: =TRIM(RIGHT(INDIRECT(B20),43)) -> 22 23 40 37 | F20: =IF(E19="","",IFERROR(LEFT(D20,FIND(" ",D20)),"")) ->  | G20: =IF(E19="","",IFERROR(RIGHT(LEFT(D20,FIND("~",SUBSTITUTE(D20," ","~",2))),FIND("~",SUBSTITUTE(D20," ","~",2))-FIND("~",SUBSTITUTE(D20," ","~",1))),"")) ->  | H20: =IF(E19="","",IFERROR(RIGHT(LEFT(D20,FIND("~",SUBSTITUTE(D20," ","~",3))),FIND("~",SUBSTITUTE(D20," ","~",3))-FIND("~",SUBSTITUTE(D20," ","~",2))),"")) ->  | I20: =IF(E19="","",IFERROR(RIGHT(D20,LEN(D20)-FIND("~",SUBSTITUTE(D20," ","~",3))),"")) ->  | M20: =IF($J$8="Corn","Corn Condition",IF($J$8="Soybeans","Soybean Condition",IF($J$8="Spring Wheat","Spring Wheat Condition",IF($J$8="Winter Wheat","Winter Wheat Condition")))) -> Soybean Condition | O20: [CQGGlobexGrainsUSDAV3.xlsm]Sheet5!$A$184 | P20: $A$184 | U20: MD | V20: Maryland
A21: Missouri ........: 15 8 21 23 | B21: $A$31 | C21: ----------------------------------------------------------------- | D21: ------------------------------------------- | M21: =IF($J$8="Corn"," Corn: Crop Condition",IF($J$8="Soybeans"," Soybeans: Crop Condition",IF($J$8="Spring Wheat"," Spring Wheat: Crop Condition",IF($J$8="Winter Wheat"," Winter Wheat: Crop Condition")))) -> Soybeans: Crop Condition | O21: [CQGGlobexGrainsUSDAV3.xlsm]Sheet5!$A$185 | P21: $A$185 | U21: MA | V21: Massachusetts
A22: Nebraska ........: 28 17 38 40 | B22: $A$32 | O22: [CQGGlobexGrainsUSDAV3.xlsm]Sheet5!$A$186 | P22: $A$186 | U22: MI | V22: Michigan
A23: North Carolina ..: - 5 16 4 | B23: $A$33 | C23: 0 | D23: =RIGHT(INDIRECT(B23),43) -> 0 | M23: =IF($J$8="Corn"," Corn: Crop Condition by Percent,",IF($J$8="Soybeans"," Soybeans: Crop Condition by Percent,",IF($J$8="Spring Wheat"," Spring Wheat: Crop Condition",IF($J$8="Winter Wheat"," Winter Wheat: Crop Condition")))) -> Soybeans: Crop Condition by Percent, | O23: [CQGGlobexGrainsUSDAV3.xlsm]Sheet5!$A$187 | P23: $A$187 | U23: MN | V23: Minnesota
A24: North Dakota ....: 12 25 40 35 | B24: $A$34 | C24: Soybeans Setting Pods - Selected States | D24: Soybeans Setting Pods - Selected States | M24: =IF(M14=0,M20,M21) -> Soybean Condition | O24: [CQGGlobexGrainsUSDAV3.xlsm]Sheet5!$A$188 | P24: $A$188 | U24: MS | V24: Mississippi
A25: Ohio ............: 23 18 43 35 | B25: $A$35 | C25: [These 18 States planted 95% of the 2009 soybean acreage] | D25: es planted 95% of the 2009 soybean acreage] | M25: =IFERROR(CELL("address",INDEX(Sheet5!A1:A1000,MATCH(M24&"*",Sheet5!A1:A1000,0),1)),"2") -> [CQGGlobexGrainsUSDAV3.xlsm]Sheet5!$A$234 | O25: [CQGGlobexGrainsUSDAV3.xlsm]Sheet5!$A$189 | P25: $A$189 | U25: MO | V25: Missouri
A26: South Dakota ....: 27 13 33 32 | B26: $A$36 | E26: =IFERROR(LEFT(INDIRECT(B26),FIND(".",INDIRECT(B26))-2),"") ->  | O26: [CQGGlobexGrainsUSDAV3.xlsm]Sheet5!$A$190 | P26: $A$190 | U26: MT | V26: Montana
A27: Tennessee .......: 27 34 49 44 | B27: $A$37 | O27: [CQGGlobexGrainsUSDAV3.xlsm]Sheet5!$A$191 | P27: $A$191 | U27: NE | V27: Nebraska
A28: Wisconsin .......: 8 10 21 24 | B28: $A$38 | C28: 0 | O28: [CQGGlobexGrainsUSDAV3.xlsm]Sheet5!$A$192 | P28: $A$192 | U28: NV | V28: Nevada
A29: : | B29: $A$39 | C29: Soybean Condition - Selected States: Week Ending July 11, 2010 | D29: Selected States: Week Ending July 11, 2010 | G29: Selected | H29: States: | I29: Week Ending July 11, 2010 | O29: [CQGGlobexGrainsUSDAV3.xlsm]Sheet5!$A$193 | P29: $A$193 | U29: NH | V29: New Hampshire
A30: 18 States .......: 22 23 40 37 | B30: $A$40 | C30: [National crop conditions for selected States are weighted based on 2009 | D30: selected States are weighted based on 2009 | G30: selected | H30: States | I30: are weighted based on 2009 | O30: [CQGGlobexGrainsUSDAV3.xlsm]Sheet5!$A$194 | P30: $A$194 | U30: NJ | V30: New Jersey
A31: ----------------------------------------------------------------- | O31: [CQGGlobexGrainsUSDAV3.xlsm]Sheet5!$A$195 | P31: $A$195 | U31: NM | V31: New Mexico
E32: =FIND("~",SUBSTITUTE(D34,",","~",1))-FIND("~",SUBSTITUTE(D34,":","~",1)) -> 9 | G32: =RIGHT(LEFT(D34,FIND("~",SUBSTITUTE(D34,",","~",1))-1),FIND("~",SUBSTITUTE(D34,",","~",1))-FIND("~",SUBSTITUTE(D34,":","~",1))-1) -> July 11 | O32: [CQGGlobexGrainsUSDAV3.xlsm]Sheet5!$A$196 | P32: $A$196 | U32: NY | V32: New York
A33: 0 | I33: =RIGHT(A5,6) ->  | O33: [CQGGlobexGrainsUSDAV3.xlsm]Sheet5!$A$197 | P33: $A$197 | U33: NC | V33: North Carolina
A34: Soybeans Setting Pods - Selected States | D34: =TRIM(A6) -> State : July 11, : July 4, : July 11, : 2005-2009 | O34: [CQGGlobexGrainsUSDAV3.xlsm]Sheet5!$A$198 | P34: $A$198 | U34: ND | V34: North Dakota
A35: =IFERROR(INDIRECT(O37),"") -> [These 18 States planted 95% of the 2009 soybean acreage] | C35: =TRIM(C19) -> : | F35: =RIGHT(LEFT(D34,FIND("~",SUBSTITUTE(D34,",","~",1))-1),FIND("~",SUBSTITUTE(D34,",","~",1))-FIND("~",SUBSTITUTE(D34,":","~",1))-1) -> July 11 | G35: =RIGHT(LEFT(D34,FIND("~",SUBSTITUTE(D34,",","~",2))-1),FIND("~",SUBSTITUTE(D34,",","~",1))-FIND("~",SUBSTITUTE(D34,":","~",1))-1) -> : July 4 | H35: =RIGHT(LEFT(D34,FIND("~",SUBSTITUTE(D34,",","~",3))-1),FIND("~",SUBSTITUTE(D34,",","~",1))-FIND("~",SUBSTITUTE(D34,":","~",1))-1) -> July 11 | I35: =IF(M14=1,RIGHT(A5,6)&RIGHT(D34,4),(LEFT(TRIM(RIGHT(D34,LEN(D34)-FIND("~",SUBSTITUTE(D34,":","~",4)))),4)&" - "&RIGHT(D34,4))) -> 2005 - 2009 | O35: [CQGGlobexGrainsUSDAV3.xlsm]Sheet5!$A$199 | P35: $A$199 | U35: OH | V35: Ohio
F36: =RIGHT(LEFT(D37,6),4) -> 2009 | G36: =RIGHT(LEFT(D37,13),4) -> 2010 | H36: =RIGHT(LEFT(D37,20),4) -> 2010 | I36: Average | O36: [CQGGlobexGrainsUSDAV3.xlsm]Sheet5!$A$200 | P36: $A$200 | U36: OK | V36: Oklahoma
D37: =TRIM(A7) -> : 2009 : 2010 : 2010 : Average | O37: [CQGGlobexGrainsUSDAV3.xlsm]Sheet5!$A$201 | P37: $A$201 | U37: OR | V37: Oregon
F38: Very Poor | G38: Poor | H38: Fair | I38: Good | J38: Excellent | U38: PA | V38: Pennsylvania
A39: =IFERROR(INDIRECT(O41),"") -> Soybean Condition - Selected States: Week Ending July 11, 2010 | B39: =P39 -> $A$47 | C39: =INDIRECT(B39) -> Arkansas ........: 4 15 36 36 9 | D39: =TRIM(RIGHT(C39,LEN(C39)-FIND("~",SUBSTITUTE(C39,":","~",1)))) -> 4 15 36 36 9 | E39: =IF($M$14=1,VLOOKUP(LEFT(C39,2),$U$1:$V$50,2,FALSE),IFERROR(LEFT(INDIRECT(B39),FIND(".",INDIRECT(B39))-2),"")) -> Arkansas | F39: =IFERROR(LEFT(D39,FIND(" ",D39)),"") -> 4 | G39: =IFERROR(RIGHT(LEFT(D39,FIND("~",SUBSTITUTE(D39," ","~",2))),FIND("~",SUBSTITUTE(D39," ","~",2))-FIND("~",SUBSTITUTE(D39," ","~",1))),"") -> 15 | H39: =IFERROR(RIGHT(LEFT(D39,FIND("~",SUBSTITUTE(D39," ","~",3))),FIND("~",SUBSTITUTE(D39," ","~",3))-FIND("~",SUBSTITUTE(D39," ","~",2))),"") -> 36 | I39: =IFERROR(RIGHT(LEFT(D39,FIND("~",SUBSTITUTE(D39," ","~",4))),FIND("~",SUBSTITUTE(D39," ","~",4))-FIND("~",SUBSTITUTE(D39," ","~",3))),"") -> 36 | J39: =IFERROR(RIGHT(D39,LEN(D39)-FIND("~",SUBSTITUTE(D39," ","~",4))),"") -> 9 | O39: =IF($M$14=1,IF(LEFT(TRIM(O40),3)="Cor","CO",IF(LEFT(TRIM(O40),3)="Soy","AR",IF(LEFT(TRIM(O40),3)="Win","AR",IF(LEFT(TRIM(O40),3)="Spr","ID")))),IF(LEFT(TRIM(O40),3)="Cor","Colorado",IF(LEFT(TRIM(O40),3)="Soy","Arkansa",IF(LEFT(TRIM(O40),3)="Win","Arkansa",IF(LEFT(TRIM(O40),3)="Spr","Idaho"))))) -> Arkansa | P39: =CELL("address",INDEX(A39:A69,MATCH(O39&"*",A39:A69,0),1)) -> $A$47 | U39: RI | V39: Rhode Island
A40: =IFERROR(INDIRECT(O42),"") -> [National crop conditions for selected States are weighted based on 2009 | B40: =(IF(TRIM(A40)=":","",IF(LEN(B39)=4,LEFT(B39,3)&RIGHT(B39,1)+1,LEFT(B39,3)&RIGHT(B39,3)+1))) -> $A$48 | C40: =INDIRECT(B40) -> Illinois ........: 3 9 26 48 14 | D40: =TRIM(RIGHT(C40,LEN(C40)-FIND("~",SUBSTITUTE(C40,":","~",1)))) -> 3 9 26 48 14 | E40: =IF($M$14=1,VLOOKUP(LEFT(C40,2),$U$1:$V$50,2,FALSE),IFERROR(LEFT(INDIRECT(B40),FIND(".",INDIRECT(B40))-2),"")) -> Illinois | F40: =IFERROR(LEFT(D40,FIND(" ",D40)),"") -> 3 | G40: =IFERROR(RIGHT(LEFT(D40,FIND("~",SUBSTITUTE(D40," ","~",2))),FIND("~",SUBSTITUTE(D40," ","~",2))-FIND("~",SUBSTITUTE(D40," ","~",1))),"") -> 9 | H40: =IFERROR(RIGHT(LEFT(D40,FIND("~",SUBSTITUTE(D40," ","~",3))),FIND("~",SUBSTITUTE(D40," ","~",3))-FIND("~",SUBSTITUTE(D40," ","~",2))),"") -> 26 | I40: =IFERROR(RIGHT(LEFT(D40,FIND("~",SUBSTITUTE(D40," ","~",4))),FIND("~",SUBSTITUTE(D40," ","~",4))-FIND("~",SUBSTITUTE(D40," ","~",3))),"") -> 48 | J40: =IFERROR(RIGHT(D40,LEN(D40)-FIND("~",SUBSTITUTE(D40," ","~",4))),"") -> 14 | O40: =IF(M14=0,M20,IF(M25="2",M23,M21)) -> Soybean Condition | U40: SC | V40: South Carolina
A41: planted acreage] | B41: =(IF(TRIM(A41)=":","",IF(LEN(B40)=4,LEFT(B40,3)&RIGHT(B40,1)+1,LEFT(B40,3)&RIGHT(B40,3)+1))) -> $A$49 | C41: Indiana .........: 3 8 27 48 14 | D41: 3 8 27 48 14 | E41: Indiana | F41: 3 | G41: 8 | H41: 27 | I41: 48 | J41: 14 | O41: =CELL("address",INDEX(Sheet5!A1:A1000,MATCH(O40&"*",Sheet5!A1:A1000,0),1)) -> [CQGGlobexGrainsUSDAV3.xlsm]Sheet5!$A$234 | P41: =RIGHT(O41,$Q$41-$R$41) -> $A$234 | Q41: =LEN(O41) -> 41 | R41: =FIND("!",O41) -> 35 | U41: SD | V41: South Dakota
A42: ----------------------------------------------------------------------------- | B42: =(IF(TRIM(B41)=":","",LEFT(B41,3)&RIGHT(B41,3)+1)) -> $A$50 | C42: Iowa ............: 3 7 21 52 17 | D42: 3 7 21 52 17 | E42: Iowa | F42: 3 | G42: 7 | H42: 21 | I42: 52 | J42: 17 | O42: =LEFT($O$41,$R$41)&P42 -> [CQGGlobexGrainsUSDAV3.xlsm]Sheet5!$A$235 | P42: =LEFT(P41,FIND("~",SUBSTITUTE(P41,"$","~",2)))&RIGHT(P41,3)+1 -> $A$235 | U42: TN | V42: Tennessee
A43: State : Very poor : Poor : Fair : Good : Excellent | B43: $A$51 | C43: Kansas ..........: 1 4 25 57 13 | D43: 1 4 25 57 13 | E43: Kansas | F43: 1 | G43: 4 | H43: 25 | I43: 57 | J43: 13 | O43: =LEFT($O$41,$R$41)&P43 -> [CQGGlobexGrainsUSDAV3.xlsm]Sheet5!$A$236 | P43: =LEFT(P42,FIND("~",SUBSTITUTE(P42,"$","~",2)))&RIGHT(P42,3)+1 -> $A$236 | U43: TX | V43: Texas
A44: ----------------------------------------------------------------------------- | B44: $A$52 | C44: Kentucky ........: 1 4 27 44 24 | D44: 1 4 27 44 24 | E44: Kentucky | F44: 1 | G44: 4 | H44: 27 | I44: 44 | J44: 24 | O44: [CQGGlobexGrainsUSDAV3.xlsm]Sheet5!$A$237 | P44: $A$237 | U44: UT | V44: Utah
A45: : percent | B45: $A$53 | C45: Louisiana .......: 1 12 32 50 5 | D45: 1 12 32 50 5 | E45: Louisiana | F45: 1 | G45: 12 | H45: 32 | I45: 50 | J45: 5 | O45: [CQGGlobexGrainsUSDAV3.xlsm]Sheet5!$A$238 | P45: $A$238 | U45: VT | V45: Vermont
A46: : | B46: $A$54 | C46: Michigan ........: 1 5 22 49 23 | D46: 1 5 22 49 23 | E46: Michigan | F46: =IF(F45="","",IFERROR(LEFT(D46,FIND(" ",D46)),"")) -> 1 | G46: =IF(G45="","",IFERROR(RIGHT(LEFT(D46,FIND("~",SUBSTITUTE(D46," ","~",2))),FIND("~",SUBSTITUTE(D46," ","~",2))-FIND("~",SUBSTITUTE(D46," ","~",1))),"")) -> 5 | H46: =IF(H45="","",IFERROR(RIGHT(LEFT(D46,FIND("~",SUBSTITUTE(D46," ","~",3))),FIND("~",SUBSTITUTE(D46," ","~",3))-FIND("~",SUBSTITUTE(D46," ","~",2))),"")) -> 22 | I46: =IF(I45="","",IFERROR(RIGHT(LEFT(D46,FIND("~",SUBSTITUTE(D46," ","~",4))),FIND("~",SUBSTITUTE(D46," ","~",4))-FIND("~",SUBSTITUTE(D46," ","~",3))),"")) -> 49 | J46: =IF(J45="","",IFERROR(RIGHT(D46,LEN(D46)-FIND("~",SUBSTITUTE(D46," ","~",4))),"")) -> 23 | O46: [CQGGlobexGrainsUSDAV3.xlsm]Sheet5!$A$239 | P46: $A$239 | U46: VA | V46: Virginia
A47: Arkansas ........: 4 15 36 36 9 | B47: $A$55 | C47: Minnesota .......: 1 3 13 62 21 | D47: 1 3 13 62 21 | E47: Minnesota | F47: =IF(F46="","",IFERROR(LEFT(D47,FIND(" ",D47)),"")) -> 1 | G47: =IF(G46="","",IFERROR(RIGHT(LEFT(D47,FIND("~",SUBSTITUTE(D47," ","~",2))),FIND("~",SUBSTITUTE(D47," ","~",2))-FIND("~",SUBSTITUTE(D47," ","~",1))),"")) -> 3 | H47: =IF(H46="","",IFERROR(RIGHT(LEFT(D47,FIND("~",SUBSTITUTE(D47," ","~",3))),FIND("~",SUBSTITUTE(D47," ","~",3))-FIND("~",SUBSTITUTE(D47," ","~",2))),"")) -> 13 | I47: =IF(I46="","",IFERROR(RIGHT(LEFT(D47,FIND("~",SUBSTITUTE(D47," ","~",4))),FIND("~",SUBSTITUTE(D47," ","~",4))-FIND("~",SUBSTITUTE(D47," ","~",3))),"")) -> 62 | J47: =IF(J46="","",IFERROR(RIGHT(D47,LEN(D47)-FIND("~",SUBSTITUTE(D47," ","~",4))),"")) -> 21 | O47: [CQGGlobexGrainsUSDAV3.xlsm]Sheet5!$A$240 | P47: $A$240 | U47: WA | V47: Washington
A48: Illinois ........: 3 9 26 48 14 | B48: $A$56 | C48: Mississippi .....: 4 14 28 37 17 | D48: 4 14 28 37 17 | E48: Mississippi | F48: 4 | G48: 14 | H48: 28 | I48: 37 | J48: 17 | O48: [CQGGlobexGrainsUSDAV3.xlsm]Sheet5!$A$241 | P48: $A$241 | U48: WV | V48: West Virginia
A49: Indiana .........: 3 8 27 48 14 | B49: $A$57 | C49: Missouri ........: 6 15 35 36 8 | D49: 6 15 35 36 8 | E49: Missouri | F49: 6 | G49: 15 | H49: 35 | I49: 36 | J49: 8 | O49: [CQGGlobexGrainsUSDAV3.xlsm]Sheet5!$A$242 | P49: $A$242 | U49: WI | V49: Wisconsin
A50: Iowa ............: 3 7 21 52 17 | B50: $A$58 | C50: Nebraska ........: 2 3 15 63 17 | D50: 2 3 15 63 17 | E50: Nebraska | F50: 2 | G50: 3 | H50: 15 | I50: 63 | J50: 17 | O50: [CQGGlobexGrainsUSDAV3.xlsm]Sheet5!$A$243 | P50: $A$243 | U50: WY | V50: Wyoming
A51: Kansas ..........: 1 4 25 57 13 | B51: $A$59 | C51: North Carolina ..: 5 16 35 41 3 | D51: 5 16 35 41 3 | E51: North Carolina | F51: 5 | G51: 16 | H51: 35 | I51: 41 | J51: 3 | O51: [CQGGlobexGrainsUSDAV3.xlsm]Sheet5!$A$244 | P51: $A$244
A52: Kentucky ........: 1 4 27 44 24 | B52: $A$60 | C52: North Dakota ....: 1 2 10 72 15 | D52: 1 2 10 72 15 | E52: North Dakota | F52: 1 | G52: 2 | H52: 10 | I52: 72 | J52: 15 | O52: [CQGGlobexGrainsUSDAV3.xlsm]Sheet5!$A$245 | P52: $A$245
A53: Louisiana .......: 1 12 32 50 5 | B53: $A$61 | C53: Ohio ............: 3 9 30 46 12 | D53: 3 9 30 46 12 | E53: Ohio | F53: 3 | G53: 9 | H53: 30 | I53: 46 | J53: 12 | O53: [CQGGlobexGrainsUSDAV3.xlsm]Sheet5!$A$246 | P53: $A$246
A54: Michigan ........: 1 5 22 49 23 | B54: $A$62 | C54: South Dakota ....: 2 7 22 53 16 | D54: 2 7 22 53 16 | E54: South Dakota | F54: 2 | G54: 7 | H54: 22 | I54: 53 | J54: 16 | O54: [CQGGlobexGrainsUSDAV3.xlsm]Sheet5!$A$247 | P54: $A$247
A55: Minnesota .......: 1 3 13 62 21 | B55: $A$63 | C55: Tennessee .......: 3 7 28 53 9 | D55: 3 7 28 53 9 | E55: Tennessee | F55: 3 | G55: 7 | H55: 28 | I55: 53 | J55: 9 | O55: [CQGGlobexGrainsUSDAV3.xlsm]Sheet5!$A$248 | P55: $A$248
A56: Mississippi .....: 4 14 28 37 17 | B56: $A$64 | C56: Wisconsin .......: 1 2 15 57 25 | D56: 1 2 15 57 25 | E56: Wisconsin | F56: 1 | G56: 2 | H56: 15 | I56: 57 | J56: 25 | O56: [CQGGlobexGrainsUSDAV3.xlsm]Sheet5!$A$249 | P56: $A$249
A57: Missouri ........: 6 15 35 36 8 | B57: $A$65 | C57: : | D57: =TRIM(RIGHT(INDIRECT(B57),43)) ->  | E57: =IF(E56="","",IFERROR(LEFT(INDIRECT(B57),FIND(".",INDIRECT(B57))-2),"")) ->  | F57: =IFERROR(LEFT(D57,FIND(" ",D57)),"") ->  | G57: =IF(E56="","",IFERROR(RIGHT(LEFT(D57,FIND("~",SUBSTITUTE(D57," ","~",2))),FIND("~",SUBSTITUTE(D57," ","~",2))-FIND("~",SUBSTITUTE(D57," ","~",1))),"")) ->  | H57: =IF(E56="","",IFERROR(RIGHT(LEFT(D57,FIND("~",SUBSTITUTE(D57," ","~",3))),FIND("~",SUBSTITUTE(D57," ","~",3))-FIND("~",SUBSTITUTE(D57," ","~",2))),"")) ->  | I57: =IF(E56="","",IFERROR(RIGHT(D57,LEN(D57)-FIND("~",SUBSTITUTE(D57," ","~",3))),"")) ->  | O57: [CQGGlobexGrainsUSDAV3.xlsm]Sheet5!$A$250 | P57: $A$250
A58: Nebraska ........: 2 3 15 63 17 | B58: $A$66 | C58: 18 States .......: 3 8 24 50 15 | D58: 8 24 50 15 | F58: 8 | O58: [CQGGlobexGrainsUSDAV3.xlsm]Sheet5!$A$251 | P58: $A$251
A59: North Carolina ..: 5 16 35 41 3 | B59: $A$67 | C59: : | O59: [CQGGlobexGrainsUSDAV3.xlsm]Sheet5!$A$252 | P59: $A$252
A60: North Dakota ....: 1 2 10 72 15 | B60: $A$68 | C60: Previous week ...: 2 8 24 51 15 | D60: 8 24 51 15 | F60: 8 | O60: [CQGGlobexGrainsUSDAV3.xlsm]Sheet5!$A$253 | P60: $A$253
A61: Ohio ............: 3 9 30 46 12 | B61: $A$69 | C61: Previous year ...: 2 6 26 52 14 | D61: =RIGHT(INDIRECT(B61),43) -> 6 26 52 14 | O61: [CQGGlobexGrainsUSDAV3.xlsm]Sheet5!$A$254 | P61: $A$254
A62: South Dakota ....: 2 7 22 53 16 | B62: $A$70 | C62: ----------------------------------------------------------------------------- | D62: ------------------------------------------- | O62: [CQGGlobexGrainsUSDAV3.xlsm]Sheet5!$A$255 | P62: $A$255
A63: Tennessee .......: 3 7 28 53 9 | B63: $A$71 | C63: 0 | D63: 0 | F63: =IF(E62="","",IFERROR(LEFT(D63,FIND(" ",D63)),"")) ->  | O63: [CQGGlobexGrainsUSDAV3.xlsm]Sheet5!$A$256 | P63: $A$256
A64: Wisconsin .......: 1 2 15 57 25 | B64: $A$72 | C64: Peanuts Pegging - Selected States | D64: Peanuts Pegging - Selected States | E64: =IFERROR(LEFT(INDIRECT(B64),FIND(".",INDIRECT(B64))-2),"") ->  | F64: =IFERROR(LEFT(D64,FIND(" ",D64)),"") -> Peanuts | G64: =IFERROR(RIGHT(LEFT(D64,FIND("~",SUBSTITUTE(D64," ","~",2))),FIND("~",SUBSTITUTE(D64," ","~",2))-FIND("~",SUBSTITUTE(D64," ","~",1))),"") -> Pegging | H64: =IFERROR(RIGHT(LEFT(D64,FIND("~",SUBSTITUTE(D64," ","~",3))),FIND("~",SUBSTITUTE(D64," ","~",3))-FIND("~",SUBSTITUTE(D64," ","~",2))),"") -> - | I64: =IFERROR(RIGHT(D64,LEN(D64)-FIND("~",SUBSTITUTE(D64," ","~",3))),"") -> Selected States | O64: [CQGGlobexGrainsUSDAV3.xlsm]Sheet5!$A$257 | P64: $A$257
A65: : | B65: $A$73 | C65: [These 8 States planted 97% of the 2009 peanut acreage] | D65: tes planted 97% of the 2009 peanut acreage] | F65: tes | G65: planted | H65: 97% | I65: of the 2009 peanut acreage] | O65: [CQGGlobexGrainsUSDAV3.xlsm]Sheet5!$A$258 | P65: $A$258
A66: 18 States .......: 3 8 24 50 15 | B66: $A$74 | O66: [CQGGlobexGrainsUSDAV3.xlsm]Sheet5!$A$259 | P66: $A$259
A67: : | B67: $A$75 | O67: [CQGGlobexGrainsUSDAV3.xlsm]Sheet5!$A$260 | P67: $A$260
A68: Previous week ...: 2 8 24 51 15 | B68: $A$76 | O68: [CQGGlobexGrainsUSDAV3.xlsm]Sheet5!$A$261 | P68: $A$261
A69: Previous year ...: 2 6 26 52 14 | O69: [CQGGlobexGrainsUSDAV3.xlsm]Sheet5!$A$262 | P69: $A$262
A70: ----------------------------------------------------------------------------- | O70: [CQGGlobexGrainsUSDAV3.xlsm]Sheet5!$A$263 | P70: $A$263
A71: 0 | E71: - | F71: =IFERROR(IF(F39=$E$71,0,1*F39),"") -> 4 | G71: =IFERROR(IF(G39=$E$71,0,1*G39),"") -> 15 | H71: 36 | I71: 36 | J71: 9 | O71: [CQGGlobexGrainsUSDAV3.xlsm]Sheet5!$A$264 | P71: $A$264
A72: Peanuts Pegging - Selected States | F72: =IFERROR(IF(F40=$E$71,0,1*F40),"") -> 3 | G72: 9 | H72: 26 | I72: 48 | J72: 14 | O72: [CQGGlobexGrainsUSDAV3.xlsm]Sheet5!$A$265 | P72: $A$265
A73: [These 8 States planted 97% of the 2009 peanut acreage] | F73: 3 | G73: 8 | H73: 27 | I73: 48 | J73: 14 | O73: [CQGGlobexGrainsUSDAV3.xlsm]Sheet5!$A$266 | P73: $A$266
F74: 3 | G74: 7 | H74: 21 | I74: 52 | J74: 17 | O74: [CQGGlobexGrainsUSDAV3.xlsm]Sheet5!$A$267 | P74: $A$267
F75: 1 | G75: 4 | H75: 25 | I75: 57 | J75: 13 | O75: [CQGGlobexGrainsUSDAV3.xlsm]Sheet5!$A$268 | P75: $A$268
F76: 1 | G76: 4 | H76: 27 | I76: 44 | J76: 24
F77: 1 | G77: 12 | H77: 32 | I77: 50 | J77: 5
F78: 1 | G78: 5 | H78: 22 | I78: 49 | J78: 23
F79: 1 | G79: 3 | H79: 13 | I79: 62 | J79: 21
F80: 4 | G80: 14 | H80: 28 | I80: 37 | J80: 17
F81: 6 | G81: 15 | H81: 35 | I81: 36 | J81: 8
F82: 2 | G82: 3 | H82: 15 | I82: 63 | J82: 17
F83: 5 | G83: 16 | H83: 35 | I83: 41 | J83: 3
F84: 1 | G84: 2 | H84: 10 | I84: 72 | J84: 15
F85: 3 | G85: 9 | H85: 30 | I85: 46 | J85: 12
F86: 2 | G86: 7 | H86: 22 | I86: 53 | J86: 16
F87: 3 | G87: 7 | H87: 28 | I87: 53 | J87: 9
F88: =IFERROR(IF(F56=$E$71,0,1*F56),"") -> 1 | G88: 2 | H88: 15 | I88: 57 | J88: 25
F91: =IFERROR(Sheet3!F39-Sheet6!F71,"") -> -2 | G91: =IFERROR(Sheet3!G39-Sheet6!G71,"") -> -7 | H91: =IFERROR(Sheet3!H39-Sheet6!H71,"") -> -9 | I91: =IFERROR(Sheet3!I39-Sheet6!I71,"") -> 10 | J91: =IFERROR(Sheet3!J39-Sheet6!J71,"") -> 8
F92: =IFERROR(Sheet3!F40-Sheet6!F72,"") -> -1 | G92: =IFERROR(Sheet3!G40-Sheet6!G72,"") -> -6 | H92: =IFERROR(Sheet3!H40-Sheet6!H72,"") -> -9 | I92: =IFERROR(Sheet3!I40-Sheet6!I72,"") -> 5 | J92: =IFERROR(Sheet3!J40-Sheet6!J72,"") -> 11
F93: =IFERROR(Sheet3!F41-Sheet6!F73,"") -> -1 | G93: =IFERROR(Sheet3!G41-Sheet6!G73,"") -> -3 | H93: =IFERROR(Sheet3!H41-Sheet6!H73,"") -> -6 | I93: =IFERROR(Sheet3!I41-Sheet6!I73,"") -> 7 | J93: =IFERROR(Sheet3!J41-Sheet6!J73,"") -> 3
F94: =IFERROR(Sheet3!F42-Sheet6!F74,"") -> -1 | G94: =IFERROR(Sheet3!G42-Sheet6!G74,"") -> -3 | H94: =IFERROR(Sheet3!H42-Sheet6!H74,"") -> -3 | I94: =IFERROR(Sheet3!I42-Sheet6!I74,"") -> 3 | J94: =IFERROR(Sheet3!J42-Sheet6!J74,"") -> 4
F95: =IFERROR(Sheet3!F43-Sheet6!F75,"") -> 0 | G95: =IFERROR(Sheet3!G43-Sheet6!G75,"") -> 4 | H95: =IFERROR(Sheet3!H43-Sheet6!H75,"") -> 12 | I95: =IFERROR(Sheet3!I43-Sheet6!I75,"") -> -8 | J95: =IFERROR(Sheet3!J43-Sheet6!J75,"") -> -8
F96: =IFERROR(Sheet3!F44-Sheet6!F76,"") ->  | G96: =IFERROR(Sheet3!G44-Sheet6!G76,"") -> -2 | H96: =IFERROR(Sheet3!H44-Sheet6!H76,"") -> -15 | I96: =IFERROR(Sheet3!I44-Sheet6!I76,"") -> 25 | J96: =IFERROR(Sheet3!J44-Sheet6!J76,"") -> -7
F97: =IFERROR(Sheet3!F45-Sheet6!F77,"") -> 4 | G97: =IFERROR(Sheet3!G45-Sheet6!G77,"") -> -1 | H97: =IFERROR(Sheet3!H45-Sheet6!H77,"") -> 4 | I97: =IFERROR(Sheet3!I45-Sheet6!I77,"") -> -13 | J97: =IFERROR(Sheet3!J45-Sheet6!J77,"") -> 6
F98: =IFERROR(Sheet3!F46-Sheet6!F78,"") -> 1 | G98: =IFERROR(Sheet3!G46-Sheet6!G78,"") -> -1 | H98: =IFERROR(Sheet3!H46-Sheet6!H78,"") -> 0 | I98: =IFERROR(Sheet3!I46-Sheet6!I78,"") -> 10 | J98: =IFERROR(Sheet3!J46-Sheet6!J78,"") -> -10
F99: =IFERROR(Sheet3!F47-Sheet6!F79,"") ->  | G99: =IFERROR(Sheet3!G47-Sheet6!G79,"") -> 0 | H99: =IFERROR(Sheet3!H47-Sheet6!H79,"") -> 7 | I99: =IFERROR(Sheet3!I47-Sheet6!I79,"") -> -5 | J99: =IFERROR(Sheet3!J47-Sheet6!J79,"") -> -1
F100: =IFERROR(Sheet3!F48-Sheet6!F80,"") ->  | G100: =IFERROR(Sheet3!G48-Sheet6!G80,"") -> -12 | H100: =IFERROR(Sheet3!H48-Sheet6!H80,"") -> 2 | I100: =IFERROR(Sheet3!I48-Sheet6!I80,"") -> 17 | J100: =IFERROR(Sheet3!J48-Sheet6!J80,"") -> -3
F101: =IFERROR(Sheet3!F49-Sheet6!F81,"") -> -3 | G101: =IFERROR(Sheet3!G49-Sheet6!G81,"") -> -3 | H101: =IFERROR(Sheet3!H49-Sheet6!H81,"") -> 2 | I101: =IFERROR(Sheet3!I49-Sheet6!I81,"") -> 7 | J101: =IFERROR(Sheet3!J49-Sheet6!J81,"") -> -3
F102: =IFERROR(Sheet3!F50-Sheet6!F82,"") -> -1 | G102: =IFERROR(Sheet3!G50-Sheet6!G82,"") -> -1 | H102: =IFERROR(Sheet3!H50-Sheet6!H82,"") -> -4 | I102: =IFERROR(Sheet3!I50-Sheet6!I82,"") -> 7 | J102: =IFERROR(Sheet3!J50-Sheet6!J82,"") -> -1
F103: =IFERROR(Sheet3!F51-Sheet6!F83,"") ->  | G103: =IFERROR(Sheet3!G51-Sheet6!G83,"") -> -9 | H103: =IFERROR(Sheet3!H51-Sheet6!H83,"") -> 3 | I103: =IFERROR(Sheet3!I51-Sheet6!I83,"") -> 9 | J103: =IFERROR(Sheet3!J51-Sheet6!J83,"") -> 2
F104: =IFERROR(Sheet3!F52-Sheet6!F84,"") ->  | G104: =IFERROR(Sheet3!G52-Sheet6!G84,"") -> 1 | H104: =IFERROR(Sheet3!H52-Sheet6!H84,"") -> 10 | I104: =IFERROR(Sheet3!I52-Sheet6!I84,"") -> -4 | J104: =IFERROR(Sheet3!J52-Sheet6!J84,"") -> -6
F105: =IFERROR(Sheet3!F53-Sheet6!F85,"") ->  | G105: =IFERROR(Sheet3!G53-Sheet6!G85,"") -> -5 | H105: =IFERROR(Sheet3!H53-Sheet6!H85,"") -> -10 | I105: =IFERROR(Sheet3!I53-Sheet6!I85,"") -> 11 | J105: =IFERROR(Sheet3!J53-Sheet6!J85,"") -> 7
F106: =IFERROR(Sheet3!F54-Sheet6!F86,"") -> 1 | G106: =IFERROR(Sheet3!G54-Sheet6!G86,"") -> -1 | H106: =IFERROR(Sheet3!H54-Sheet6!H86,"") -> 10 | I106: =IFERROR(Sheet3!I54-Sheet6!I86,"") -> -2 | J106: =IFERROR(Sheet3!J54-Sheet6!J86,"") -> -8
F107: =IFERROR(Sheet3!F55-Sheet6!F87,"") ->  | G107: =IFERROR(Sheet3!G55-Sheet6!G87,"") -> -4 | H107: =IFERROR(Sheet3!H55-Sheet6!H87,"") -> -9 | I107: =IFERROR(Sheet3!I55-Sheet6!I87,"") -> 5 | J107: =IFERROR(Sheet3!J55-Sheet6!J87,"") -> 11
F108: =IFERROR(Sheet3!F56-Sheet6!F88,"") -> 0 | G108: =IFERROR(Sheet3!G56-Sheet6!G88,"") -> 1 | H108: =IFERROR(Sheet3!H56-Sheet6!H88,"") -> -2 | I108: =IFERROR(Sheet3!I56-Sheet6!I88,"") -> 1 | J108: =IFERROR(Sheet3!J56-Sheet6!J88,"") -> 0

Sheet Release Information
B1: Corn | C1: Soybeans | D1: Spring Wheat | E1: Winter Wheat
A2: April 1st Report | E2: Winter Wheat Condition
A3: April 2nd Report | B3: Corn: Planted | D3: Spring Wheat: Planted | E3: Winter Wheat: Headed, Condition
A4: April 3rd Report | B4: Corn: Planted | D4: Spring Wheat: Planted | E4: Winter Wheat: Headed, Condition
A5: April 4th Report | B5: Corn: Planted, Emerged | C5: Soybeans: Planted | D5: Spring Wheat: Planted, Emerged | E5: Winter Wheat: Headed, Condition
A6: May 1st Report | B6: Corn: Planted, Emerged | C6: Soybeans: Planted | D6: Spring Wheat: Planted, Emerged | E6: Winter Wheat: Headed, Condition
A7: May 2nd Report | B7: Corn: Planted, Emerged | C7: Soybeans: Planted | D7: Spring Wheat: Planted, Emerged | E7: Winter Wheat: Headed, Condition
A8: May 3rd Report | B8: Corn: Planted, Emerged | C8: Soybeans: Planted, Emerged | D8: Spring Wheat: Planted, Emerged | E8: Winter Wheat: Headed, Condition
A9: May 4th Report | B9: Corn: Planted, Emerged, Condition | C9: Soybeans: Planted, Emerged | D9: Spring Wheat: Planted, Emerged, Condition | E9: Winter Wheat: Headed, Condition
A10: May 5th Report | B10: Corn: Planted, Emerged, Condition | C10: Soybeans: Planted, Emerged | D10: Spring Wheat: Emerged, Condition | E10: Winter Wheat: Headed, Harvested, Condition
A11: June 1st Report | B11: Corn: Emerged, Condition | C11: Soybeans: Planted, Emerged, Condition | D11: Spring Wheat: Emerged, Condition | E11: Winter Wheat: Headed, Harvested, Condition
A12: June 2nd Report | B12: Corn: Emerged, Condition | C12: Soybeans: Planted, Emerged, Condition | D12: Spring Wheat: Emerged, Condition | E12: Winter Wheat: Headed, Harvested, Condition
A13: June 3rd Report | B13: Corn: Silking, Condition | C13: Soybeans: Emerged, Blooming, Condition | D13: Spring Wheat: Headed, Condition | E13: Winter Wheat: Harvested, Condition
A14: June 4th Report | B14: Corn: Silking, Condition | C14: Soybeans: Emerged, Blooming, Condition | D14: Spring Wheat: Headed, Condition | E14: Winter Wheat: Harvested, Condition
A15: July 1st Report | B15: Corn: Silking, Condition | C15: Soybeans: Blooming, Setting Pods, Condition | D15: Spring Wheat: Headed, Condition | E15: Winter Wheat: Harvested
A16: July 2nd Report | B16: Corn: Silking, Condition | C16: Soybeans: Blooming, Setting Pods, Condition | D16: Spring Wheat: Headed, Condition | E16: Winter Wheat: Harvested
A17: July 3rd Report | B17: Corn: Silking, Dough, Condition | C17: Soybeans: Blooming, Setting Pods, Condition | D17: Spring Wheat: Headed, Condition | E17: Winter Wheat: Harvested
A18: July 4th Report | B18: Corn: Silking, Dough, Condition | C18: Soybeans: Blooming, Setting Pods, Condition | D18: Spring Wheat: Harvested, Condition | E18: Winter Wheat: Harvested
A19: July 5th Report | B19: Corn: Silking, Dough, Dented, Condition | C19: Soybeans: Blooming, Setting Pods, Condition | D19: Spring Wheat: Harvested, Condition | E19: Winter Wheat: Harvested
A20: August 1st Report | B20: Corn: Silking, Dough, Dented, Condition | C20: Soybeans: Blooming, Setting Pods, Condition | D20: Spring Wheat: Harvested, Condition | E20: Winter Wheat: Harvested
A21: August 2nd Report | B21: Corn: Dough, Dented, Condition | C21: Soybeans: Blooming, Setting Pods, Condition | D21: Spring Wheat: Harvested, Condition
A22: August 3rd Report | B22: Corn: Dough, Dented, Mature, Condition | C22: Soybeans: Setting Pods, Dropping Leaves, Condition | D22: Spring Wheat: Harvested
A23: August 4th Report | B23: Corn: Dough, Dented, Mature, Condition | C23: Soybeans: Setting Pods, Dropping Leaves, Condition | D23: Spring Wheat: Harvested
A24: September 1st Report | B24: Corn: Dough, Dented, Mature, Harvested, Condition | C24: Soybeans: Dropping Leaves, Condition | D24: Spring Wheat: Harvested
A25: September 2nd Report | B25: Corn: Dough, Dented, Mature, Harvested, Condition | C25: Soybeans: Dropping Leaves, Harvested, Condition | D25: Spring Wheat: Harvested
A26: September 3rd Report | B26: Corn: Dented, Mature, Harvested, Condition | C26: Soybeans: Dropping Leaves, Harvested, Condition | E26: Winter Wheat: Planted
A27: September 4th Report | B27: Corn: Dented, Mature, Harvested, Condition | C27: Soybeans: Dropping Leaves, Harvested, Condition | E27: Winter Wheat: Planted, Emerged
A28: October 1st Report | B28: Corn: Mature, Harvested, Condition | C28: Soybeans: Dropping Leaves, Harvested, Condition | E28: Winter Wheat: Planted, Emerged
A29: October 2nd Report | B29: Corn: Mature, Harvested, Condition | C29: Soybeans: Dropping Leaves, Harvested, Condition | E29: Winter Wheat: Planted, Emerged
A30: October 3rd Report | B30: Corn: Mature, Harvested, Condition | C30: Soybeans: Dropping Leaves, Harvested | E30: Winter Wheat: Planted, Emerged
A31: October 4th Report | B31: Corn: Harvested, Condition | C31: Soybeans: Harvested | E31: Winter Wheat: Planted, Emerged, Condition
A32: October 5th Report | B32: Corn: Harvested | C32: Soybeans: Harvested | E32: Winter Wheat: Planted, Emerged, Condition
A33: November 1st Report | B33: Corn: Harvested | C33: Soybeans: Harvested | E33: Winter Wheat: Planted, Emerged, Condition
A34: November 2nd Report | B34: Corn: Harvested | C34: Soybeans: Harvested | E34: Winter Wheat: Emerged, Condition
A35: November 3rd Report | B35: Corn: Harvested | E35: Winter Wheat: Emerged, Condition
A36: November 4th Report | B36: Final
B39: This tables lists approximate information in each report.
